Workbook

Sheet TOP 10
F1: Ranking de Fundos Imobiliário TOP 10
C2: Dta. Últ. Cot.: | D2: =IF(D3="",_xll.ECONOMATICA("IBOV","DATE OF LAST QUOTE"),D3) -> 2024-09-17 | E2: ← Não Modificar
C3: Dta. Pref. Últ. Cot.: | E3: ← Para alterar a data da Célula D2, basta digitar na Célula D3
B5: =COUNTA('FII Guide'!B:B)-3&" Fundos Imobiliário" -> 116 Fundos Imobiliário
B7: ="% Retorno Mensal até "&TEXT($D$2,"dd-mm-aa") -> % Retorno Mensal até 17-09-24 | H7: ="% Retorno Anual até "&TEXT($D$2,"dd-mm-aaaa") -> % Retorno Anual até 17-09-2024 | N7: ="% Retorno 12M até "&TEXT($D$2,"dd-mm-aaa") -> % Retorno 12M até 17-09-2024
B8: 1 | C8: =LARGE('FII Guide'!$AC$9:$AC$200,$B8) -> 0.05041591709 | D8: =IFERROR(INDEX('FII Guide'!C:C,MATCH($C8,'FII Guide'!AC:AC,0)),"") -> HTMX11 | E8: =_xll.ECONOMATICA(D8:D17,"Name (according to B3)",,,,,,,,"FALSE") -> FII Hotel Mx | F8: =_xll.ECONOMATICA(D8:D17,"Fund focus",,,,,,,,"FALSE","Segmento") -> Hotel | H8: 1 | I8: =LARGE('FII Guide'!$AE$9:$AE$200,$H8) -> 0.2244776832 | J8: =IFERROR(INDEX('FII Guide'!C:C,MATCH($I8,'FII Guide'!AE:AE,0)),"") -> SNEL11 | K8: =_xll.ECONOMATICA(J8:J17,"Name (according to B3)",,,,,,,,"FALSE") -> FII Suno El | L8: =_xll.ECONOMATICA(J8:J17,"Fund focus",,,,,,,,"FALSE","Segmento") -> Outros | N8: 1 | O8: =LARGE('FII Guide'!$AM$9:$AM$200,$N8) -> 0.6114796602 | P8: =IFERROR(INDEX('FII Guide'!C:C,MATCH($O8,'FII Guide'!AM:AM,0)),"") -> HTMX11 | Q8: =_xll.ECONOMATICA(P8:P17,"Name (according to B3)",,,,,,,,"FALSE") -> FII Hotel Mx | R8: =_xll.ECONOMATICA(P8:P17,"Fund focus",,,,,,,,"FALSE","Segmento") -> Hotel
B9: 2 | C9: =LARGE('FII Guide'!$AC$9:$AC$200,$B9) -> 0.04246451904 | D9: =IFERROR(INDEX('FII Guide'!C:C,MATCH($C9,'FII Guide'!AC:AC,0)),"") -> BPML11 | E9: FII BTG Shop | F9: Híbrido | H9: 2 | I9: =LARGE('FII Guide'!$AE$9:$AE$200,$H9) -> 0.1996100213 | J9: =IFERROR(INDEX('FII Guide'!C:C,MATCH($I9,'FII Guide'!AE:AE,0)),"") -> MFII11 | K9: FII Merito I | L9: Híbrido | N9: 2 | O9: =LARGE('FII Guide'!$AM$9:$AM$200,$N9) -> 0.3378523717 | P9: =IFERROR(INDEX('FII Guide'!C:C,MATCH($O9,'FII Guide'!AM:AM,0)),"") -> VSLH11 | Q9: FII Vers Cri | R9: TVM
B10: 3 | C10: =LARGE('FII Guide'!$AC$9:$AC$200,$B10) -> 0.02312654017 | D10: =IFERROR(INDEX('FII Guide'!C:C,MATCH($C10,'FII Guide'!AC:AC,0)),"") -> RZAT11 | E10: FII Arctium | F10: Outros | H10: 3 | I10: =LARGE('FII Guide'!$AE$9:$AE$200,$H10) -> 0.1889710595 | J10: =IFERROR(INDEX('FII Guide'!C:C,MATCH($I10,'FII Guide'!AE:AE,0)),"") -> RZAT11 | K10: FII Arctium | L10: Outros | N10: 3 | O10: =LARGE('FII Guide'!$AM$9:$AM$200,$N10) -> 0.3267540242 | P10: =IFERROR(INDEX('FII Guide'!C:C,MATCH($O10,'FII Guide'!AM:AM,0)),"") -> BPML11 | Q10: FII BTG Shop | R10: Híbrido
B11: 4 | C11: =LARGE('FII Guide'!$AC$9:$AC$200,$B11) -> 0.02275132275 | D11: =IFERROR(INDEX('FII Guide'!C:C,MATCH($C11,'FII Guide'!AC:AC,0)),"") -> GZIT11 | E11: FII Gazit | F11: Shoppings | H11: 4 | I11: =LARGE('FII Guide'!$AE$9:$AE$200,$H11) -> 0.172416214 | J11: =IFERROR(INDEX('FII Guide'!C:C,MATCH($I11,'FII Guide'!AE:AE,0)),"") -> CACR11 | K11: Cartesia FII | L11: Híbrido | N11: 4 | O11: =LARGE('FII Guide'!$AM$9:$AM$200,$N11) -> 0.2888351882 | P11: =IFERROR(INDEX('FII Guide'!C:C,MATCH($O11,'FII Guide'!AM:AM,0)),"") -> RZAT11 | Q11: FII Arctium | R11: Outros
B12: 5 | C12: =LARGE('FII Guide'!$AC$9:$AC$200,$B12) -> 0.01323935613 | D12: =IFERROR(INDEX('FII Guide'!C:C,MATCH($C12,'FII Guide'!AC:AC,0)),"") -> KNHY11 | E12: FII Kinea Hy | F12: TVM | H12: 5 | I12: =LARGE('FII Guide'!$AE$9:$AE$200,$H12) -> 0.1375387662 | J12: =IFERROR(INDEX('FII Guide'!C:C,MATCH($I12,'FII Guide'!AE:AE,0)),"") -> KNHY11 | K12: FII Kinea Hy | L12: TVM | N12: 5 | O12: =LARGE('FII Guide'!$AM$9:$AM$200,$N12) -> 0.2458246801 | P12: =IFERROR(INDEX('FII Guide'!C:C,MATCH($O12,'FII Guide'!AM:AM,0)),"") -> MFII11 | Q12: FII Merito I | R12: Híbrido
B13: 6 | C13: =LARGE('FII Guide'!$AC$9:$AC$200,$B13) -> 0.01322957199 | D13: =IFERROR(INDEX('FII Guide'!C:C,MATCH($C13,'FII Guide'!AC:AC,0)),"") -> BTAL11 | E13: FII BTG Agro | F13: Outros | H13: 6 | I13: =LARGE('FII Guide'!$AE$9:$AE$200,$H13) -> 0.125968768 | J13: =IFERROR(INDEX('FII Guide'!C:C,MATCH($I13,'FII Guide'!AE:AE,0)),"") -> KNUQ11 | K13: FII Kinea Un | L13: TVM | N13: 6 | O13: =LARGE('FII Guide'!$AM$9:$AM$200,$N13) -> 0.1947861748 | P13: =IFERROR(INDEX('FII Guide'!C:C,MATCH($O13,'FII Guide'!AM:AM,0)),"") -> CACR11 | Q13: Cartesia FII | R13: Híbrido
B14: 7 | C14: =LARGE('FII Guide'!$AC$9:$AC$200,$B14) -> 0.01043961306 | D14: =IFERROR(INDEX('FII Guide'!C:C,MATCH($C14,'FII Guide'!AC:AC,0)),"") -> KNCR11 | E14: FII Kinea Ri | F14: TVM | H14: 7 | I14: =LARGE('FII Guide'!$AE$9:$AE$200,$H14) -> 0.120751755 | J14: =IFERROR(INDEX('FII Guide'!C:C,MATCH($I14,'FII Guide'!AE:AE,0)),"") -> SNFF11 | K14: FII Sunofofi | L14: TVM | N14: 7 | O14: =LARGE('FII Guide'!$AM$9:$AM$200,$N14) -> 0.1904771932 | P14: =IFERROR(INDEX('FII Guide'!C:C,MATCH($O14,'FII Guide'!AM:AM,0)),"") -> KNCR11 | Q14: FII Kinea Ri | R14: TVM
B15: 8 | C15: =LARGE('FII Guide'!$AC$9:$AC$200,$B15) -> 0.009947161354 | D15: =IFERROR(INDEX('FII Guide'!C:C,MATCH($C15,'FII Guide'!AC:AC,0)),"") -> SNEL11 | E15: FII Suno El | F15: Outros | H15: 8 | I15: =LARGE('FII Guide'!$AE$9:$AE$200,$H15) -> 0.1135076674 | J15: =IFERROR(INDEX('FII Guide'!C:C,MATCH($I15,'FII Guide'!AE:AE,0)),"") -> VGIR11 | K15: FII Valrelll | L15: Não se aplica | N15: 8 | O15: =LARGE('FII Guide'!$AM$9:$AM$200,$N15) -> 0.1863849304 | P15: =IFERROR(INDEX('FII Guide'!C:C,MATCH($O15,'FII Guide'!AM:AM,0)),"") -> CYCR11 | Q15: FII Cyrela | R15: TVM
B16: 9 | C16: =LARGE('FII Guide'!$AC$9:$AC$200,$B16) -> 0.008477770114 | D16: =IFERROR(INDEX('FII Guide'!C:C,MATCH($C16,'FII Guide'!AC:AC,0)),"") -> AFHI11 | E16: FII Afhi Cri | F16: TVM | H16: 9 | I16: =LARGE('FII Guide'!$AE$9:$AE$200,$H16) -> 0.1120792651 | J16: =IFERROR(INDEX('FII Guide'!C:C,MATCH($I16,'FII Guide'!AE:AE,0)),"") -> TVRI11 | K16: FII Tivio Ri | L16: Híbrido | N16: 9 | O16: =LARGE('FII Guide'!$AM$9:$AM$200,$N16) -> 0.1745214695 | P16: =IFERROR(INDEX('FII Guide'!C:C,MATCH($O16,'FII Guide'!AM:AM,0)),"") -> KNHY11 | Q16: FII Kinea Hy | R16: TVM
B17: 10 | C17: =LARGE('FII Guide'!$AC$9:$AC$200,$B17) -> 0.008191556395 | D17: =IFERROR(INDEX('FII Guide'!C:C,MATCH($C17,'FII Guide'!AC:AC,0)),"") -> OUJP11 | E17: FII Ouri Jpp | F17: Híbrido | H17: 10 | I17: =LARGE('FII Guide'!$AE$9:$AE$200,$H17) -> 0.1092977906 | J17: =IFERROR(INDEX('FII Guide'!C:C,MATCH($I17,'FII Guide'!AE:AE,0)),"") -> HTMX11 | K17: FII Hotel Mx | L17: Hotel | N17: 10 | O17: =LARGE('FII Guide'!$AM$9:$AM$200,$N17) -> 0.1743494532 | P17: =IFERROR(INDEX('FII Guide'!C:C,MATCH($O17,'FII Guide'!AM:AM,0)),"") -> TVRI11 | Q17: FII Tivio Ri | R17: Híbrido
B19: ="Volume Médio 3M (R$ - milhares) até "&TEXT($D$2,"dd-mm-aa") -> Volume Médio 3M (R$ - milhares) até 17-09-24 | H19: ="Dividend Yield até "&TEXT($D$2,"dd-mm-aa") -> Dividend Yield até 17-09-24 | N19: ="P/VPA até "&TEXT($D$2,"dd-mm-aa") -> P/VPA até 17-09-24
B20: 1 | C20: =LARGE('FII Guide'!$U$9:$U$200,$B20) -> 13450.78728 | D20: =IFERROR(INDEX('FII Guide'!C:C,MATCH($C20,'FII Guide'!U:U,0)),"") -> XPML11 | E20: =_xll.ECONOMATICA(D20:D29,"Name (according to B3)",,,,,,,,"FALSE") -> FII Xp Malls | F20: =_xll.ECONOMATICA(D20:D29,"Fund focus",,,,,,,,"FALSE","Segmento") -> Shoppings | H20: 1 | I20: =LARGE('FII Guide'!$CQ$9:$CQ$200,$H20) -> 0.1969377877 | J20: =IFERROR(INDEX('FII Guide'!C:C,MATCH($I20,'FII Guide'!CQ:CQ,0)),"") -> HTMX11 | K20: =_xll.ECONOMATICA(J20:J29,"Name (according to B3)",,,,,,,,"FALSE") -> FII Hotel Mx | L20: =_xll.ECONOMATICA(J20:J29,"Fund focus",,,,,,,,"FALSE","Segmento") -> Hotel | N20: 1 | O20: =LARGE('FII Guide'!$BZ$9:$BZ$200,$N20) -> 1.472433782 | P20: =IFERROR(INDEX('FII Guide'!C:C,MATCH($O20,'FII Guide'!BZ:BZ,0)),"") -> HTMX11 | Q20: =_xll.ECONOMATICA(P20:P29,"Name (according to B3)",,,,,,,,"FALSE") -> FII Hotel Mx | R20: =_xll.ECONOMATICA(P20:P29,"Fund focus",,,,,,,,"FALSE","Segmento") -> Hotel
B21: 2 | C21: =LARGE('FII Guide'!$U$9:$U$200,$B21) -> 11602.71081 | D21: =IFERROR(INDEX('FII Guide'!C:C,MATCH($C21,'FII Guide'!U:U,0)),"") -> MXRF11 | E21: FII Maxi Ren | F21: TVM | H21: 2 | I21: =LARGE('FII Guide'!$CQ$9:$CQ$200,$H21) -> 0.1582446809 | J21: =IFERROR(INDEX('FII Guide'!C:C,MATCH($I21,'FII Guide'!CQ:CQ,0)),"") -> CACR11 | K21: Cartesia FII | L21: Híbrido | N21: 2 | O21: =LARGE('FII Guide'!$BZ$9:$BZ$200,$N21) -> 1.285940242 | P21: =IFERROR(INDEX('FII Guide'!C:C,MATCH($O21,'FII Guide'!BZ:BZ,0)),"") -> SNEL11 | Q21: FII Suno El | R21: Outros
B22: 3 | C22: =LARGE('FII Guide'!$U$9:$U$200,$B22) -> 11273.92664 | D22: =IFERROR(INDEX('FII Guide'!C:C,MATCH($C22,'FII Guide'!U:U,0)),"") -> KNCR11 | E22: FII Kinea Ri | F22: TVM | H22: 3 | I22: =LARGE('FII Guide'!$CQ$9:$CQ$200,$H22) -> 0.1571906355 | J22: =IFERROR(INDEX('FII Guide'!C:C,MATCH($I22,'FII Guide'!CQ:CQ,0)),"") -> VSLH11 | K22: FII Vers Cri | L22: TVM | N22: 3 | O22: =LARGE('FII Guide'!$BZ$9:$BZ$200,$N22) -> 1.077403 | P22: =IFERROR(INDEX('FII Guide'!C:C,MATCH($O22,'FII Guide'!BZ:BZ,0)),"") -> CACR11 | Q22: Cartesia FII | R22: Híbrido
B23: 4 | C23: =LARGE('FII Guide'!$U$9:$U$200,$B23) -> 10109.99951 | D23: =IFERROR(INDEX('FII Guide'!C:C,MATCH($C23,'FII Guide'!U:U,0)),"") -> BTLG11 | E23: FII Btlg | F23: Híbrido | H23: 4 | I23: =LARGE('FII Guide'!$CQ$9:$CQ$200,$H23) -> 0.1539594426 | J23: =IFERROR(INDEX('FII Guide'!C:C,MATCH($I23,'FII Guide'!CQ:CQ,0)),"") -> RZAT11 | K23: FII Arctium | L23: Outros | N23: 4 | O23: =LARGE('FII Guide'!$BZ$9:$BZ$200,$N23) -> 1.05282487 | P23: =IFERROR(INDEX('FII Guide'!C:C,MATCH($O23,'FII Guide'!BZ:BZ,0)),"") -> KNHY11 | Q23: FII Kinea Hy | R23: TVM
B24: 5 | C24: =LARGE('FII Guide'!$U$9:$U$200,$B24) -> 9622.672162 | D24: =IFERROR(INDEX('FII Guide'!C:C,MATCH($C24,'FII Guide'!U:U,0)),"") -> KNIP11 | E24: FII Kinea Ip | F24: Não se aplica | H24: 5 | I24: =LARGE('FII Guide'!$CQ$9:$CQ$200,$H24) -> 0.1526001705 | J24: =IFERROR(INDEX('FII Guide'!C:C,MATCH($I24,'FII Guide'!CQ:CQ,0)),"") -> RZAK11 | K24: FII Riza Akn | L24: TVM | N24: 5 | O24: =LARGE('FII Guide'!$BZ$9:$BZ$200,$N24) -> 1.043510923 | P24: =IFERROR(INDEX('FII Guide'!C:C,MATCH($O24,'FII Guide'!BZ:BZ,0)),"") -> ARRI11 | Q24: FII Atrio | R24: TVM
B25: 6 | C25: =LARGE('FII Guide'!$U$9:$U$200,$B25) -> 8912.544425 | D25: =IFERROR(INDEX('FII Guide'!C:C,MATCH($C25,'FII Guide'!U:U,0)),"") -> HGLG11 | E25: FII Hglg Pax | F25: Logistica | H25: 6 | I25: =LARGE('FII Guide'!$CQ$9:$CQ$200,$H25) -> 0.1477308959 | J25: =IFERROR(INDEX('FII Guide'!C:C,MATCH($I25,'FII Guide'!CQ:CQ,0)),"") -> MFII11 | K25: FII Merito I | L25: Híbrido | N25: 6 | O25: =LARGE('FII Guide'!$BZ$9:$BZ$200,$N25) -> 1.042386933 | P25: =IFERROR(INDEX('FII Guide'!C:C,MATCH($O25,'FII Guide'!BZ:BZ,0)),"") -> KNUQ11 | Q25: FII Kinea Un | R25: TVM
B26: 7 | C26: =LARGE('FII Guide'!$U$9:$U$200,$B26) -> 8460.0519 | D26: =IFERROR(INDEX('FII Guide'!C:C,MATCH($C26,'FII Guide'!U:U,0)),"") -> TRXF11 | E26: FII Trx Real | F26: Híbrido | H26: 7 | I26: =LARGE('FII Guide'!$CQ$9:$CQ$200,$H26) -> 0.1472868217 | J26: =IFERROR(INDEX('FII Guide'!C:C,MATCH($I26,'FII Guide'!CQ:CQ,0)),"") -> DEVA11 | K26: FII Devant | L26: TVM | N26: 7 | O26: =LARGE('FII Guide'!$BZ$9:$BZ$200,$N26) -> 1.040275348 | P26: =IFERROR(INDEX('FII Guide'!C:C,MATCH($O26,'FII Guide'!BZ:BZ,0)),"") -> KNCR11 | Q26: FII Kinea Ri | R26: TVM
B27: 8 | C27: =LARGE('FII Guide'!$U$9:$U$200,$B27) -> 7874.918001 | D27: =IFERROR(INDEX('FII Guide'!C:C,MATCH($C27,'FII Guide'!U:U,0)),"") -> VISC11 | E27: FII Vinci Sc | F27: Híbrido | H27: 8 | I27: =LARGE('FII Guide'!$CQ$9:$CQ$200,$H27) -> 0.1404250705 | J27: =IFERROR(INDEX('FII Guide'!C:C,MATCH($I27,'FII Guide'!CQ:CQ,0)),"") -> RBRX11 | K27: FII Rbr Mult | L27: Híbrido | N27: 8 | O27: =LARGE('FII Guide'!$BZ$9:$BZ$200,$N27) -> 1.027262741 | P27: =IFERROR(INDEX('FII Guide'!C:C,MATCH($O27,'FII Guide'!BZ:BZ,0)),"") -> MXRF11 | Q27: FII Maxi Ren | R27: TVM
B28: 9 | C28: =LARGE('FII Guide'!$U$9:$U$200,$B28) -> 7635.085115 | D28: =IFERROR(INDEX('FII Guide'!C:C,MATCH($C28,'FII Guide'!U:U,0)),"") -> CPTS11 | E28: FII Capi Sec | F28: TVM | H28: 9 | I28: =LARGE('FII Guide'!$CQ$9:$CQ$200,$H28) -> 0.1383952612 | J28: =IFERROR(INDEX('FII Guide'!C:C,MATCH($I28,'FII Guide'!CQ:CQ,0)),"") -> KIVO11 | K28: FII Kivo | L28: TVM | N28: 9 | O28: =LARGE('FII Guide'!$BZ$9:$BZ$200,$N28) -> 1.026114781 | P28: =IFERROR(INDEX('FII Guide'!C:C,MATCH($O28,'FII Guide'!BZ:BZ,0)),"") -> KNSC11 | Q28: FII Kinea Sc | R28: Não se aplica
B29: 10 | C29: =LARGE('FII Guide'!$U$9:$U$200,$B29) -> 6970.892692 | D29: =IFERROR(INDEX('FII Guide'!C:C,MATCH($C29,'FII Guide'!U:U,0)),"") -> TGAR11 | E29: FII Tg Ativo | F29: Híbrido | H29: 10 | I29: =LARGE('FII Guide'!$CQ$9:$CQ$200,$H29) -> 0.1376205106 | J29: =IFERROR(INDEX('FII Guide'!C:C,MATCH($I29,'FII Guide'!CQ:CQ,0)),"") -> URPR11 | K29: FII Urca Ren | L29: TVM | N29: 10 | O29: =LARGE('FII Guide'!$BZ$9:$BZ$200,$N29) -> 1.023215473 | P29: =IFERROR(INDEX('FII Guide'!C:C,MATCH($O29,'FII Guide'!BZ:BZ,0)),"") -> HGCR11 | Q29: FII Hgcr Paxci Er | R29: TVM
B31: ="Volatilidade 12M até "&TEXT($D$2,"dd-mm-aa") -> Volatilidade 12M até 17-09-24 | H31: ="Sharpe 12M até "&TEXT($D$2,"dd-mm-aa") -> Sharpe 12M até 17-09-24 | N31: ="Maiores Quedas 12M até "&TEXT($D$2,"dd-mm-aa") -> Maiores Quedas 12M até 17-09-24
B32: 1 | C32: =LARGE('FII Guide'!$AW$9:$AW$200,$B32) -> 0.3572359686 | D32: =IFERROR(INDEX('FII Guide'!C:C,MATCH($C32,'FII Guide'!AW:AW,0)),"") -> HCTR11 | E32: =_xll.ECONOMATICA(D32:D41,"Name (according to B3)",,,,,,,,"FALSE") -> FII Hectare | F32: =_xll.ECONOMATICA(D32:D41,"Fund focus",,,,,,,,"FALSE","Segmento") -> TVM | H32: 1 | I32: =LARGE('FII Guide'!$BG$9:$BG$200,$H32) -> 1.616030164 | J32: =IFERROR(INDEX('FII Guide'!C:C,MATCH($I32,'FII Guide'!BG:BG,0)),"") -> MFII11 | K32: =_xll.ECONOMATICA(J32:J41,"Name (according to B3)",,,,,,,,"FALSE") -> FII Merito I | L32: =_xll.ECONOMATICA(J32:J41,"Fund focus",,,,,,,,"FALSE","Segmento") -> Híbrido | N32: 1 | O32: =SMALL('FII Guide'!$AM$9:$AM$200,$N32) -> -0.3137016262 | P32: =IFERROR(INDEX('FII Guide'!C:C,MATCH($O32,'FII Guide'!AM:AM,0)),"") -> VINO11 | Q32: =_xll.ECONOMATICA(P32:P41,"Name (according to B3)",,,,,,,,"FALSE") -> FII Vinc Cor | R32: =_xll.ECONOMATICA(P32:P41,"Fund focus",,,,,,,,"FALSE","Segmento") -> Híbrido
B33: 2 | C33: =LARGE('FII Guide'!$AW$9:$AW$200,$B33) -> 0.3547498954 | D33: =IFERROR(INDEX('FII Guide'!C:C,MATCH($C33,'FII Guide'!AW:AW,0)),"") -> HTMX11 | E33: FII Hotel Mx | F33: Hotel | H33: 2 | I33: =LARGE('FII Guide'!$BG$9:$BG$200,$H33) -> 1.591013264 | J33: =IFERROR(INDEX('FII Guide'!C:C,MATCH($I33,'FII Guide'!BG:BG,0)),"") -> HTMX11 | K33: FII Hotel Mx | L33: Hotel | N33: 2 | O33: =SMALL('FII Guide'!$AM$9:$AM$200,$N33) -> -0.3080982165 | P33: =IFERROR(INDEX('FII Guide'!C:C,MATCH($O33,'FII Guide'!AM:AM,0)),"") -> BTRA11 | Q33: FII BTG Tagr | R33: Outros
B34: 3 | C34: =LARGE('FII Guide'!$AW$9:$AW$200,$B34) -> 0.3445264416 | D34: =IFERROR(INDEX('FII Guide'!C:C,MATCH($C34,'FII Guide'!AW:AW,0)),"") -> ZAVI11 | E34: FII Zavit R | F34: Híbrido | H34: 3 | I34: =LARGE('FII Guide'!$BG$9:$BG$200,$H34) -> 1.291056985 | J34: =IFERROR(INDEX('FII Guide'!C:C,MATCH($I34,'FII Guide'!BG:BG,0)),"") -> RZAT11 | K34: FII Arctium | L34: Outros | N34: 3 | O34: =SMALL('FII Guide'!$AM$9:$AM$200,$N34) -> -0.2375342762 | P34: =IFERROR(INDEX('FII Guide'!C:C,MATCH($O34,'FII Guide'!AM:AM,0)),"") -> BLMG11 | Q34: FII Blue Log | R34: Híbrido
B35: 4 | C35: =LARGE('FII Guide'!$AW$9:$AW$200,$B35) -> 0.2860756144 | D35: =IFERROR(INDEX('FII Guide'!C:C,MATCH($C35,'FII Guide'!AW:AW,0)),"") -> VSLH11 | E35: FII Vers Cri | F35: TVM | H35: 4 | I35: =LARGE('FII Guide'!$BG$9:$BG$200,$H35) -> 1.16934632 | J35: =IFERROR(INDEX('FII Guide'!C:C,MATCH($I35,'FII Guide'!BG:BG,0)),"") -> CACR11 | K35: Cartesia FII | L35: Híbrido | N35: 4 | O35: =SMALL('FII Guide'!$AM$9:$AM$200,$N35) -> -0.2156236972 | P35: =IFERROR(INDEX('FII Guide'!C:C,MATCH($O35,'FII Guide'!AM:AM,0)),"") -> BROF11 | Q35: FII Brof | R35: Híbrido
B36: 5 | C36: =LARGE('FII Guide'!$AW$9:$AW$200,$B36) -> 0.2814337125 | D36: =IFERROR(INDEX('FII Guide'!C:C,MATCH($C36,'FII Guide'!AW:AW,0)),"") -> BTRA11 | E36: FII BTG Tagr | F36: Outros | H36: 5 | I36: =LARGE('FII Guide'!$BG$9:$BG$200,$H36) -> 1.119648524 | J36: =IFERROR(INDEX('FII Guide'!C:C,MATCH($I36,'FII Guide'!BG:BG,0)),"") -> BPML11 | K36: FII BTG Shop | L36: Híbrido | N36: 5 | O36: =SMALL('FII Guide'!$AM$9:$AM$200,$N36) -> -0.1846242047 | P36: =IFERROR(INDEX('FII Guide'!C:C,MATCH($O36,'FII Guide'!AM:AM,0)),"") -> SARE11 | Q36: FII Sant Ren | R36: Híbrido
B37: 6 | C37: =LARGE('FII Guide'!$AW$9:$AW$200,$B37) -> 0.2723842742 | D37: =IFERROR(INDEX('FII Guide'!C:C,MATCH($C37,'FII Guide'!AW:AW,0)),"") -> MCHY11 | E37: FII Maua Hy | F37: Não se aplica | H37: 6 | I37: =LARGE('FII Guide'!$BG$9:$BG$200,$H37) -> 1.118622807 | J37: =IFERROR(INDEX('FII Guide'!C:C,MATCH($I37,'FII Guide'!BG:BG,0)),"") -> KNCR11 | K37: FII Kinea Ri | L37: TVM | N37: 6 | O37: =SMALL('FII Guide'!$AM$9:$AM$200,$N37) -> -0.1719072392 | P37: =IFERROR(INDEX('FII Guide'!C:C,MATCH($O37,'FII Guide'!AM:AM,0)),"") -> RECT11 | Q37: FII Rec Rend | R37: Híbrido
B38: 7 | C38: =LARGE('FII Guide'!$AW$9:$AW$200,$B38) -> 0.2597219751 | D38: =IFERROR(INDEX('FII Guide'!C:C,MATCH($C38,'FII Guide'!AW:AW,0)),"") -> DEVA11 | E38: FII Devant | F38: TVM | H38: 7 | I38: =LARGE('FII Guide'!$BG$9:$BG$200,$H38) -> 0.94889207 | J38: =IFERROR(INDEX('FII Guide'!C:C,MATCH($I38,'FII Guide'!BG:BG,0)),"") -> KNHY11 | K38: FII Kinea Hy | L38: TVM | N38: 7 | O38: =SMALL('FII Guide'!$AM$9:$AM$200,$N38) -> -0.1521430389 | P38: =IFERROR(INDEX('FII Guide'!C:C,MATCH($O38,'FII Guide'!AM:AM,0)),"") -> HGRE11 | Q38: FII Hgre Pax | R38: Lajes Corporativas
B39: 8 | C39: =LARGE('FII Guide'!$AW$9:$AW$200,$B39) -> 0.2419369492 | D39: =IFERROR(INDEX('FII Guide'!C:C,MATCH($C39,'FII Guide'!AW:AW,0)),"") -> VINO11 | E39: FII Vinc Cor | F39: Híbrido | H39: 8 | I39: =LARGE('FII Guide'!$BG$9:$BG$200,$H39) -> 0.8835530376 | J39: =IFERROR(INDEX('FII Guide'!C:C,MATCH($I39,'FII Guide'!BG:BG,0)),"") -> VSLH11 | K39: FII Vers Cri | L39: TVM | N39: 8 | O39: =SMALL('FII Guide'!$AM$9:$AM$200,$N39) -> -0.1328324197 | P39: =IFERROR(INDEX('FII Guide'!C:C,MATCH($O39,'FII Guide'!AM:AM,0)),"") -> JSRE11 | Q39: FII Js Real | R39: Híbrido
B40: 9 | C40: =LARGE('FII Guide'!$AW$9:$AW$200,$B40) -> 0.2310919267 | D40: =IFERROR(INDEX('FII Guide'!C:C,MATCH($C40,'FII Guide'!AW:AW,0)),"") -> SARE11 | E40: FII Sant Ren | F40: Híbrido | H40: 9 | I40: =LARGE('FII Guide'!$BG$9:$BG$200,$H40) -> 0.7768793909 | J40: =IFERROR(INDEX('FII Guide'!C:C,MATCH($I40,'FII Guide'!BG:BG,0)),"") -> CYCR11 | K40: FII Cyrela | L40: TVM | N40: 9 | O40: =SMALL('FII Guide'!$AM$9:$AM$200,$N40) -> -0.12771379 | P40: =IFERROR(INDEX('FII Guide'!C:C,MATCH($O40,'FII Guide'!AM:AM,0)),"") -> VIUR11 | Q40: FII Vinci Ub | R40: Outros
B41: 10 | C41: =LARGE('FII Guide'!$AW$9:$AW$200,$B41) -> 0.2290835696 | D41: =IFERROR(INDEX('FII Guide'!C:C,MATCH($C41,'FII Guide'!AW:AW,0)),"") -> RBRP11 | E41: FII Rbr Prop | F41: Lajes Corporativas | H41: 10 | I41: =LARGE('FII Guide'!$BG$9:$BG$200,$H41) -> 0.7141063191 | J41: =IFERROR(INDEX('FII Guide'!C:C,MATCH($I41,'FII Guide'!BG:BG,0)),"") -> VGIR11 | K41: FII Valrelll | L41: Não se aplica | N41: 10 | O41: =SMALL('FII Guide'!$AM$9:$AM$200,$N41) -> -0.126134166 | P41: =IFERROR(INDEX('FII Guide'!C:C,MATCH($O41,'FII Guide'!AM:AM,0)),"") -> VILG11 | Q41: FII Vincilog | R41: Logistica

Sheet FII Guide
B2: Data: | C2: ='TOP 10'!D2 -> 2024-09-17 | H2: ← Não Modificar
B3: Benchmark: | C3: IBXX - Índice Brasil 100 | H3: ← Não Modificar
B4: FILTROS: | C4: ="Fund type (classific BM&FBovespa)=FII - Fundos de Investimento Imobiliário" -> Fund type (classific BM&FBovespa)=FII - Fundos de Investimento Imobiliário | H4: ← Não Modificar
C5: ="Partic in IFIX>0" -> Partic in IFIX>0 | H5: ← Não Modificar | N5: COTAÇÕES | AA5: RETORNOS | AY5: ESTATÍSTICAS | BO5: PREÇO / VALOR PATRIMONIAL | CE5: DIVIDENDOS PAGOS e DIVIDEND YIELD [destaque para o primeiro quartil (25%)]
N6: ↓ Escolha a Janela de Período (Ex.: 1D = 1Dia, 1W = 1Semana, 1M = 1Mês, 1Q = 1Trimestre, 1Y = 1Ano) | AA6: =_xll.ECONOMATICA($AB$6,"RETURN","1D",$C$2,,,,"DECIMAL") -> -0.00119008078 | AB6: =LEFT(C3,4)&"<XBSP>" -> IBXX<XBSP> | AC6: =_xll.ECONOMATICA($AB$6,"RETURN","IN THE MONTH",$C$2,,,,"DECIMAL") -> -0.007237518987 | AD6: =$AB$6 -> IBXX<XBSP> | AE6: =_xll.ECONOMATICA($AB$6,"RETURN","IN THE YEAR",$C$2,,,,"DECIMAL") -> 0.0105612757 | AF6: =$AB$6 -> IBXX<XBSP> | AG6: =_xll.ECONOMATICA($AB$6,"RETURN",AG7,$C$2,,,,"DECIMAL") -> 0.008678634489 | AH6: =$AB$6 -> IBXX<XBSP> | AI6: =_xll.ECONOMATICA($AB$6,"RETURN",AI7,$C$2,,,,"DECIMAL") -> 0.1346008119 | AJ6: =$AB$6 -> IBXX<XBSP> | AK6: =_xll.ECONOMATICA($AB$6,"RETURN",AK7,$C$2,,,,"DECIMAL") -> 0.06855535477 | AL6: =$AB$6 -> IBXX<XBSP> | AM6: =_xll.ECONOMATICA($AB$6,"RETURN",AM7,$C$2,,,,"DECIMAL") -> 0.1405133988 | AN6: =$AB$6 -> IBXX<XBSP> | AO6: =_xll.ECONOMATICA($AB$6,"RETURN",AO7,$C$2,,,,"DECIMAL") -> 0.226562967 | AP6: =$AB$6 -> IBXX<XBSP> | AQ6: =_xll.ECONOMATICA($AB$6,"RETURN",AQ7,$C$2,,,,"DECIMAL") -> 0.1978374764 | AR6: =$AB$6 -> IBXX<XBSP> | AS6: =_xll.ECONOMATICA($AB$6,"RETURN",AS7,$C$2,,,,"DECIMAL") -> 0.3442261765 | AT6: =$AB$6 -> IBXX<XBSP> | AU6: =_xll.ECONOMATICA($AB$6,"RETURN",AU7,$C$2,,,,"DECIMAL") -> 0.2993081614 | AV6: =$AB$6 -> IBXX<XBSP> | AW6: =_xll.ECONOMATICA($AB$6,"VOLATILITY",AW7,$C$2,,,,"DECIMAL") -> 0.1273993938 | AY6: ↓ Escolha o intervalo (D = Dia, W = Semana, M = Mês, Q = Trimestre, Y = Ano)
N7: 12M | AA7: NO DIA | AC7: NO MÊS | AE7: NO ANO | AG7: 1M | AI7: 3M | AK7: 6M | AM7: 12M | AO7: 24M | AQ7: 36M | AS7: 48M | AU7: 60M | AW7: 12M | AY7: 12M | BO7: =EOMONTH(BP7,-6) -> 2018-12-31 | BP7: 2019-06-30 | BQ7: 2019-12-31 | BR7: 2020-06-30 | BS7: 2020-12-31 | BT7: 2021-06-30 | BU7: 2021-12-31 | BV7: 2022-06-30 | BW7: 2022-12-31 | BX7: 2023-06-30 | BY7: =DATE(YEAR($C$2)-1,12,31) -> 2023-12-31 | BZ7: Atual | CA7: Máximo | CB7: % Máx | CE7: =EOMONTH(CG7,-12) -> 2018-12-31 | CG7: =EOMONTH(CI7,-12) -> 2019-12-31 | CI7: =EOMONTH(CK7,-12) -> 2020-12-31 | CK7: =EOMONTH(CM7,-12) -> 2021-12-31 | CM7: =EOMONTH(CO7,-12) -> 2022-12-31 | CO7: =DATE(YEAR($C$2)-1,12,31) -> 2023-12-31 | CQ7: Atual | CS7: Média | CT7: Máximo | CU7: Mínimo
B8: =_xll.ECOSECURITIES(,"active",,"BRA","XBSP",,"Código B3",C4:C5) -> Código B3 | C8: =_xll.ECONOMATICA($B$9:$B$201,"ticker") -> Código | D8: =_xll.ECONOMATICA($B$9:$B$201,"Name (according to B3)") -> Nome (conforme B3) | E8: Codigo Anbima | F8: =_xll.ECONOMATICA($E$9:$E$201,"ticker") ->  | G8: =_xll.ECONOMATICA($B$9:$B$201,"Complete name",,,,,,,,,"Nome (Conforme Anbima)") -> Nome (Conforme Anbima) | H8: =_xll.ECONOMATICA($B$9:$B$201,"Employer ID Number",,,,,,,,,"CNPJ") -> CNPJ | I8: =_xll.ECONOMATICA($B$9:$B$201,"Fund focus",,,,,,,,,"Segmento") -> Segmento | J8: =_xll.ECONOMATICA($B$9:$B$201,"Fund manager") -> Empresa gestora | K8: =_xll.ECONOMATICA($B$9:$B$201,"Administrator") -> Administradora | L8: =_xll.ECONOMATICA($E$9:$E$201,"Tot Invest",,"LATEST",,,,,,,"Qtd. Cotistas") ->  | M8: =_xll.ECONOMATICA($B$9:$B$201,"Partic in IFIX",,,,,,"decimal",,,"Participação IFIX %") -> Participação IFIX % | N8: =_xll.ECONOMATICA($B$9:$B$201,"MarketCapitaliz",,$C$2,,,,"thousands",,,"Mkt Cap (R$ Milhares)") -> Mkt Cap (R$ Milhares) | O8: =_xll.ECONOMATICA($B$9:$B$201,"date of last quote",,,,,,,,,"Última Cotação") -> Última Cotação | P8: =_xll.ECONOMATICA($B$9:$B$201,"Close",,$C$2,,,,,,,"Fechamento (R$)") -> Fechamento (R$) | Q8: =_xll.ECONOMATICA($B$9:$B$201,"Max of the Serie",$N$7,$C$2,,,,,,,"Máximo (R$)",) -> Máximo (R$) | R8: % do Máximo | S8: =_xll.ECONOMATICA($B$9:$B$201,"Max of the Serie",$N$7,$C$2,,,,,,,"Data do Máximo",{"std.tec.cals=0";"std.tec.dtovlr=true"}) -> Data do Máximo | T8: =_xll.ECONOMATICA($B$9:$B$201,"Volume$","1d",$C$2,,,,"thousands",,,"Volume (R$-Milhares)") -> Volume (R$-Milhares) | U8: =_xll.ECONOMATICA($B$9:$B$201,"Hist Average",$N$7,$C$2,,,,"thousands",,,"Volume Médio (R$-Milhares)",{"std.tec.cals=7"}) -> Volume Médio (R$-Milhares) | V8: % da Média | W8: =_xll.ECONOMATICA($B$9:$B$201,"#Trades","1d",$C$2,,,,,,,"Negócios") -> Negócios | X8: =_xll.ECONOMATICA($B$9:$B$201,"Hist Average",$N$7,$C$2,,,,,,,"Negócios Médio",{"std.tec.cals=5"}) -> Negócios Médio | Y8: % da Média | AA8: =_xll.ECONOMATICA($B$9:$B$201,"RETURN","1D",$C$2,,,,"DECIMAL",,,"% dia") -> % dia | AB8: Δ BMK | AC8: =_xll.ECONOMATICA($B$9:$B$201,"RETURN","in the month",$C$2,,,,"DECIMAL",,,"% Mês") -> % Mês | AD8: Δ BMK | AE8: =_xll.ECONOMATICA($B$9:$B$201,"RETURN","in the year",$C$2,,,,"DECIMAL",,,"% Ano") -> % Ano | AF8: Δ BMK | AG8: =_xll.ECONOMATICA($B$9:$B$201,"RETURN",AG7,$C$2,,,,"DECIMAL",,,"% 1M") -> % 1M | AH8: Δ BMK | AI8: =_xll.ECONOMATICA($B$9:$B$201,"RETURN",AI7,$C$2,,,,"DECIMAL",,,"% 3M") -> % 3M | AJ8: Δ BMK | AK8: =_xll.ECONOMATICA($B$9:$B$201,"RETURN",AK7,$C$2,,,,"DECIMAL",,,"% 6M") -> % 6M | AL8: Δ BMK | AM8: =_xll.ECONOMATICA($B$9:$B$201,"RETURN",AM7,$C$2,,,,"DECIMAL",,,"% 12M") -> % 12M | AN8: Δ BMK | AO8: =_xll.ECONOMATICA($B$9:$B$201,"RETURN",AO7,$C$2,,,,"DECIMAL",,,"% 24M") -> % 24M | AP8: Δ BMK | AQ8: =_xll.ECONOMATICA($B$9:$B$201,"RETURN",AQ7,$C$2,,,,"DECIMAL",,,"% 36M") -> % 36M | AR8: Δ BMK | AS8: =_xll.ECONOMATICA($B$9:$B$201,"RETURN",AS7,$C$2,,,,"DECIMAL",,,"% 48M") -> % 48M | AT8: Δ BMK | AU8: =_xll.ECONOMATICA($B$9:$B$201,"RETURN",AU7,$C$2,,,,"DECIMAL",,,"% 60M") -> % 60M | AV8: Δ BMK | AW8: =_xll.ECONOMATICA($B$9:$B$201,"volatility",$AW$7,$C$2,,,,"decimal",,,"Volatilidade") -> Volatilidade | AY8: =_xll.ECONOMATICA($B$9:$B$201,"Return M",$AY$7,$C$2,,,,"decimal",,,"Maior Retorno Diário",{"jtc.per=0";"std.tec.dret.per=0"}) -> Maior Retorno Diário | AZ8: =_xll.ECONOMATICA($B$9:$B$201,"Return M",$AY$7,$C$2,,,,"decimal",,,"Menor Retorno Diário",{"jtc.per=0";"std.tec.dret.per=0";"std.tec.dret.mom=true"}) -> Menor Retorno Diário | BA8: =_xll.ECONOMATICA($B$9:$B$201,"Return M",$AY$7,$C$2,,,,"decimal",,,"Maior Retorno Mensal",) -> Maior Retorno Mensal | BB8: =_xll.ECONOMATICA($B$9:$B$201,"Return M",$AY$7,$C$2,,,,"decimal",,,"Menor Retorno Mensal",{"std.tec.dret.mom=true"}) -> Menor Retorno Mensal | BC8: =_xll.ECONOMATICA($B$9:$B$201,"Number Return",$AY$7,$C$2,,,,,,,"Meses Positivos",{"std.tec.dret.noprc=true"}) -> Meses Positivos | BD8: =_xll.ECONOMATICA($B$9:$B$201,"Number Return",$AY$7,$C$2,,,,,,,"Meses Negativos",{"std.tec.dret.cmp=-1";"std.tec.dret.noprc=true"}) -> Meses Negativos | BE8: =_xll.ECONOMATICA($B$9:$B$201,"Number Premium",$AY$7,$C$2,,,,,,,"Meses Acima IFIX",{"std.tec.stt.bmk=0:58141,1:0,2:79083,3:0,4:0,5:0,6:0,7:0,8:0,9:0,10:0,11:0,12:0,13:0,14:0,15:0,16:0,17:0,18:0,19:0,20:0,21:0,22:0,23:0,24:0,25:0,26:0,27:0,28:0,29:0,30:0,31:0,";"std.tec.stt.bmk=32:0,33:0,34:0,35:0,36:0,37:0,38:0,39:0,40:0,41:0,42:0,43:0,44:0,45:0,46:0,47:0,48:0,49:0,50:0,51:0,52:0,53:0,54:0,55:0,56:0,57:0,58:0,59:0,60:0,61:0,62:0,63:0,64:0,65:0,66:0,67:0,68:0,69:0,70:0,71:0,72:0,73:0,74:0,75:0,76:0,77:0,78:0,79:0";"std.tec.dret.noprc=true"}) -> Meses Acima IFIX | BF8: =_xll.ECONOMATICA($B$9:$B$201,"Number Premium",$AY$7,$C$2,,,,,,,"Meses Abaixo IFIX",{"std.tec.stt.bmk=0:58141,1:0,2:79083,3:0,4:0,5:0,6:0,7:0,8:0,9:0,10:0,11:0,12:0,13:0,14:0,15:0,16:0,17:0,18:0,19:0,20:0,21:0,22:0,23:0,24:0,25:0,26:0,27:0,28:0,29:0,30:0,31:0,";"std.tec.stt.bmk=32:0,33:0,34:0,35:0,36:0,37:0,38:0,39:0,40:0,41:0,42:0,43:0,44:0,45:0,46:0,47:0,48:0,49:0,50:0,51:0,52:0,53:0,54:0,55:0,56:0,57:0,58:0,59:0,60:0,61:0,62:0,63:0,64:0,65:0,66:0,67:0,68:0,69:0,70:0,71:0,72:0,73:0,74:0,75:0,76:0,77:0,78:0,79:0";"std.tec.dret.cmp=-1";"std.tec.dret.noprc=true"}) -> Meses Abaixo IFIX | BG8: =_xll.ECONOMATICA($B$9:$B$201,"Sharpe",$AY$7,$C$2,,,,,,,"Sharpe") -> Sharpe | BH8: =_xll.ECONOMATICA($B$9:$B$201,"VAR %",$AY$7,$C$2,,,,"decimal",,,"VaR 95%") -> VaR 95% | BI8: =_xll.ECONOMATICA($B$9:$B$201,"MaxLoss",$AY$7,$C$2,,,,"decimal",,,"Perda Máxima") -> Perda Máxima | BJ8: =_xll.ECONOMATICA($B$9:$B$201,"MaxLoss",$AY$7,$C$2,,,,,,,"Pico",{"std.tec.tpmdd=2"}) -> Pico | BK8: =_xll.ECONOMATICA($B$9:$B$201,"MaxLoss",$AY$7,$C$2,,,,,,,"Fundo",{"std.tec.tpmdd=3"}) -> Fundo | BL8: =_xll.ECONOMATICA($B$9:$B$201,"MaxLoss",$AY$7,$C$2,,,,,,,"Dias de Recuperação",{"std.tec.tpmdd=1"}) -> Dias de Recuperação | BM8: =_xll.ECONOMATICA($B$9:$B$201,"MaxLoss",$AY$7,$C$2,,,,,,,"Recuperação",{"std.tec.tpmdd=4"}) -> Recuperação | BO8: =_xll.ECONOMATICA($B$9:$B$201,"P/BV",,BO7,,,,,,,"P/VPA") -> P/VPA | BP8: =_xll.ECONOMATICA($B$9:$B$201,"P/BV",,BP7,,,,,,,"P/VPA") -> P/VPA | BQ8: =_xll.ECONOMATICA($B$9:$B$201,"P/BV",,BQ7,,,,,,,"P/VPA") -> P/VPA | BR8: =_xll.ECONOMATICA($B$9:$B$201,"P/BV",,BR7,,,,,,,"P/VPA") -> P/VPA | BS8: =_xll.ECONOMATICA($B$9:$B$201,"P/BV",,BS7,,,,,,,"P/VPA") -> P/VPA | BT8: =_xll.ECONOMATICA($B$9:$B$201,"P/BV",,BT7,,,,,,,"P/VPA") -> P/VPA | BU8: =_xll.ECONOMATICA($B$9:$B$201,"P/BV",,BU7,,,,,,,"P/VPA") -> P/VPA | BV8: =_xll.ECONOMATICA($B$9:$B$201,"P/BV",,BV7,,,,,,,"P/VPA") -> P/VPA | BW8: =_xll.ECONOMATICA($B$9:$B$201,"P/BV",,BW7,,,,,,,"P/VPA") -> P/VPA | BX8: =_xll.ECONOMATICA($B$9:$B$201,"P/BV",,BX7,,,,,,,"P/VPA") -> P/VPA | BY8: =_xll.ECONOMATICA($B$9:$B$201,"P/BV",,BY7,,,,,,,"P/VPA") -> P/VPA | BZ8: =_xll.ECONOMATICA($B$9:$B$201,"P/BV",,C2,,,,,,,"P/VPA Atual") -> P/VPA Atual | CE8: =_xll.ECONOMATICA($B$9:$B$201,"Div Yld (start)","12m",CE7,,,,"DECIMAL",,,"Dividend Yield %") -> Dividend Yield % | CF8: =_xll.ECONOMATICA($B$9:$B$201,"Divid per Share","12m",CE7,,,,,,,"Dividendo por Ação (R$)") -> Dividendo por Ação (R$) | CG8: =_xll.ECONOMATICA($B$9:$B$201,"Div Yld (start)","12m",CG7,,,,"DECIMAL",,,"Dividend Yield %") -> Dividend Yield % | CH8: =_xll.ECONOMATICA($B$9:$B$201,"Divid per Share","12m",CG7,,,,,,,"Dividendo por Ação (R$)") -> Dividendo por Ação (R$) | CI8: =_xll.ECONOMATICA($B$9:$B$201,"Div Yld (start)","12m",CI7,,,,"DECIMAL",,,"Dividend Yield %") -> Dividend Yield % | CJ8: =_xll.ECONOMATICA($B$9:$B$201,"Divid per Share","12m",CI7,,,,,,,"Dividendo por Ação (R$)") -> Dividendo por Ação (R$) | CK8: =_xll.ECONOMATICA($B$9:$B$201,"Div Yld (start)","12m",CK7,,,,"DECIMAL",,,"Dividend Yield %") -> Dividend Yield % | CL8: =_xll.ECONOMATICA($B$9:$B$201,"Divid per Share","12m",CK7,,,,,,,"Dividendo por Ação (R$)") -> Dividendo por Ação (R$) | CM8: =_xll.ECONOMATICA($B$9:$B$201,"Div Yld (start)","12m",CM7,,,,"DECIMAL",,,"Dividend Yield %") -> Dividend Yield % | CN8: =_xll.ECONOMATICA($B$9:$B$201,"Divid per Share","12m",CM7,,,,,,,"Dividendo por Ação (R$)") -> Dividendo por Ação (R$) | CO8: =_xll.ECONOMATICA($B$9:$B$201,"Div Yld (start)","12m",CO7,,,,"DECIMAL",,,"Dividend Yield %") -> Dividend Yield % | CP8: =_xll.ECONOMATICA($B$9:$B$201,"Divid per Share","12m",CO7,,,,,,,"Dividendo por Ação (R$)") -> Dividendo por Ação (R$) | CQ8: =_xll.ECONOMATICA($B$9:$B$201,"Div Yld (start)","12m",$C$2,,,,"DECIMAL",,,"Dividend Yield %") -> Dividend Yield % | CR8: =_xll.ECONOMATICA($B$9:$B$201,"Divid per Share","12m",$C$2,,,,,,,"Dividendo por Ação (R$)") -> Dividendo por Ação (R$)
B9: AFHI11<XBSP> | C9: AFHI11 | D9: FII Afhi Cri | E9: =IF(B9="","",VLOOKUP(H9,'Base FII Guide'!$B$5:$C$40000,2,0)) -> 583146<BraNa> | F9: 583146 | G9: Af Invest Cri FII Rec Imob-Unica | H9: 36642293000158 | I9: TVM | J9: Af Invest Real Estate Adm de Rec Ltda | K9: BTG Pactual Servicos Financeiros SA Dtvm | L9: 40791 | M9: 0.00308 | N9: 441530.4966 | O9: 2024-09-17 | P9: 96.92 | Q9: 96.92 | R9: =IFERROR(P9/Q9,"") -> 1 | S9: 2024-09-17 | T9: 573.02803 | U9: 1217.202025 | V9: =IFERROR(T9/U9,"") -> 0.470774792 | W9: 1026 | X9: 2296.306773 | Y9: =IFERROR(W9/X9,"") -> 0.4468044131 | AA9: 0.002067824649 | AB9: =IF(AA9="","",AA9-AA$6) -> 0.003257905429 | AC9: 0.008477770114 | AD9: =IF(AC9="","",AC9-AC$6) -> 0.0157152891 | AE9: 0.06142949165 | AF9: =IF(AE9="","",AE9-AE$6) -> 0.05086821595 | AG9: 0.01066513152 | AH9: =IF(AG9="","",AG9-AG$6) -> 0.001986497036 | AI9: 0.03622353124 | AJ9: =IF(AI9="","",AI9-AI$6) -> -0.09837728064 | AK9: 0.05297361051 | AL9: =IF(AK9="","",AK9-AK$6) -> -0.01558174426 | AM9: 0.1273488238 | AN9: =IF(AM9="","",AM9-AM$6) -> -0.01316457493 | AO9: 0.2727467061 | AP9: =IF(AO9="","",AO9-AO$6) -> 0.04618373907 | AQ9: 0.6072516672 | AR9: =IF(AQ9="","",AQ9-AQ$6) -> 0.4094141908 | AT9: =IF(AS9="","",AS9-AS$6) ->  | AV9: =IF(AU9="","",AU9-AU$6) ->  | AW9: 0.05353797724 | AY9: 0.02176356391 | AZ9: -0.01232604374 | BA9: 0.0603097297 | BB9: -0.003000000001 | BC9: 11 | BD9: 1 | BE9: 8 | BF9: 4 | BG9: 0.2977359589 | BH9: 0.005541027653 | BI9: -0.02381930185 | BJ9: 2023-10-16 | BK9: 2023-11-01 | BL9: 1900-02-06 | BM9: 2023-12-08 | BT9: 0.9333236871 | BU9: 0.9976639713 | BV9: 1.039025237 | BW9: 1.000263556 | BX9: 1.008605459 | BY9: 1.041327764 | BZ9: 1.007433443 | CA9: =IF(B9="","",IF(MAX(BO9:BZ9)=0,"-x-",MAX(BV9:BZ9))) -> 1.041327764 | CB9: =IF(B9="","",IFERROR(BZ9/CA9,"-x-")) -> 0.9674508622 | CC9: =IF(B9="","",IFERROR(BZ9/CA9,"-x-")) -> 0.9674508622 | CM9: 0.150305499 | CN9: 14.76 | CO9: 0.1334736842 | CP9: 12.68 | CQ9: 0.130788228 | CR9: 12.71 | CS9: =IFERROR(AVERAGE(CE9,CG9,CI9,CK9,CM9,CO9,CQ9),"") -> 0.1381891371 | CT9: =IF(MAX(CE9,CG9,CI9,CK9,CM9,CO9,CQ9)=0,"",MAX(CE9,CG9,CI9,CK9,CM9,CO9,CQ9)) -> 0.150305499 | CU9: =IF(SUM(CE9:CR9)<>0,MIN(CE9,CG9,CI9,CK9,CM9,CO9,CQ9),"") -> 0.130788228
B10: AJFI11<XBSP> | C10: AJFI11 | D10: FII Aj Malls | E10: =IF(B10="","",VLOOKUP(H10,'Base FII Guide'!$B$5:$C$40000,2,0)) -> 729698<BraNa> | F10: 729698 | G10: Aj Malls FII-Unica | H10: 51472985000199 | I10: Shoppings | J10: Capitania Capital | K10: Xp Investimentos Cctvm | L10: 13611 | M10: 0.00178 | N10: 255221.6425 | O10: 2024-09-17 | P10: 8.07 | T10: 431.17078 | W10: 2393 | AA10: -0.002472187885 | AB10: =IF(AA10="","",AA10-AA$6) -> -0.001282107105 | AC10: -0.02541895266 | AD10: -0.01818143367 | AE10: -0.1065771065 | AF10: -0.1171383822 | AG10: -0.01240876877 | AH10: -0.02108740326 | AI10: -0.01850349814 | AJ10: -0.15310431 | AK10: -0.1338198433 | AL10: -0.2023751981 | AY10: 0.04825090471 | AZ10: -0.0333716916 | BA10: 0.05679357633 | BB10: -0.1032577187 | BI10: -0.1637997969 | BJ10: 2024-03-22 | BK10: 2024-06-28 | BY10: 1.008622546 | BZ10: 0.6584692006 | CA10: 1.008622546 | CB10: 0.6528400574 | CC10: 0.6528400574 | CS10: =IFERROR(AVERAGE(CE10,CG10,CI10,CK10,CM10,CO10,CQ10),"") ->  | CT10: =IF(MAX(CE10,CG10,CI10,CK10,CM10,CO10,CQ10)=0,"",MAX(CE10,CG10,CI10,CK10,CM10,CO10,CQ10)) ->  | CU10: =IF(SUM(CE10:CR10)<>0,MIN(CE10,CG10,CI10,CK10,CM10,CO10,CQ10),"") -> 
B11: ALZR11<XBSP> | C11: ALZR11 | D11: FII Alianza | E11: =IF(B11="","",VLOOKUP(H11,'Base FII Guide'!$B$5:$C$40000,2,0)) -> 464988<BraNa> | F11: 464988 | G11: Alianza Trust Renda Imobiliaria - Fundo de Investimento Imob | H11: 28737771000185 | I11: Híbrido | J11: Alianza Gestao de Recursos | K11: BTG Pactual Servicos Financeiros SA Dtvm | L11: 153681 | M11: 0.00916 | N11: 1312405.927 | O11: 2024-09-17 | P11: 107.34 | Q11: 112.6169608 | R11: 0.9531423976 | S11: 2024-04-02 | T11: 1214.78566 | U11: 1819.134492 | V11: 0.6677822149 | W11: 2012 | X11: 2411.426295 | Y11: 0.8343609773 | AA11: 0.002240896358 | AB11: 0.003430977138 | AC11: -0.00343514994 | AD11: 0.003802369047 | AE11: -0.02240387604 | AF11: -0.03296515174 | AG11: -0.001046974244 | AH11: -0.009725608733 | AI11: 0.002633558039 | AJ11: -0.1319672538 | AK11: -0.03654736829 | AL11: -0.1051027231 | AM11: 0.01583011768 | AN11: -0.1246832811 | AO11: 0.1493677694 | AP11: -0.07719519756 | AQ11: 0.2974454581 | AR11: 0.09960798165 | AS11: 0.1600977174 | AT11: -0.1841284591 | AU11: 0.6957900717 | AV11: 0.3964819103 | AW11: 0.07888580448 | AY11: 0.02944028206 | AZ11: -0.02687986171 | BA11: 0.03659582635 | BB11: -0.03694508722 | BC11: 6 | BD11: 6 | BE11: 6 | BF11: 6 | BG11: -1.058325754 | BH11: 0.008144864584 | BI11: -0.05493012476 | BJ11: 2024-04-02 | BK11: 2024-06-13 | BO11: 1.016447945 | BP11: 1.090940856 | BQ11: 1.530872333 | BR11: 1.331783663 | BS11: 1.254976193 | BT11: 1.083263207 | BU11: 1.04889716 | BV11: 1.110999253 | BW11: 1.038568627 | BX11: 1.081284302 | BY11: 1.116250905 | BZ11: 1.011540009 | CA11: 1.116250905 | CB11: 0.906194122 | CC11: 0.906194122 | CG11: 0.06980733891 | CH11: 6.910926552 | CI11: 0.04432115323 | CJ11: 6.421691892 | CK11: 0.0571654452 | CL11: 7.357192797 | CM11: 0.1236819024 | CN11: 14.07871096 | CO11: 0.08830070929 | CP11: 9.802261738 | CQ11: 0.08067888735 | CR11: 9.398283587 | CS11: 0.07732590607 | CT11: 0.1236819024 | CU11: 0.04432115323
B12: AIEC11<XBSP> | C12: AIEC11 | D12: FII Autonomy | E12: =IF(B12="","",VLOOKUP(H12,'Base FII Guide'!$B$5:$C$40000,2,0)) -> 552836<BraNa> | F12: 552836 | G12: Autonomy Edifícios Corporativos Fundo de Investimento Imobil | H12: 35765826000126 | I12: Lajes Corporativas | J12: Autonomy Investimentos Ai Real Estate | K12: Maf Dtvm | L12: 18019 | M12: 0.00181 | N12: 259729.0502 | O12: 2024-09-17 | P12: 53.83 | Q12: 59.45821236 | R12: 0.9053417159 | S12: 2023-09-21 | T12: 372.23493 | U12: 549.4039674 | V12: 0.6775250127 | W12: 560 | X12: 858.2151394 | Y12: 0.6525170371 | AA12: -0.0005569996283 | AB12: 0.000633081152 | AC12: -0.01931134997 | AD12: -0.01207383099 | AE12: 0.05690037413 | AF12: 0.04633909843 | AG12: -0.01274384227 | AH12: -0.02142247676 | AI12: 0.06334152375 | AJ12: -0.07125928813 | AK12: 0.1669984141 | AL12: 0.09844305933 | AM12: -0.0735513438 | AN12: -0.2140647426 | AO12: -0.08993141007 | AP12: -0.316494377 | AQ12: 0.013725776 | AR12: -0.1841117004 | AW12: 0.1350684321 | AY12: 0.03263032232 | AZ12: -0.04563462949 | BA12: 0.06277755349 | BB12: -0.1113506854 | BC12: 7 | BD12: 5 | BE12: 6 | BF12: 6 | BG12: -1.182271479 | BH12: 0.01391709926 | BI12: -0.2345627938 | BJ12: 2023-09-21 | BK12: 2024-02-27 | BS12: 0.942355221 | BT12: 0.8198911051 | BU12: 0.7160944124 | BV12: 0.7557262748 | BW12: 0.7285707777 | BX12: 0.748901021 | BY12: 0.6914467114 | BZ12: 0.6364324526 | CA12: 0.7557262748 | CB12: 0.8421467849 | CC12: 0.8421467849 | CK12: 0.07448611994 | CL12: 7.03 | CM12: 0.1251200439 | CN12: 9.12 | CO12: 0.1344488478 | CP12: 9.16 | CQ12: 0.1297653959 | CR12: 8.85 | CS12: 0.1159551019 | CT12: 0.1344488478 | CU12: 0.07448611994
B13: BCRI11<XBSP> | C13: BCRI11 | D13: FII Bees Cri | E13: =IF(B13="","",VLOOKUP(H13,'Base FII Guide'!$B$5:$C$40000,2,0)) -> 404421<BraNa> | F13: 404421 | G13: Banestes Recebíveis Imobiliários Fundo de Investimento Imobi | H13: 22219335000138 | I13: TVM | J13: Banestes Dtvm | K13: Brl Dtvm | L13: 44300 | M13: 0.00298 | N13: 427037.2535 | O13: 2024-09-17 | P13: 68.24 | Q13: 70.3790521 | R13: 0.9696066935 | S13: 2024-02-28 | T13: 564.45939 | U13: 556.3600519 | V13: 1.014557728 | W13: 579 | X13: 1016.342629 | Y13: 0.5696897712 | AA13: -0.006551171931 | AB13: -0.005361091151 | AC13: -0.01798819974 | AD13: -0.01075068076 | AE13: 0.007847421774 | AF13: -0.002713853926 | AG13: 0.01747132731 | AH13: 0.008792692825 | AI13: 0.06720008828 | AJ13: -0.0674007236 | AK13: 0.01212169865 | AL13: -0.05643365612 | AM13: 0.1102162215 | AN13: -0.03029717723 | AO13: -0.1590272282 | AP13: -0.3855901952 | AQ13: -0.07121237747 | AR13: -0.2690498539 | AS13: 0.07930018804 | AT13: -0.2649259885 | AU13: 0.09244074966 | AV13: -0.2068674118 | AW13: 0.112443021 | AY13: 0.02968003475 | AZ13: -0.01904761905 | BA13: 0.08610909091 | BB13: -0.05255316267 | BC13: 8 | BD13: 4 | BE13: 7 | BF13: 5 | BG13: 0.04768912397 | BH13: 0.01165294395 | BI13: -0.09446652091 | BJ13: 2024-02-27 | BK13: 2024-06-24 | BO13: 1.081591108 | BP13: 1.250320648 | BQ13: 1.166492976 | BR13: 1.008223925 | BS13: 1.098935948 | BT13: 1.064772595 | BU13: 1.00117725 | BV13: 1.02480787 | BW13: 0.9341922009 | BX13: 0.8026096241 | BY13: 0.7635777141 | BZ13: 0.784392795 | CA13: 1.02480787 | CB13: 0.7654047336 | CC13: 0.7654047336 | CE13: 0.09115943405 | CF13: 9.6 | CG13: 0.09316827144 | CH13: 10.16 | CI13: 0.0826114854 | CJ13: 10.3 | CK13: 0.1222779122 | CL13: 14.15 | CM13: 0.1415456674 | CN13: 15.11 | CO13: 0.1020473109 | CP13: 9.62 | CQ13: 0.1306274118 | CR13: 9.14 | CS13: 0.109062499 | CT13: 0.1415456674 | CU13: 0.0826114854
B14: BLMG11<XBSP> | C14: BLMG11 | D14: FII Blue Log | E14: =IF(B14="","",VLOOKUP(H14,'Base FII Guide'!$B$5:$C$40000,2,0)) -> 565245<BraNa> | F14: 565245 | G14: Bluemacaw Logística Fundo de Investimento Imobiliário | H14: 34081637000171 | I14: Híbrido | J14: Bluemacaw Gestora de Recursos Ltda | K14: Vortx Dtvm Ltda | L14: 14116 | M14: 0.00119 | N14: 171136.4726 | O14: 2024-09-17 | P14: 40.09 | Q14: 52.42193697 | R14: 0.7647561749 | S14: 2023-09-21 | T14: 584.49529 | U14: 541.2496616 | V14: 1.079899594 | W14: 981 | X14: 985.936255 | Y14: 0.9949933325 | AA14: -0.007427581084 | AB14: -0.006237500304 | AC14: -0.04179345761 | AD14: -0.03455593862 | AE14: 0.09028106644 | AF14: 0.07971979074 | AG14: 0.02840215475 | AH14: 0.01972352026 | AI14: 0.0773297145 | AJ14: -0.05727109738 | AK14: 0.1179688423 | AL14: 0.04941348755 | AM14: -0.2375342762 | AN14: -0.378047675 | AO14: -0.3778719772 | AP14: -0.6044349442 | AQ14: -0.4065311483 | AR14: -0.6043686247 | AW14: 0.1889263876 | AY14: 0.03289473684 | AZ14: -0.1032806804 | BA14: 0.1258355274 | BB14: -0.1850729872 | BC14: 4 | BD14: 8 | BE14: 5 | BF14: 7 | BG14: -1.634244425 | BH14: 0.01913549173 | BI14: -0.3200183727 | BJ14: 2023-09-18 | BK14: 2024-02-08 | BT14: 1.005469502 | BU14: 0.906163851 | BV14: 0.8536622848 | BW14: 0.7766541977 | BX14: 0.7837402365 | BY14: 0.508917596 | BZ14: 0.5603130528 | CA14: 0.8536622848 | CB14: 0.6563638371 | CC14: 0.6563638371 | CM14: 0.1036324786 | CN14: 9.7 | CO14: 0.1119312844 | CP14: 8.34 | CQ14: 0.08818635607 | CR14: 5.3 | CS14: 0.1012500397 | CT14: 0.1119312844 | CU14: 0.08818635607
B15: BCIA11<XBSP> | C15: BCIA11 | D15: FII Bcia | E15: =IF(B15="","",VLOOKUP(H15,'Base FII Guide'!$B$5:$C$40000,2,0)) -> 397482<BraNa> | F15: 397482 | G15: Bradesco Carteira Imobiliária Ativa - Fundo de FII | H15: 20216935000117 | I15: TVM | J15: Bram Bradesco Asset Management SA Dtvm | K15: Bradesco | L15: 30033 | M15: 0.00262 | N15: 375139.3631 | O15: 2024-09-17 | P15: 100.87 | Q15: 104.4246847 | R15: 0.9659593446 | S15: 2024-05-22 | T15: 204.88204 | U15: 785.7885089 | V15: 0.2607343295 | W15: 396 | X15: 1060.553785 | Y15: 0.3733898324 | AA15: 0.0006944444431 | AB15: 0.001884525223 | AC15: -0.01262725137 | AD15: -0.005389732383 | AE15: 0.04526435698 | AF15: 0.03470308128 | AG15: -0.0240885045 | AH15: -0.03276713899 | AI15: -0.02007589566 | AJ15: -0.1546767075 | AK15: 0.0066551849 | AL15: -0.06190016987 | AM15: 0.09331408684 | AN15: -0.04719931193 | AO15: 0.3722311723 | AP15: 0.1456682053 | AQ15: 0.5687137703 | AR15: 0.3708762939 | AS15: 0.1809678052 | AT15: -0.1632583713 | AU15: 0.377099374 | AV15: 0.07779121254 | AW15: 0.121303647 | AY15: 0.03691749042 | AZ15: -0.0317256556 | BA15: 0.0602269421 | BB15: -0.02730375427 | BC15: 6 | BD15: 6 | BE15: 5 | BF15: 7 | BG15: -0.07408731257 | BH15: 0.01252790631 | BI15: -0.05196680255 | BJ15: 2024-05-22 | BK15: 2024-06-20 | BO15: 0.8715322807 | BP15: 0.9573290685 | BQ15: 1.478093028 | BR15: 1.597154958 | BS15: 0.9742358934 | BT15: 0.8772771676 | BU15: 0.8038515886 | BV15: 0.8043303324 | BW15: 0.8401347835 | BX15: 0.9058773409 | BY15: 0.9321247985 | BZ15: 0.9581235934 | CA15: 0.9581235934 | CB15: 1 | CC15: 1 | CE15: 0.071460616 | CF15: 8.283 | CG15: 0.1115813775 | CH15: 11.6 | CI15: 0.05591497227 | CJ15: 12.1 | CK15: 0.06777884531 | CL15: 7.76 | CM15: 0.1006679948 | CN15: 8.59 | CO15: 0.1146859789 | CP15: 9.66 | CQ15: 0.101432215 | CR15: 10.34 | CS15: 0.08907457139 | CT15: 0.1146859789 | CU15: 0.05591497227
B16: FATN11<XBSP> | C16: FATN11 | D16: FII Athena I | E16: =IF(B16="","",VLOOKUP(H16,'Base FII Guide'!$B$5:$C$40000,2,0)) -> 542547<BraNa> | F16: 542547 | G16: Brc Renda Corporativa FI Imobiliário | H16: 30567216000102 | I16: Híbrido | J16: - | K16: - | L16: 2979 | M16: 0.00219 | N16: 313564.9954 | O16: 2024-09-17 | P16: 91.35 | Q16: 94.47694088 | R16: 0.9669026023 | S16: 2024-05-27 | T16: 357.36124 | U16: 922.8307967 | V16: 0.387244597 | W16: 411 | X16: 918.0199203 | Y16: 0.4477027033 | AA16: 0 | AB16: 0.00119008078 | AC16: 0.002607807126 | AD16: 0.009845326113 | AE16: 0.07760069337 | AF16: 0.06703941767 | AG16: 0.002280834256 | AH16: -0.006397800233 | AI16: 0.001356357088 | AJ16: -0.1332444548 | AK16: 0.02613956843 | AL16: -0.04241578635 | AM16: 0.09170073574 | AN16: -0.04881266303 | AO16: 0.1335704118 | AP16: -0.09299255516 | AQ16: 0.227600966 | AR16: 0.02976348951 | AS16: 0.3385611153 | AT16: -0.0056650612 | AW16: 0.08648794884 | AY16: 0.01518960821 | AZ16: -0.02631016043 | BA16: 0.04756553141 | BB16: -0.04026096566 | BC16: 9 | BD16: 3 | BE16: 7 | BF16: 5 | BG16: -0.1625416026 | BH16: 0.008916338515 | BI16: -0.05509836319 | BJ16: 2024-05-27 | BK16: 2024-07-02 | BR16: 1.000023035 | BS16: 1.034637746 | BT16: 0.9370614632 | BU16: 0.9730224761 | BV16: 0.9710272508 | BW16: 0.9489537687 | BX16: 0.9612405946 | BY16: 0.8858696719 | BZ16: 0.8896697695 | CA16: 0.9710272508 | CB16: 0.9162150381 | CC16: 0.9162150381 | CK16: 0.07821878025 | CL16: 8.08 | CM16: 0.100253936 | CN16: 9.87 | CO16: 0.1077054065 | CP16: 10.12 | CQ16: 0.1092544987 | CR16: 10.2 | CS16: 0.09885815538 | CT16: 0.1092544987 | CU16: 0.07821878025
B17: BRCO11<XBSP> | C17: BRCO11 | D17: FII Bresco | E17: =IF(B17="","",VLOOKUP(H17,'Base FII Guide'!$B$5:$C$40000,2,0)) -> 425680<BraNa> | F17: 425680 | G17: Bresco Logística Fundo de Investimento Imobiliário Responsab | H17: 20748515000181 | I17: Logística | J17: Bresco Investimentos e Gestao Ltda | K17: Oliveira Trust Dtvm | L17: 124021 | M17: 0.01235 | N17: 1768968.892 | O17: 2024-09-17 | P17: 111.22 | Q17: 119.7628055 | R17: 0.9286689601 | S17: 2024-02-07 | T17: 3115.09356 | U17: 2987.927008 | V17: 1.042560127 | W17: 8208 | X17: 5272.717131 | Y17: 1.556692649 | AA17: -0.001795009874 | AB17: -0.0006049290933 | AC17: -0.02643557423 | AD17: -0.01919805524 | AE17: -0.03601079545 | AF17: -0.04657207114 | AG17: -0.04142501881 | AH17: -0.0501036533 | AI17: 0.03435234752 | AJ17: -0.1002484644 | AK17: -0.04622855748 | AL17: -0.1147839123 | AM17: -0.04581903683 | AN17: -0.1863324356 | AO17: 0.2022194034 | AP17: -0.02434356359 | AQ17: 0.4200142481 | AR17: 0.2221767717 | AS17: 0.2052901681 | AT17: -0.1389360084 | AW17: 0.1302382807 | AY17: 0.03190131859 | AZ17: -0.04129600914 | BA17: 0.04968098682 | BB17: -0.02643557423 | BC17: 5 | BD17: 7 | BE17: 4 | BF17: 8 | BG17: -1.036002426 | BH17: 0.01342683173 | BI17: -0.1031529353 | BJ17: 2024-02-07 | BK17: 2024-06-14 | BQ17: 1.558224041 | BR17: 1.3111149 | BS17: 1.059895595 | BT17: 0.9243764126 | BU17: 0.8647250797 | BV17: 0.8285719654 | BW17: 0.8039683921 | BX17: 0.971015413 | BY17: 1.018985271 | BZ17: 0.9356104969 | CA17: 1.018985271 | CB17: 0.9181786267 | CC17: 0.9181786267 | CI17: 0.04073556936 | CJ17: 6.08996762 | CK17: 0.05811222271 | CL17: 6.68 | CM17: 0.07812956649 | CN17: 8.02 | CO17: 0.1009521859 | CP17: 9.86 | CQ17: 0.08369283865 | CR17: 10.67 | CS17: 0.07232447663 | CT17: 0.1009521859 | CU17: 0.04073556936
B18: BROF11<XBSP> | C18: BROF11 | D18: FII Brof | E18: =IF(B18="","",VLOOKUP(H18,'Base FII Guide'!$B$5:$C$40000,2,0)) -> 687995<BraNa> | F18: 687995 | G18: Brpr Corporate Offices Fundo de Investimento Imobiliário | H18: 48978859000104 | I18: Híbrido | J18: BTG Pactual Servicos Financeiros SA Dtvm | K18: BTG Pactual Servicos Financeiros SA Dtvm | L18: 10336 | M18: 0.00384 | N18: 555112.9217 | O18: 2024-09-17 | P18: 47.81 | Q18: 61.44079904 | R18: 0.7781474321 | S18: 2023-10-13 | T18: 908.25268 | U18: 972.9753463 | V18: 0.9334796441 | W18: 826 | X18: 1260.844621 | Y18: 0.6551164084 | AA18: 0 | AB18: 0.00119008078 | AC18: 0.00652631579 | AD18: 0.01376383478 | AE18: -0.1622060195 | AF18: -0.1727672952 | AG18: 0.009288579269 | AH18: 0.0006099447801 | AI18: -0.1162508427 | AJ18: -0.2508516545 | AK18: -0.1350269152 | AL18: -0.20358227 | AM18: -0.2156236972 | AN18: -0.356137096 | AW18: 0.2158717772 | AY18: 0.04201680672 | AZ18: -0.05498059509 | BA18: 0.09355318247 | BB18: -0.08146718475 | BC18: 4 | BD18: 8 | BE18: 4 | BF18: 8 | BG18: -1.295527018 | BH18: 0.02222134361 | BI18: -0.2426856303 | BJ18: 2023-10-05 | BK18: 2024-09-09 | BX18: 0.6593104908 | BY18: 0.5756988443 | BZ18: 0.44047226 | CA18: 0.6593104908 | CB18: 0.6680801628 | CC18: 0.6680801628 | CQ18: 0.09286306303 | CR18: 6.314688286 | CS18: 0.09286306303 | CT18: 0.09286306303 | CU18: 0.09286306303
B19: BRCR11<XBSP> | C19: BRCR11 | D19: FII Bc Fund | E19: =IF(B19="","",VLOOKUP(H19,'Base FII Guide'!$B$5:$C$40000,2,0)) -> 310328<BraNa> | F19: 310328 | G19: Fundo de Investimento Imobiliário FII BTG Pactual Corporat | H19: 8924783000101 | I19: Híbrido | J19: BTG Pactual Gestora de Recursos Ltda | K19: BTG Pactual Servicos Financeiros SA Dtvm | L19: 137495 | M19: 0.00909 | N19: 1303140.842 | O19: 2024-09-17 | P19: 48.92 | Q19: 54.52080864 | R19: 0.8972720915 | S19: 2024-05-09 | T19: 1399.80841 | U19: 1753.430331 | V19: 0.7983256508 | W19: 6416 | X19: 5969.589641 | Y19: 1.074780745 | AA19: -0.008713272543 | AB19: -0.007523191763 | AC19: -0.01564858416 | AD19: -0.008411065169 | AE19: -0.05107548189 | AF19: -0.06163675759 | AG19: -0.01858111072 | AH19: -0.02725974521 | AI19: -0.02528034459 | AJ19: -0.1598811565 | AK19: -0.053117837 | AL19: -0.1216731918 | AM19: -0.08241405343 | AN19: -0.2229274522 | AO19: -0.06131881578 | AP19: -0.2878817828 | AQ19: -0.07234445191 | AR19: -0.2701819284 | AS19: -0.1996817768 | AT19: -0.5439079534 | AU19: -0.1463281545 | AV19: -0.4456363159 | AW19: 0.1892815838 | AY19: 0.06538090638 | AZ19: -0.045 | BA19: 0.1194167746 | BB19: -0.08690183619 | BC19: 5 | BD19: 7 | BE19: 5 | BF19: 7 | BG19: -0.8410381426 | BH19: 0.01965672553 | BI19: -0.159448972 | BJ19: 2023-09-18 | BK19: 2023-11-01 | BL19: 1900-06-05 | BM19: 2024-05-08 | BO19: 0.8211481946 | BP19: 0.8717181515 | BQ19: 1.063834413 | BR19: 0.8406668648 | BS19: 0.8232821878 | BT19: 0.7512820491 | BU19: 0.6865246722 | BV19: 0.6119947497 | BW19: 0.5918583679 | BX19: 0.6637095285 | BY19: 0.60172788 | BZ19: 0.5476737332 | CA19: 0.6637095285 | CB19: 0.825170816 | CC19: 0.825170816 | CE19: 0.0411961675 | CF19: 4.366793755 | CG19: 0.1589559202 | CH19: 16.4376317 | CI19: 0.0495867341 | CJ19: 5.836358603 | CK19: 0.06367204649 | CL19: 5.650257406 | CM19: 0.08006603384 | CN19: 5.82 | CO19: 0.08949679162 | CP19: 5.3 | CQ19: 0.08715083799 | CR19: 5.46 | CS19: 0.08144636167 | CT19: 0.1589559202 | CU19: 0.0411961675
B20: BTLG11<XBSP> | C20: BTLG11 | D20: FII Btlg | E20: =IF(B20="","",VLOOKUP(H20,'Base FII Guide'!$B$5:$C$40000,2,0)) -> 362719<BraNa> | F20: 362719 | G20: BTG Pactual Logística Fundo de Investimento Imobiliário | H20: 11839593000109 | I20: Híbrido | J20: BTG Pactual Gestora de Recursos Ltda | K20: BTG Pactual Servicos Financeiros SA Dtvm | L20: 345561 | M20: 0.03015 | N20: 4321022.676 | O20: 2024-09-17 | P20: 99.91 | Q20: 102.4279997 | R20: 0.975416881 | S20: 2024-04-05 | T20: 8981.68641 | U20: 10109.99951 | V20: 0.888396325 | W20: 17804 | X20: 13065.13944 | Y20: 1.362710293 | AA20: -0.0009 | AB20: 0.0002900807803 | AC20: -0.01933194219 | AD20: -0.0120944232 | AE20: 0.03177309781 | AF20: 0.02121182212 | AG20: -0.02237897373 | AH20: -0.03105760822 | AI20: 0.0426082978 | AJ20: -0.09199251408 | AK20: 0.004480628815 | AL20: -0.06407472596 | AM20: 0.0585738375 | AN20: -0.08193956127 | AO20: 0.1645389931 | AP20: -0.06202397388 | AQ20: 0.2616924444 | AR20: 0.06385496798 | AS20: 0.3752752225 | AT20: 0.03104904598 | AU20: 0.5971259549 | AV20: 0.2978177934 | AW20: 0.0869333652 | AY20: 0.01848171701 | AZ20: -0.02370295015 | BA20: 0.0386874847 | BB20: -0.03657549968 | BC20: 7 | BD20: 5 | BE20: 8 | BF20: 4 | BG20: -0.5067647554 | BH20: 0.00897620051 | BI20: -0.08401178317 | BJ20: 2024-04-05 | BK20: 2024-06-21 | BO20: 0.7506627285 | BP20: 1.069960578 | BQ20: 1.224577339 | BR20: 1.043614422 | BS20: 1.103278048 | BT20: 1.047577945 | BU20: 1.069846597 | BV20: 1.011993813 | BW20: 1.016498116 | BX20: 1.045053689 | BY20: 1.058077862 | BZ20: 0.9553962839 | CA20: 1.058077862 | CB20: 0.9029546107 | CC20: 0.9029546107 | CE20: 0.05145211177 | CF20: 4.013264718 | CG20: 0.06253746761 | CH20: 4.752847539 | CI20: 0.05363956563 | CJ20: 6.568164812 | CK20: 0.0730941704 | CL20: 8.15 | CM20: 0.08959132142 | CN20: 9.58 | CO20: 0.08964143426 | CP20: 9 | CQ20: 0.09626339674 | CR20: 9.97 | CS20: 0.07374563826 | CT20: 0.09626339674 | CU20: 0.05145211177
B21: CPTS11<XBSP> | C21: CPTS11 | D21: FII Capi Sec | E21: =IF(B21="","",VLOOKUP(H21,'Base FII Guide'!$B$5:$C$40000,2,0)) -> 399302<BraNa> | F21: 399302 | G21: Capitânia Securities II Fundo de Investimento Imobiliário | H21: 18979895000113 | I21: TVM | J21: Capitania Investimentos | K21: BTG Pactual Servicos Financeiros SA Dtvm | L21: 387928 | M21: 0.01801 | N21: 2580764.497 | O21: 2024-09-17 | P21: 8.12 | Q21: 8.313295488 | R21: 0.9767486326 | S21: 2024-07-19 | T21: 5451.62676 | U21: 7635.085115 | V21: 0.7140230499 | W21: 19951 | X21: 30651.96813 | Y21: 0.6508880577 | AA21: -0.002457002457 | AB21: -0.001266921677 | AC21: -0.001107147251 | AD21: 0.006130371736 | AE21: 0.03830636758 | AF21: 0.02774509188 | AG21: -0.008354253802 | AH21: -0.01703288829 | AI21: 0.009697394878 | AJ21: -0.124903417 | AK21: 0.02356374078 | AL21: -0.044991614 | AM21: 0.01627820073 | AN21: -0.124235198 | AO21: 0.1128653692 | AP21: -0.1136975977 | AQ21: 0.1813581372 | AR21: -0.01647933921 | AS21: 0.39608097 | AT21: 0.05185479346 | AU21: 0.4398225568 | AV21: 0.1405143954 | AW21: 0.1285945568 | AY21: 0.04079110012 | AZ21: -0.02904140669 | BA21: 0.08300385097 | BB21: -0.09639039241 | BC21: 8 | BD21: 4 | BE21: 8 | BF21: 4 | BG21: -0.6072668979 | BH21: 0.01331059072 | BI21: -0.128280144 | BJ21: 2023-09-20 | BK21: 2023-10-31 | BL21: 1900-05-10 | BM21: 2024-04-03 | BO21: 1.04844537 | BP21: 1.069710988 | BQ21: 1.160445711 | BR21: 1.106891102 | BS21: 1.104919875 | BT21: 1.051074421 | BU21: 1.014327968 | BV21: 0.9995605807 | BW21: 0.9248381456 | BX21: 0.9373756591 | BY21: 0.9276059563 | BZ21: 0.9127643642 | CA21: 0.9995605807 | CB21: 0.9131656268 | CC21: 0.9131656268 | CE21: 0.09383268879 | CF21: 0.922 | CG21: 0.08728352301 | CH21: 0.882 | CI21: 0.07569027088 | CJ21: 0.869 | CK21: 0.1169371099 | CL21: 1.2179 | CM21: 0.1268236765 | CN21: 1.217 | CO21: 0.1069557802 | CP21: 0.878 | CQ21: 0.0973601083 | CR21: 0.863 | CS21: 0.100697594 | CT21: 0.1268236765 | CU21: 0.07569027088
B22: CPSH11<XBSP> | C22: CPSH11 | D22: FII Cpsh | E22: =IF(B22="","",VLOOKUP(H22,'Base FII Guide'!$B$5:$C$40000,2,0)) -> 715451<BraNa> | F22: 715451 | G22: Capitania Shoppings FII-Unica | H22: 47896665000199 | I22: Shoppings | J22: Capitania Capital | K22: BTG Pactual Servicos Financeiros SA Dtvm | L22: 3656 | M22: 0.00463 | N22: 670061.338 | O22: 2024-09-17 | P22: 10.49 | Q22: 11.0152919 | R22: 0.9523124846 | S22: 2024-07-19 | T22: 665.25348 | U22: 2428.58665 | V22: 0.2739261867 | W22: 2961 | X22: 2005.896414 | Y22: 1.47614801 | AA22: -0.009442870632 | AB22: -0.008252789851 | AC22: -0.01037735849 | AD22: -0.003139839503 | AE22: 0.02359900788 | AF22: 0.01303773219 | AG22: -0.002851711025 | AH22: -0.01153034551 | AI22: 0.0476873375 | AJ22: -0.08691347438 | AK22: 0.02364420536 | AL22: -0.04491114942 | AM22: -0.02291518917 | AN22: -0.1634285879 | AW22: 0.1212814625 | AY22: 0.03793774319 | AZ22: -0.05181481162 | BA22: 0.03929505585 | BB22: -0.02365324304 | BC22: 6 | BD22: 6 | BE22: 5 | BF22: 7 | BG22: -0.9834444293 | BH22: 0.01250570037 | BI22: -0.08795760435 | BJ22: 2023-09-18 | BK22: 2023-10-24 | BL22: 1900-07-17 | BM22: 2024-07-08 | BY22: 0.9458295034 | BZ22: 0.9233643774 | CA22: 0.9458295034 | CB22: 0.9762482287 | CC22: 0.9762482287 | CQ22: 0.09850446988 | CR22: 1.179 | CS22: 0.09850446988 | CT22: 0.09850446988 | CU22: 0.09850446988
B23: CACR11<XBSP> | C23: CACR11 | D23: Cartesia FII | E23: =IF(B23="","",VLOOKUP(H23,'Base FII Guide'!$B$5:$C$40000,2,0)) -> 537977<BraNa> | F23: 537977 | G23: Cartesia Recebíveis Imobiliários - Fundo de Investimento Imo | H23: 32065364000146 | I23: Híbrido | J23: - | K23: - | L23: 1 | M23: 0.00359 | N23: 513907.7882 | O23: 2024-09-17 | P23: 106.26 | Q23: 106.37 | R23: 0.9989658738 | S23: 2024-09-16 | T23: 1084.07147 | U23: 1322.00024 | V23: 0.8200236562 | W23: 1272 | X23: 1720.944223 | Y23: 0.7391291263 | AA23: -0.001034126163 | AB23: 0.0001559546172 | AC23: 0.005393130854 | AD23: 0.01263064984 | AE23: 0.172416214 | AF23: 0.1618549383 | AG23: 0.0188186855 | AH23: 0.01014005101 | AI23: 0.07073573022 | AJ23: -0.06386508166 | AK23: 0.1356149931 | AL23: 0.0670596383 | AM23: 0.1947861748 | AN23: 0.05427277598 | AO23: 0.5135242696 | AP23: 0.2869613026 | AQ23: 0.6943443973 | AR23: 0.4965069208 | AS23: 0.8516130784 | AT23: 0.5073869019 | AW23: 0.06659445305 | AY23: 0.01282306163 | AZ23: -0.02420346034 | BA23: 0.03591940037 | BB23: -0.0134744947 | BC23: 11 | BD23: 1 | BE23: 9 | BF23: 3 | BG23: 1.16934632 | BH23: 0.006875408529 | BI23: -0.03279002876 | BJ23: 2023-11-03 | BK23: 2023-11-28 | BL23: 1900-02-06 | BM23: 2023-12-28 | BR23: 0.9886255502 | BS23: 1.051132686 | BT23: 1.084218833 | BU23: 1.077563663 | BV23: 1.009487932 | BW23: 0.9874600374 | BX23: 1.014738069 | BY23: 1.005279854 | BZ23: 1.077403 | CA23: 1.077403 | CB23: 1 | CC23: 1 | CK23: 0.1270743559 | CL23: 13.86 | CM23: 0.1624384012 | CN23: 17.8 | CO23: 0.1707913528 | CP23: 17.46 | CQ23: 0.1582446809 | CR23: 16.66 | CS23: 0.1546371977 | CT23: 0.1707913528 | CU23: 0.1270743559
B24: CLIN11<XBSP> | C24: CLIN11 | D24: FII Clave In | E24: =IF(B24="","",VLOOKUP(H24,'Base FII Guide'!$B$5:$C$40000,2,0)) -> 719250<BraNa> | F24: 719250 | G24: Clave Índices de Preços Fundo de Investimento Imobiliário | H24: 49005348000160 | I24: - | J24: Clave Alternativos Gestora de Rec Ltda | K24: BTG Pactual Servicos Financeiros SA Dtvm | L24: 10997 | M24: 0.00283 | N24: 404900.9734 | O24: 2024-09-17 | P24: 93.15 | T24: 1555.513 | W24: 3794 | AA24: -0.01261394954 | AB24: -0.01142386876 | AC24: -0.03026580581 | AD24: -0.02302828682 | AE24: 0.02240376661 | AF24: 0.01184249091 | AG24: -0.007135470414 | AH24: -0.0158141049 | AI24: 0.003011741046 | AJ24: -0.1315890708 | AK24: 0.03887673064 | AL24: -0.02967862413 | AY24: 0.05374077977 | AZ24: -0.03486609399 | BA24: 0.03455580178 | BB24: -0.03990106305 | BI24: -0.08859177329 | BJ24: 2023-11-03 | BK24: 2024-02-19 | BL24: 1900-05-04 | BM24: 2024-05-08 | BY24: 1.002711481 | BZ24: 0.9489558185 | CA24: 1.002711481 | CB24: 0.9463897007 | CC24: 0.9463897007
B25: CYCR11<XBSP> | C25: CYCR11 | D25: FII Cyrela | E25: =IF(B25="","",VLOOKUP(H25,'Base FII Guide'!$B$5:$C$40000,2,0)) -> 598321<BraNa> | F25: 598321 | G25: Cyrela Crédito - Fundo de Investimento Imobiliário | H25: 36501233000115 | I25: TVM | J25: Cy.Capital Gestora de Recursos Ltda. | K25: Banco Genial S.A. | L25: 1 | M25: 0.00111 | N25: 158589.9648 | O25: 2024-09-17 | P25: 9.72 | Q25: 9.86 | R25: 0.985801217 | S25: 2024-08-30 | T25: 627.22285 | U25: 421.9077438 | V25: 1.486635074 | W25: 2045 | X25: 1771.729084 | Y25: 1.154239674 | AA25: -0.009174311926 | AB25: -0.007984231146 | AC25: -0.01419878296 | AD25: -0.006961263975 | AE25: 0.09952678821 | AF25: 0.08896551251 | AG25: 0.002919317845 | AH25: -0.005759316644 | AI25: 0.04500500991 | AJ25: -0.08959580197 | AK25: 0.0826828097 | AL25: 0.01412745493 | AM25: 0.1863849304 | AN25: 0.04587153158 | AO25: 0.4426878989 | AP25: 0.2161249319 | AW25: 0.09315657512 | AY25: 0.02408376963 | AZ25: -0.01637666326 | BA25: 0.05958829903 | BB25: -0.01798941799 | BC25: 9 | BD25: 3 | BE25: 9 | BF25: 3 | BG25: 0.7768793909 | BH25: 0.009645769078 | BI25: -0.02644964395 | BJ25: 2024-04-15 | BK25: 2024-04-26 | BL25: 1900-01-21 | BM25: 2024-05-15 | BU25: 1.070303127 | BV25: 1.05762241 | BW25: 0.9228522864 | BX25: 0.9164575419 | BY25: 0.9733550964 | BZ25: 1.022885368 | CA25: 1.05762241 | CB25: 0.9671555349 | CC25: 0.9671555349 | CM25: 0.1386560931 | CN25: 1.404027751 | CO25: 0.1393602879 | CP25: 1.22681447 | CQ25: 0.1367521368 | CR25: 1.28 | CS25: 0.1382561726 | CT25: 0.1393602879 | CU25: 0.1367521368
B26: DEVA11<XBSP> | C26: DEVA11 | D26: FII Devant | E26: =IF(B26="","",VLOOKUP(H26,'Base FII Guide'!$B$5:$C$40000,2,0)) -> 552119<BraNa> | F26: 552119 | G26: Devant Recebíveis Imobiliários Fundo de Investimento Imobili | H26: 37087810000137 | I26: TVM | J26: Devant Asset Investimentos Ltda | K26: Vortx Dtvm Ltda | L26: 109764 | M26: 0.00369 | N26: 528650.3371 | O26: 2024-09-17 | P26: 37.64 | Q26: 46.81002981 | R26: 0.8041011756 | S26: 2024-05-03 | T26: 673.80963 | U26: 1396.764242 | V26: 0.4824075602 | W26: 2350 | X26: 2665.601594 | Y26: 0.881602114 | AA26: -0.001591511937 | AB26: -0.0004014311562 | AC26: -0.04438911543 | AD26: -0.03715159645 | AE26: -0.02593631006 | AF26: -0.03649758576 | AG26: 0.00770293067 | AH26: -0.0009757038188 | AI26: -0.06823006709 | AJ26: -0.202830879 | AK26: -0.008342033589 | AL26: -0.07689738836 | AM26: 0.02394564709 | AN26: -0.1165677517 | AO26: -0.4870709447 | AP26: -0.7136339117 | AQ26: -0.4301339177 | AR26: -0.6279713941 | AW26: 0.2597219751 | AY26: 0.09473946647 | AZ26: -0.07561761547 | BA26: 0.145982562 | BB26: -0.1590464311 | BC26: 8 | BD26: 4 | BE26: 7 | BF26: 5 | BG26: -0.1817866771 | BH26: 0.02688026162 | BI26: -0.2071131322 | BJ26: 2024-05-03 | BK26: 2024-08-20 | BS26: 1.183185742 | BT26: 1.050587179 | BU26: 1.074122253 | BV26: 1.009094329 | BW26: 0.8612610472 | BX26: 0.6394234951 | BY26: 0.4309656159 | BZ26: 0.378579732 | CA26: 1.009094329 | CB26: 0.3751678324 | CC26: 0.3751678324 | CK26: 0.1501822188 | CL26: 17.72 | CM26: 0.1325626204 | CN26: 13.76 | CO26: 0.09512893983 | CP26: 8.3 | CQ26: 0.1472868217 | CR26: 6.27 | CS26: 0.1312901502 | CT26: 0.1501822188 | CU26: 0.09512893983
B27: VRTA11<XBSP> | C27: VRTA11 | D27: FII Fator Ve | E27: =IF(B27="","",VLOOKUP(H27,'Base FII Guide'!$B$5:$C$40000,2,0)) -> 253308<BraNa> | F27: 253308 | G27: Fator Verita Fundo de Investimento Imobiliário | H27: 11664201000100 | I27: TVM | J27: Fator Adm | K27: Banco Fator | L27: 121431 | M27: 0.00963 | N27: 1380553.221 | O27: 2024-09-17 | P27: 88.54 | Q27: 89.19508105 | R27: 0.992655637 | S27: 2024-08-29 | T27: 1355.18272 | U27: 1932.90736 | V27: 0.7011110558 | W27: 2578 | X27: 2961.569721 | Y27: 0.8704843184 | AA27: -0.0002258355917 | AB27: 0.0009642451886 | AC27: -0.001240834742 | AD27: 0.005996684245 | AE27: 0.08545911866 | AF27: 0.07489784296 | AG27: -0.007344362975 | AH27: -0.01602299746 | AI27: 0.04921402683 | AJ27: -0.08538678505 | AK27: 0.07416637521 | AL27: 0.005611020435 | AM27: 0.09955560863 | AN27: -0.04095779014 | AO27: 0.1778317847 | AP27: -0.04873118226 | AQ27: 0.1972130403 | AR27: -0.00062443619 | AS27: 0.3756761926 | AT27: 0.0314500161 | AU27: 0.3195116956 | AV27: 0.02020353414 | AW27: 0.08397211396 | AY27: 0.02614832813 | AZ27: -0.01629762842 | BA27: 0.03140041256 | BB27: -0.00849858357 | BC27: 7 | BD27: 5 | BE27: 8 | BF27: 4 | BG27: -0.08450330741 | BH27: 0.008686867341 | BI27: -0.0282832521 | BJ27: 2023-09-19 | BK27: 2023-10-04 | BL27: 1900-03-07 | BM27: 2023-12-27 | BO27: 1.165467143 | BP27: 1.436107417 | BQ27: 1.328738461 | BR27: 1.036861409 | BS27: 1.125686527 | BT27: 1.092196651 | BU27: 1.068791266 | BV27: 1.024147733 | BW27: 0.9650046359 | BX27: 0.9808433898 | BY27: 0.9378684135 | BZ27: 0.9693657226 | CA27: 1.024147733 | CB27: 0.9465096598 | CC27: 0.9465096598 | CE27: 0.09066183137 | CF27: 10 | CG27: 0.09215967592 | CH27: 10.92 | CI27: 0.06102791254 | CJ27: 8.68 | CK27: 0.1047169811 | CL27: 12.21 | CM27: 0.1310663166 | CN27: 13.59255308 | CO27: 0.1150261423 | CP27: 10.12 | CQ27: 0.1089251973 | CR27: 9.8 | CS27: 0.1005120082 | CT27: 0.1310663166 | CU27: 0.06102791254
B28: BPFF11<XBSP> | C28: BPFF11 | D28: FII Absoluto | E28: =IF(B28="","",VLOOKUP(H28,'Base FII Guide'!$B$5:$C$40000,2,0)) -> 335355<BraNa> | F28: 335355 | G28: FI Imobiliário - FII Brasil Plural Absoluto Fundo de Fundos | H28: 17324357000128 | I28: TVM | J28: Plural | K28: Genial Investimentos Corr de Val Mob | L28: 21168 | M28: 0.00212 | N28: 303097.2352 | O28: 2024-09-17 | P28: 67.47 | Q28: 70.09807722 | R28: 0.962508569 | S28: 2024-04-08 | T28: 330.1583 | U28: 387.9439475 | V28: 0.8510464002 | W28: 390 | X28: 740.7211155 | Y28: 0.5265139495 | AA28: -0.007794117648 | AB28: -0.006604036867 | AC28: -0.02231560643 | AD28: -0.01507808745 | AE28: 0.02333842374 | AF28: 0.01277714804 | AG28: -0.01008922024 | AH28: -0.01876785473 | AI28: -0.006721241375 | AJ28: -0.1413220533 | AK28: -0.02585225039 | AL28: -0.09440760517 | AM28: 0.03708909025 | AN28: -0.1034243085 | AO28: 0.2082276379 | AP28: -0.01833532903 | AQ28: 0.3413411348 | AR28: 0.1435036584 | AS28: 0.2588364387 | AT28: -0.08538973779 | AU28: 0.114243046 | AV28: -0.1850651154 | AW28: 0.1117957514 | AY28: 0.04093402729 | AZ28: -0.02298539751 | BA28: 0.04003961517 | BB28: -0.02376910017 | BC28: 6 | BD28: 6 | BE28: 5 | BF28: 7 | BG28: -0.546157383 | BH28: 0.01157610443 | BI28: -0.06413808283 | BJ28: 2023-09-18 | BK28: 2023-10-26 | BL28: 1900-03-11 | BM28: 2024-01-03 | BO28: 0.9641978892 | BP28: 0.959598208 | BQ28: 1.142033644 | BR28: 1.009043596 | BS28: 0.9211231048 | BT28: 0.9428064513 | BU28: 0.8883748212 | BV28: 0.8328047815 | BW28: 0.864929853 | BX28: 0.9002999325 | BY28: 0.9056039211 | BZ28: 0.8958005124 | CA28: 0.9056039211 | CB28: 0.9891747281 | CC28: 0.9891747281 | CE28: 0.08078196111 | CF28: 7.81 | CG28: 0.08914728682 | CH28: 8.05 | CI28: 0.06017214398 | CJ28: 7.69 | CK28: 0.08509309009 | CL28: 6.81 | CM28: 0.1124401914 | CN28: 7.99 | CO28: 0.1170547514 | CP28: 7.44 | CQ28: 0.1029615278 | CR28: 7.44 | CS28: 0.09252156466 | CT28: 0.1170547514 | CU28: 0.06017214398
B29: GARE11<XBSP> | C29: GARE11 | D29: FII Guardian | E29: =IF(B29="","",VLOOKUP(H29,'Base FII Guide'!$B$5:$C$40000,2,0)) -> 563757<BraNa> | F29: 563757 | G29: FI Imobiliário Guardian Real Estate | H29: 37295919000160 | I29: Híbrido | J29: - | K29: - | L29: 1 | M29: 0.00801 | N29: 1147898.33 | O29: 2024-09-17 | P29: 9.12 | Q29: 9.22 | R29: 0.989154013 | S29: 2024-09-09 | T29: 6902.9678 | U29: 3996.79264 | V29: 1.727126829 | W29: 13574 | X29: 19813.08765 | Y29: 0.6851027079 | AA29: -0.004366812228 | AB29: -0.003176731448 | AC29: 0.005180205002 | AD29: 0.01241772399 | AE29: 0.06343160726 | AF29: 0.05287033157 | AG29: 0.009588890112 | AH29: 0.0009102556233 | AI29: 0.04296245961 | AJ29: -0.09163835227 | AK29: 0.06625841366 | AL29: -0.002296941117 | AM29: 0.1296538542 | AN29: -0.01085954456 | AO29: 0.1873148354 | AP29: -0.03924813158 | AQ29: 0.2397244264 | AR29: 0.04188694995 | AW29: 0.06481312391 | AY29: 0.01436464088 | AZ29: -0.01189189189 | BA29: 0.02853516005 | BB29: -0.01685393258 | BC29: 10 | BD29: 2 | BE29: 9 | BF29: 3 | BG29: 0.2888591093 | BH29: 0.006702510077 | BI29: -0.02682403433 | BJ29: 2024-01-02 | BK29: 2024-01-26 | BL29: 60 | BM29: 2024-03-28 | BT29: 1.001098696 | BU29: 1.024943287 | BV29: 0.911961741 | BW29: 0.9995047327 | BX29: 1.012201804 | BY29: 0.93068811 | BZ29: 0.9917049195 | CA29: 1.012201804 | CB29: 0.9797502 | CC29: 0.9797502 | CM29: 0.09660983735 | CN29: 0.986 | CO29: 0.1064675548 | CP29: 0.991 | CQ29: 0.1127192982 | CR29: 1.028 | CS29: 0.1052655635 | CT29: 0.1127192982 | CU29: 0.09660983735
B30: RCRB11<XBSP> | C30: RCRB11 | D30: FII Riob Rc | E30: =IF(B30="","",VLOOKUP(H30,'Base FII Guide'!$B$5:$C$40000,2,0)) -> 362190<BraNa> | F30: 362190 | G30: Fundo de Investimento Imobiliario Rio Bravo Renda Corporativ | H30: 3683056000186 | I30: Lajes Corporativas | J30: Rio Bravo Investimentos Dtvm | K30: Rio Bravo Investimentos Dtvm | L30: 35009 | M30: 0.00337 | N30: 482742.906 | O30: 2024-09-17 | P30: 130.8 | Q30: 158.788442 | R30: 0.8237375361 | S30: 2023-12-22 | T30: 776.18929 | U30: 964.4771495 | V30: 0.8047772728 | W30: 1062 | X30: 1348.525896 | Y30: 0.7875265895 | AA30: -0.0006112469427 | AB30: 0.0005788338376 | AC30: -0.006786293816 | AD30: 0.0004512251708 | AE30: -0.1409594267 | AF30: -0.1515207024 | AG30: -0.02059734104 | AH30: -0.02927597553 | AI30: -0.0856514467 | AJ30: -0.2202522586 | AK30: -0.160142138 | AL30: -0.2286974927 | AM30: -0.07565825517 | AN30: -0.2161716539 | AO30: 0.0728572566 | AP30: -0.1537057104 | AQ30: 0.1085162369 | AR30: -0.08932123952 | AS30: -0.02036284177 | AT30: -0.3645890183 | AU30: 0.04728353087 | AV30: -0.2520246305 | AW30: 0.1800474414 | AY30: 0.05750456635 | AZ30: -0.05598570578 | BA30: 0.0864644975 | BB30: -0.05743125319 | BC30: 3 | BD30: 9 | BE30: 3 | BF30: 9 | BG30: -0.8606424797 | BH30: 0.01864413469 | BI30: -0.1879761628 | BJ30: 2023-12-22 | BK30: 2024-09-11 | BO30: 0.9224339394 | BP30: 0.9978775541 | BQ30: 1.361339488 | BR30: 0.9041975724 | BS30: 0.8395024411 | BT30: 0.7018600985 | BU30: 0.7064412797 | BV30: 0.6481196047 | BW30: 0.6130058949 | BX30: 0.691088481 | BY30: 0.7829809186 | BZ30: 0.6382526101 | CA30: 0.7829809186 | CB30: 0.8151572981 | CC30: 0.8151572981 | CE30: 0.04800611791 | CF30: 8.6315 | CG30: 0.04468956823 | CH30: 7.09 | CI30: 0.03829487797 | CJ30: 10.34 | CK30: 0.06077015644 | CL30: 10.1 | CM30: 0.0573381295 | CN30: 7.97 | CO30: 0.07136113297 | CP30: 9.07 | CQ30: 0.07078947368 | CR30: 10.76 | CS30: 0.05589277953 | CT30: 0.07136113297 | CU30: 0.03829487797
B31: RBVA11<XBSP> | C31: RBVA11 | D31: FII Riob Va | E31: =IF(B31="","",VLOOKUP(H31,'Base FII Guide'!$B$5:$C$40000,2,0)) -> 362050<BraNa> | F31: 362050 | G31: Fundo de Investimento Imobiliário Agências Caixa - FII | H31: 15576907000170 | I31: Agências | J31: Rio Bravo Investimentos Dtvm | K31: Rio Bravo Investimentos Dtvm | L31: 63287 | M31: 0.00901 | N31: 1290983.536 | O31: 2024-09-17 | P31: 103.4 | Q31: 107.9197333 | R31: 0.9581194914 | S31: 2024-04-29 | T31: 1671.90736 | U31: 1400.022503 | V31: 1.194200348 | W31: 2606 | X31: 2190.788845 | Y31: 1.189525867 | AA31: -0.006342494715 | AB31: -0.005152413934 | AC31: -0.03355453781 | AD31: -0.02631701882 | AE31: -0.01215417797 | AF31: -0.02271545367 | AG31: -0.01083835217 | AH31: -0.01951698666 | AI31: -0.01997572696 | AJ31: -0.1545765388 | AK31: -0.01601481319 | AL31: -0.08457016796 | AM31: 0.02328743332 | AN31: -0.1172259654 | AO31: 0.3223622413 | AP31: 0.09579927432 | AQ31: 0.3619257764 | AR31: 0.1640882999 | AS31: 0.344701671 | AT31: 0.00047549444 | AU31: 0.4689083801 | AV31: 0.1696002186 | AW31: 0.1086411482 | AY31: 0.04425925926 | AZ31: -0.02435410686 | BA31: 0.06739355202 | BB31: -0.03355453781 | BC31: 5 | BD31: 7 | BE31: 6 | BF31: 6 | BG31: -0.6791231628 | BH31: 0.01126764843 | BI31: -0.05513064504 | BJ31: 2024-04-29 | BK31: 2024-07-04 | BO31: 1.117376557 | BP31: 1.229289081 | BQ31: 1.327066369 | BR31: 1.290485172 | BS31: 1.024504928 | BT31: 0.9922217174 | BU31: 0.9689904393 | BV31: 0.8778370036 | BW31: 0.8333141058 | BX31: 0.9832384462 | BY31: 1.022900463 | BZ31: 0.9578443873 | CA31: 1.022900463 | CB31: 0.9364003847 | CC31: 0.9364003847 | CE31: 0.07029943394 | CF31: 8.743 | CG31: 0.0912832463 | CH31: 10.89 | CI31: 0.0650993496 | CJ31: 10.91 | CK31: 0.09406236651 | CL31: 11.01 | CM31: 0.1165583776 | CN31: 11.84 | CO31: 0.1296763576 | CP31: 11.82 | CQ31: 0.1063641198 | CR31: 12 | CS31: 0.09619189307 | CT31: 0.1296763576 | CU31: 0.0650993496
B32: BPML11<XBSP> | C32: BPML11 | D32: FII BTG Shop | E32: =IF(B32="","",VLOOKUP(H32,'Base FII Guide'!$B$5:$C$40000,2,0)) -> 521892<BraNa> | F32: 521892 | G32: Fundo de Investimento Imobiliário BTG Pactual Shoppings | H32: 33046142000149 | I32: Híbrido | J32: BTG Pactual Gestora de Recursos Ltda | K32: BTG Pactual Servicos Financeiros SA Dtvm | L32: 6333 | M32: 0.00481 | N32: 688733.4997 | O32: 2024-09-17 | P32: 92.55 | Q32: 99.28167567 | R32: 0.932196192 | S32: 2024-04-19 | T32: 1403.66563 | U32: 668.291731 | V32: 2.10037857 | W32: 1113 | X32: 790.0876494 | Y32: 1.408704466 | AA32: 0.008169934641 | AB32: 0.009360015421 | AC32: 0.04246451904 | AD32: 0.04970203802 | AE32: 0.05131436064 | AF32: 0.04075308494 | AG32: 0.09100554049 | AH32: 0.08232690601 | AI32: 0.04246641595 | AJ32: -0.09213439593 | AK32: 0.0648681603 | AL32: -0.003687194471 | AM32: 0.3267540242 | AN32: 0.1862406254 | AO32: 0.6552870663 | AP32: 0.4287240993 | AQ32: 0.2597842638 | AR32: 0.06194678735 | AS32: 0.1017801976 | AT32: -0.2424459789 | AW32: 0.1939845553 | AY32: 0.05124835743 | AZ32: -0.06286195641 | BA32: 0.08777969019 | BB32: -0.06582749437 | BC32: 7 | BD32: 5 | BE32: 7 | BF32: 5 | BG32: 1.119648524 | BH32: 0.02007677658 | BI32: -0.1525251878 | BJ32: 2024-04-19 | BK32: 2024-08-09 | BQ32: 1.165273707 | BR32: 0.7012115467 | BS32: 0.7173075803 | BT32: 0.6556699904 | BU32: 0.552015629 | BV32: 0.4962475532 | BW32: 0.5058778895 | BX32: 0.4647721203 | BY32: 0.717226618 | BZ32: 0.7141052116 | CA32: 0.717226618 | CB32: 0.9956479496 | CC32: 0.9956479496 | CI32: 0.01427964255 | CJ32: 1.697135517 | CK32: 0.02956299103 | CL32: 2.926440482 | CM32: 0.0399420502 | CN32: 2.958507658 | CO32: 0.008571210379 | CP32: 0.540929087 | CQ32: 0.1055606678 | CR32: 8.03 | CS32: 0.03958331239 | CT32: 0.1055606678 | CU32: 0.008571210379
B33: BCFF11<XBSP> | C33: BCFF11 | D33: FII Bc Ffii | E33: =IF(B33="","",VLOOKUP(H33,'Base FII Guide'!$B$5:$C$40000,2,0)) -> 310360<BraNa> | F33: 310360 | G33: Fundo de Investimento Imobiliário - FII BTG Pactual Fundo de | H33: 11026627000138 | I33: TVM | J33: BTG Pactual Gestora de Recursos Ltda | K33: BTG Pactual Servicos Financeiros SA Dtvm | L33: 356388 | M33: 0.01159 | N33: 1660286.038 | O33: 2024-09-17 | P33: 8.24 | Q33: 8.881239958 | R33: 0.9277983749 | S33: 2024-04-05 | T33: 2592.52176 | U33: 2911.037435 | V33: 0.8905834493 | W33: 5341 | X33: 9647.354582 | Y33: 0.553623271 | AA33: 0.004878048781 | AB33: 0.006068129562 | AC33: -0.01906687569 | AD33: -0.0118293567 | AE33: -0.05442293819 | AF33: -0.06498421389 | AG33: 0.005872102052 | AH33: -0.002806532437 | AI33: 0.02177845431 | AJ33: -0.1128223576 | AK33: -0.04979595631 | AL33: -0.1183513111 | AM33: 0.007795941421 | AN33: -0.1327174573 | AO33: 0.1166312237 | AP33: -0.1099317433 | AQ33: 0.2222778704 | AR33: 0.02444039392 | AS33: 0.04399535899 | AT33: -0.3002308175 | AU33: 0.2127988125 | AV33: -0.08650934892 | AW33: 0.157490361 | AY33: 0.05908584169 | AZ33: -0.03805496829 | BA33: 0.05915925614 | BB33: -0.04865313839 | BC33: 4 | BD33: 8 | BE33: 4 | BF33: 8 | BG33: -0.5193538974 | BH33: 0.01634649624 | BI33: -0.1205242414 | BJ33: 2024-04-05 | BK33: 2024-06-20 | BO33: 1.012407379 | BP33: 1.016168326 | BQ33: 1.106719567 | BR33: 1.056865144 | BS33: 1.090558406 | BT33: 0.9532517808 | BU33: 0.8945897687 | BV33: 0.8221957134 | BW33: 0.8966578646 | BX33: 0.9432217716 | BY33: 0.9496601085 | BZ33: 0.8828602469 | CA33: 0.9496601085 | CB33: 0.9296591896 | CC33: 0.9296591896 | CE33: 0.07933528987 | CF33: 0.7779816863 | CG33: 0.0753201397 | CH33: 0.80875 | CI33: 0.05376580632 | CJ33: 0.7325591111 | CK33: 0.06597072751 | CL33: 0.76625 | CM33: 0.09394517336 | CN33: 0.830357901 | CO33: 0.1014186538 | CP33: 0.84 | CQ33: 0.09438888889 | CR33: 0.8495 | CS33: 0.08059209706 | CT33: 0.1014186538 | CU33: 0.05376580632
B34: BTAL11<XBSP> | C34: BTAL11 | D34: FII BTG Agro | E34: =IF(B34="","",VLOOKUP(H34,'Base FII Guide'!$B$5:$C$40000,2,0)) -> 581372<BraNa> | F34: 581372 | G34: Fundo de Investimento Imobiliário BTG Pactual Agro Logística | H34: 36642244000115 | I34: Outros | J34: BTG Pactual Gestora de Recursos Ltda | K34: BTG Pactual Servicos Financeiros SA Dtvm | L34: 42565 | M34: 0.00326 | N34: 467371.3363 | O34: 2024-09-17 | P34: 78.12 | Q34: 80.26216564 | R34: 0.9733103933 | S34: 2023-09-20 | T34: 451.78241 | U34: 807.137997 | V34: 0.5597337899 | W34: 756 | X34: 1761.250996 | Y34: 0.4292403534 | AA34: 0.003597122302 | AB34: 0.004787203083 | AC34: 0.01322957199 | AD34: 0.02046709097 | AE34: 0.06519437279 | AF34: 0.0546330971 | AG34: -0.006648333927 | AH34: -0.01532696842 | AI34: 0.1064943658 | AJ34: -0.02810644604 | AK34: 0.1535975406 | AL34: 0.08504218579 | AM34: -0.0003358350868 | AN34: -0.1408492339 | AO34: -0.04330589206 | AP34: -0.269868859 | AQ34: 0.1616979351 | AR34: -0.03613954131 | AW34: 0.1610786231 | AY34: 0.04940820259 | AZ34: -0.03112449799 | BA34: 0.1057504914 | BB34: -0.09887516189 | BC34: 8 | BD34: 4 | BE34: 7 | BF34: 5 | BG34: -0.5514257428 | BH34: 0.01668705024 | BI34: -0.178999614 | BJ34: 2023-09-20 | BK34: 2023-12-04 | BT34: 0.9526133477 | BU34: 0.9568382349 | BV34: 0.8832488316 | BW34: 0.9042759645 | BX34: 0.8732876915 | BY34: 0.7599264122 | BZ34: 0.6933576421 | CA34: 0.9042759645 | CB34: 0.7667544746 | CC34: 0.7667544746 | CM34: 0.1 | CN34: 9.9 | CO34: 0.09557894737 | CP34: 9.08 | CQ34: 0.09939449332 | CR34: 8.7 | CS34: 0.09832448023 | CT34: 0.1 | CU34: 0.09557894737
B35: BTCI11<XBSP> | C35: BTCI11 | D35: FII BTG Cri | E35: =IF(B35="","",VLOOKUP(H35,'Base FII Guide'!$B$5:$C$40000,2,0)) -> 311006<BraNa> | F35: 311006 | G35: Fundo de Investimento Imobiliário - BTG Pactual Crédito Imob | H35: 9552812000114 | I35: TVM | J35: BTG Pactual Gestora de Recursos Ltda | K35: BTG Pactual Servicos Financeiros SA Dtvm | L35: 179240 | M35: 0.00689 | N35: 987250.0262 | O35: 2024-09-17 | P35: 9.92 | Q35: 9.967632735 | R35: 0.9952212591 | S35: 2024-09-04 | T35: 1157.96634 | U35: 2153.536872 | V35: 0.5377044409 | W35: 6858 | X35: 12721.59362 | Y35: 0.5390834043 | AA35: -0.004016064258 | AB35: -0.002825983477 | AC35: 0.001192586624 | AD35: 0.00843010561 | AE35: 0.08523614645 | AF35: 0.07467487076 | AG35: 0.01130564305 | AH35: 0.002627008565 | AI35: 0.02866931767 | AJ35: -0.1059314942 | AK35: 0.04532347379 | AL35: -0.02323188098 | AM35: 0.1533707967 | AN35: 0.01285739797 | AO35: 0.291181235 | AP35: 0.06461826805 | AQ35: 0.5119056759 | AR35: 0.3140681994 | AS35: 0.433267469 | AT35: 0.08904129248 | AU35: 0.411677048 | AV35: 0.1123688866 | AW35: 0.1001799732 | AY35: 0.01782178218 | AZ35: -0.02541544477 | BA35: 0.03198906056 | BB35: -0.003515219318 | BC35: 10 | BD35: 2 | BE35: 9 | BF35: 3 | BG35: 0.4317595352 | BH35: 0.01035228724 | BI35: -0.02921129503 | BJ35: 2024-02-08 | BK35: 2024-02-14 | BL35: 1900-01-08 | BM35: 2024-02-22 | BO35: 1.062224742 | BP35: 1.17879868 | BQ35: 1.13486813 | BR35: 1.081868038 | BS35: 0.9660812586 | BT35: 0.9779571087 | BU35: 0.950679138 | BV35: 0.933505713 | BW35: 0.893161082 | BX35: 0.8874448731 | BY35: 0.9714885334 | BZ35: 0.9882792347 | CA35: 0.9882792347 | CB35: 1 | CC35: 1 | CE35: 0.1033760801 | CF35: 1.145751554 | CG35: 0.0772568891 | CH35: 0.9184985704 | CI35: 0.07322855387 | CJ35: 0.9266666667 | CK35: 0.09780100256 | CL35: 1.039298654 | CM35: 0.1351916979 | CN35: 1.33689568 | CO35: 0.1372481147 | CP35: 1.233555556 | CQ35: 0.1173416407 | CR35: 1.13 | CS35: 0.1059205684 | CT35: 0.1372481147 | CU35: 0.07322855387
B36: BTRA11<XBSP> | C36: BTRA11 | D36: FII BTG Tagr | E36: =IF(B36="","",VLOOKUP(H36,'Base FII Guide'!$B$5:$C$40000,2,0)) -> 604410<BraNa> | F36: 604410 | G36: Fundo de Investimento Imobiliário BTG Pactual Terras Agrícol | H36: 41076607000132 | I36: Outros | J36: BTG Pactual Gestora de Recursos Ltda | K36: BTG Pactual Servicos Financeiros SA Dtvm | L36: 15694 | M36: 0.00104 | N36: 149386.4196 | O36: 2024-09-17 | P36: 44.4 | Q36: 65.08627539 | R36: 0.6821714675 | S36: 2023-09-19 | T36: 651.00512 | U36: 516.6684453 | V36: 1.260005572 | W36: 282 | X36: 1030.270916 | Y36: 0.2737144139 | AA36: -0.0006752194458 | AB36: 0.0005148613345 | AC36: -0.03583061889 | AD36: -0.02859309991 | AE36: -0.2192995134 | AF36: -0.2298607891 | AG36: -0.08237327412 | AH36: -0.09105190861 | AI36: -0.1847604993 | AJ36: -0.3193613112 | AK36: -0.2259149948 | AL36: -0.2944703496 | AM36: -0.3080982165 | AN36: -0.4486116152 | AO36: -0.3694885051 | AP36: -0.5960514721 | AQ36: -0.3254226289 | AR36: -0.5232601054 | AW36: 0.2814337125 | AY36: 0.06685181512 | AZ36: -0.05028462998 | BA36: 0.1864157013 | BB36: -0.1699572545 | BC36: 6 | BD36: 6 | BE36: 3 | BF36: 9 | BG36: -1.249613443 | BH36: 0.02922095246 | BI36: -0.3178285324 | BJ36: 2023-09-19 | BK36: 2024-09-17 | BU36: 0.9653468698 | BV36: 0.8108950355 | BW36: 0.6214269296 | BX36: 0.6723604328 | BY36: 0.5487856629 | BZ36: 0.4013779572 | CA36: 0.8108950355 | CB36: 0.4949813967 | CC36: 0.4949813967 | CM36: 0.09976993626 | CN36: 9.951053443 | CO36: 0.09960552268 | CP36: 8.585 | CQ36: 0.06600475458 | CR36: 4.72 | CS36: 0.08846007118 | CT36: 0.09976993626 | CU36: 0.06600475458
B37: RECR11<XBSP> | C37: RECR11 | D37: FII Rec Rece | E37: =IF(B37="","",VLOOKUP(H37,'Base FII Guide'!$B$5:$C$40000,2,0)) -> 469556<BraNa> | F37: 469556 | G37: Fundo de Investimento Imobiliário - FII Rec Recebíveis Imobi | H37: 28152272000126 | I37: TVM | J37: Brl Dtvm | K37: Brl Dtvm | L37: 174697 | M37: 0.01525 | N37: 2185666.789 | O37: 2024-09-17 | P37: 82.66 | Q37: 86.22479439 | R37: 0.9586569685 | S37: 2024-05-31 | T37: 3102.39536 | U37: 2816.29199 | V37: 1.101588674 | W37: 2987 | X37: 4002 | Y37: 0.7463768116 | AA37: -0.002534089537 | AB37: -0.001344008757 | AC37: -0.01649827151 | AD37: -0.009260752524 | AE37: 0.02961031197 | AF37: 0.01904903627 | AG37: -0.01869694581 | AH37: -0.0273755803 | AI37: -0.01511618642 | AJ37: -0.1497169983 | AK37: 0.01810454022 | AL37: -0.05045081456 | AM37: -0.005514440339 | AN37: -0.1460278391 | AO37: 0.117861289 | AP37: -0.108701678 | AQ37: 0.1824884861 | AR37: -0.01534899032 | AS37: 0.5064323647 | AT37: 0.1622061881 | AU37: 0.5594120465 | AV37: 0.260103885 | AW37: 0.09411918903 | AY37: 0.01979961832 | AZ37: -0.02280130293 | BA37: 0.05332896343 | BB37: -0.03429371537 | BC37: 8 | BD37: 4 | BE37: 6 | BF37: 6 | BG37: -1.079070263 | BH37: 0.009719097355 | BI37: -0.08818693088 | BJ37: 2023-09-18 | BK37: 2023-11-24 | BL37: 1900-05-06 | BM37: 2024-03-25 | BO37: 1.094736127 | BP37: 1.131626541 | BQ37: 1.110960551 | BR37: 1.046771223 | BS37: 1.172863175 | BT37: 1.075362354 | BU37: 1.049099898 | BV37: 1.047674741 | BW37: 0.9207829877 | BX37: 0.9300611154 | BY37: 0.9141836007 | BZ37: 0.8859215687 | CA37: 1.047674741 | CB37: 0.8456074525 | CC37: 0.8456074525 | CE37: 0.1095695152 | CF37: 11.71736395 | CG37: 0.08209415646 | CH37: 8.7832538 | CI37: 0.1035166667 | CJ37: 11.1798 | CK37: 0.127147482 | CL37: 14.1388 | CM37: 0.1304320864 | CN37: 13.0406 | CO37: 0.1234404192 | CP37: 10.8356 | CQ37: 0.1086201733 | CR37: 10.1549 | CS37: 0.1121172142 | CT37: 0.1304320864 | CU37: 0.08209415646
B38: RECT11<XBSP> | C38: RECT11 | D38: FII Rec Rend | E38: =IF(B38="","",VLOOKUP(H38,'Base FII Guide'!$B$5:$C$40000,2,0)) -> 520985<BraNa> | F38: 520985 | G38: Fundo de Investimento Imobiliário - FII Rec Renda Imobiliári | H38: 32274163000159 | I38: Híbrido | J38: Brl Dtvm | K38: Brl Dtvm | L38: 58949 | M38: 0.002 | N38: 286292.4504 | O38: 2024-09-17 | P38: 33.51 | Q38: 43.99347104 | R38: 0.7617039348 | S38: 2024-01-03 | T38: 341.85568 | U38: 433.9501453 | V38: 0.7877763925 | W38: 551 | X38: 855.4741036 | Y38: 0.6440872935 | AA38: -0.004752004751 | AB38: -0.003561923971 | AC38: -0.03024115483 | AD38: -0.02300363585 | AE38: -0.2309257705 | AF38: -0.2414870462 | AG38: -0.02070622113 | AH38: -0.02938485562 | AI38: -0.00241126564 | AJ38: -0.1370120775 | AK38: -0.1536818004 | AL38: -0.2222371551 | AM38: -0.1719072392 | AN38: -0.312420638 | AO38: -0.3339262616 | AP38: -0.5604892286 | AQ38: -0.344682861 | AR38: -0.5425203375 | AS38: -0.4744279452 | AT38: -0.8186541217 | AU38: -0.40795522 | AV38: -0.7072633814 | AW38: 0.1183804802 | AY38: 0.03005464481 | AZ38: -0.03039647577 | BA38: 0.1081347011 | BB38: -0.1158191634 | BC38: 6 | BD38: 6 | BE38: 5 | BF38: 7 | BG38: -2.117031505 | BH38: 0.01222940923 | BI38: -0.2512105128 | BJ38: 2024-01-03 | BK38: 2024-06-20 | BP38: 1.015423377 | BQ38: 1.196233807 | BR38: 1.055534912 | BS38: 1.012985553 | BT38: 0.8276955564 | BU38: 0.750870051 | BV38: 0.5962153643 | BW38: 0.575266708 | BX38: 0.5611134981 | BY38: 0.5163513777 | BZ38: 0.3644306562 | CA38: 0.5962153643 | CB38: 0.6112399613 | CC38: 0.6112399613 | CI38: 0.07837574039 | CJ38: 9.3949 | CK38: 0.07327880658 | CL38: 7.1227 | CM38: 0.08274656509 | CN38: 6.0827 | CO38: 0.1013564669 | CP38: 5.4621 | CQ38: 0.1012208021 | CR38: 4.5934 | CS38: 0.08739567621 | CT38: 0.1013564669 | CU38: 0.07327880658
B39: GTWR11<XBSP> | C39: GTWR11 | D39: FII G Towers | E39: =IF(B39="","",VLOOKUP(H39,'Base FII Guide'!$B$5:$C$40000,2,0)) -> 445827<BraNa> | F39: 445827 | G39: Fundo de Investimento Imobiliário Green Towers | H39: 23740527000158 | I39: Lajes Corporativas | J39: BV Dtvm | K39: BV Dtvm | L39: 13 | M39: 0.00679 | N39: 973080 | O39: 2024-09-17 | P39: 81.09 | Q39: 83.71567168 | R39: 0.9686358405 | S39: 2024-06-07 | T39: 527.55369 | U39: 1107.734858 | V39: 0.4762454539 | W39: 1013 | X39: 2361.243028 | Y39: 0.429011325 | AA39: -0.0003698224855 | AB39: 0.0008202582948 | AC39: -0.006128201985 | AD39: 0.001109317002 | AE39: 0.01310478178 | AF39: 0.002543506082 | AG39: 0.001041187435 | AH39: -0.007637447054 | AI39: 0.002618979455 | AJ39: -0.1319818324 | AK39: 0.0006772119214 | AL39: -0.06787814285 | AM39: 0.06744470092 | AN39: -0.07306869785 | AO39: 0.2338421751 | AP39: 0.00727920808 | AQ39: 0.2416167905 | AR39: 0.04377931408 | AS39: 0.06864835954 | AT39: -0.275577817 | AU39: 0.2761445327 | AV39: -0.02316362875 | AW39: 0.1145619552 | AY39: 0.03337306317 | AZ39: -0.02054556007 | BA39: 0.06858895705 | BB39: -0.02644230769 | BC39: 7 | BD39: 5 | BE39: 7 | BF39: 5 | BG39: -0.2897530155 | BH39: 0.01186890724 | BI39: -0.05587121212 | BJ39: 2023-10-06 | BK39: 2023-10-25 | BL39: 1900-02-22 | BM39: 2023-12-26 | BP39: 0.9855884224 | BQ39: 1.183187096 | BR39: 1.219736331 | BS39: 1.100367149 | BT39: 0.9989714189 | BU39: 0.9009150962 | BV39: 0.7270516904 | BW39: 0.8311430775 | BX39: 0.8470462067 | BY39: 0.8536883338 | BZ39: 0.7998924199 | CA39: 0.8536883338 | CB39: 0.9369841291 | CC39: 0.9369841291 | CI39: 0.07058161624 | CJ39: 8.208806 | CK39: 0.07273629041 | CL39: 8.075352 | CM39: 0.100078891 | CN39: 8.88 | CO39: 0.1204421293 | CP39: 9.48 | CQ39: 0.1114245416 | CR39: 9.48 | CS39: 0.09505269372 | CT39: 0.1204421293 | CU39: 0.07058161624
B40: RBRY11<XBSP> | C40: RBRY11 | D40: FII Rbr Pcri | E40: =IF(B40="","",VLOOKUP(H40,'Base FII Guide'!$B$5:$C$40000,2,0)) -> 467693<BraNa> | F40: 467693 | G40: Fundo de Investimento Imobiliário Rbr Crédito Imobiliário Es | H40: 30166700000111 | I40: TVM | J40: - | K40: - | L40: 59987 | M40: 0.00852 | N40: 1221276.128 | O40: 2024-09-17 | P40: 95.64 | Q40: 96.22221392 | R40: 0.9939492774 | S40: 2024-09-09 | T40: 4153.15116 | U40: 3642.143699 | V40: 1.140304036 | W40: 8933 | X40: 7176.888446 | Y40: 1.244689822 | AA40: 0.001885606538 | AB40: 0.003075687318 | AC40: 0.006795818008 | AD40: 0.01403333699 | AE40: 0.04998251606 | AF40: 0.03942124036 | AG40: 0.008267127134 | AH40: -0.0004115073552 | AI40: 0.01851665896 | AJ40: -0.1160841529 | AK40: 0.02089441269 | AL40: -0.04766094208 | AM40: 0.08093925236 | AN40: -0.05957414641 | AO40: 0.2075781898 | AP40: -0.01898477719 | AQ40: 0.4270441388 | AR40: 0.2292066624 | AS40: 0.5423018357 | AT40: 0.1980756591 | AU40: 0.4017055729 | AV40: 0.1023974115 | AW40: 0.07478446779 | AY40: 0.01607237892 | AZ40: -0.01987676406 | BA40: 0.01899265433 | BB40: -0.01109575498 | BC40: 10 | BD40: 2 | BE40: 8 | BF40: 4 | BG40: -0.3305233671 | BH40: 0.007723641032 | BI40: -0.03093864401 | BJ40: 2024-05-10 | BK40: 2024-06-13 | BL40: 1900-03-24 | BM40: 2024-09-06 | BP40: 1.068455026 | BQ40: 1.168601643 | BR40: 0.9690288142 | BS40: 0.9914202827 | BT40: 0.9804050707 | BU40: 1.001014893 | BV40: 0.9902262362 | BW40: 0.9847745653 | BX40: 0.9827112579 | BY40: 1.019456318 | BZ40: 0.978174797 | CA40: 1.019456318 | CB40: 0.9595063367 | CC40: 0.9595063367 | CI40: 0.06489959839 | CJ40: 8.08 | CK40: 0.09785087688 | CL40: 10.21661006 | CM40: 0.1376708084 | CN40: 14.40036656 | CO40: 0.142828098 | CP40: 14.05 | CQ40: 0.1207859565 | CR40: 12.11 | CS40: 0.1128070676 | CT40: 0.142828098 | CU40: 0.06489959839
B41: RBRX11<XBSP> | C41: RBRX11 | D41: FII Rbr Mult | E41: =IF(B41="","",VLOOKUP(H41,'Base FII Guide'!$B$5:$C$40000,2,0)) -> 602264<BraNa> | F41: 602264 | G41: Rbr Plus Multiestratégia Real Estate Fundo de Investimento I | H41: 41088458000121 | I41: Híbrido | J41: Rbr Asset Management | K41: BTG Pactual Servicos Financeiros SA Dtvm | L41: 13832 | M41: 0.0018 | N41: 258440.1394 | O41: 2024-09-17 | P41: 8.77 | Q41: 9.265152123 | R41: 0.9465575831 | S41: 2024-05-17 | T41: 1062.31638 | U41: 876.6600802 | V41: 1.211776838 | W41: 9734 | X41: 5179.159362 | Y41: 1.879455587 | AA41: -0.009039548023 | AB41: -0.007849467243 | AC41: -0.02656999481 | AD41: -0.01933247582 | AE41: 0.02745951875 | AF41: 0.01689824305 | AG41: -0.02763969811 | AH41: -0.0363183326 | AI41: -0.001765049658 | AJ41: -0.1363658615 | AK41: -0.03956001108 | AL41: -0.1081153659 | AM41: 0.08024504977 | AN41: -0.060268349 | AO41: 0.2391960069 | AP41: 0.01263303989 | AW41: 0.1043702437 | AY41: 0.03174603175 | AZ41: -0.02127659574 | BA41: 0.0413685336 | BB41: -0.03108419015 | BC41: 8 | BD41: 4 | BE41: 7 | BF41: 5 | BG41: -0.2175270725 | BH41: 0.01080314273 | BI41: -0.06537470897 | BJ41: 2024-05-17 | BK41: 2024-06-25 | BW41: 0.9555231795 | BX41: 0.9394687041 | BY41: 0.9689666082 | BZ41: 0.9114909671 | CA41: 0.9689666082 | CB41: 0.9406835689 | CC41: 0.9406835689 | CO41: 0.1522277228 | CP41: 1.353 | CQ41: 0.1404250705 | CR41: 1.295 | CS41: 0.1463263966 | CT41: 0.1522277228 | CU41: 0.1404250705
B42: RBRP11<XBSP> | C42: RBRP11 | D42: FII Rbr Prop | E42: =IF(B42="","",VLOOKUP(H42,'Base FII Guide'!$B$5:$C$40000,2,0)) -> 401943<BraNa> | F42: 401943 | G42: Fundo de Investimento Imobiliario Rbr Properties - FII | H42: 21408063000151 | I42: Lajes Corporativas | J42: Rbr Asset Management | K42: Brl Dtvm | L42: 82604 | M42: 0.00469 | N42: 672291.119 | O42: 2024-09-17 | P42: 55.2 | Q42: 59.91391784 | R42: 0.9213218229 | S42: 2024-05-08 | T42: 1041.18315 | U42: 1297.345801 | V42: 0.802548672 | W42: 3267 | X42: 4280.354582 | Y42: 0.7632545243 | AA42: -0.01075268817 | AB42: -0.009562607392 | AC42: -0.04766286345 | AD42: -0.04042534447 | AE42: 0.0861115297 | AF42: 0.07555025401 | AG42: -0.02636671505 | AH42: -0.03504534954 | AI42: 0.007747122798 | AJ42: -0.1268536891 | AK42: 0.009327426313 | AL42: -0.05922792846 | AM42: 0.05116225707 | AN42: -0.0893511417 | AO42: 0.08732908409 | AP42: -0.1392338829 | AQ42: -0.06609148111 | AR42: -0.2639289576 | AS42: -0.1558259694 | AT42: -0.5000521459 | AU42: -0.01141704699 | AV42: -0.3107252084 | AW42: 0.2290835696 | AY42: 0.06879223705 | AZ42: -0.04101815824 | BA42: 0.06696695078 | BB42: -0.0904100887 | BC42: 7 | BD42: 5 | BE42: 7 | BF42: 5 | BG42: -0.1265332888 | BH42: 0.02377211879 | BI42: -0.1253446483 | BJ42: 2023-09-21 | BK42: 2023-11-01 | BL42: 1900-03-12 | BM42: 2024-01-09 | BO42: 1.023899064 | BP42: 1.058358361 | BQ42: 1.134192365 | BR42: 1.022652515 | BS42: 1.074706232 | BT42: 0.9335064911 | BU42: 0.9313563768 | BV42: 0.6992364158 | BW42: 0.6240888924 | BX42: 0.7125611384 | BY42: 0.682352808 | BZ42: 0.7029940081 | CA42: 0.7125611384 | CB42: 0.9865736007 | CC42: 0.9865736007 | CG42: 0.06106895424 | CH42: 4.915898669 | CI42: 0.05922233713 | CJ42: 5.7268 | CK42: 0.05557894737 | CL42: 5.28 | CM42: 0.06499808454 | CN42: 5.09 | CO42: 0.06314963718 | CP42: 3.22 | CQ42: 0.09041905756 | CR42: 5.2 | CS42: 0.065739503 | CT42: 0.09041905756 | CU42: 0.05557894737
B43: RZTR11<XBSP> | C43: RZTR11 | D43: FII Riza Tx | E43: =IF(B43="","",VLOOKUP(H43,'Base FII Guide'!$B$5:$C$40000,2,0)) -> 558346<BraNa> | F43: 558346 | G43: Fundo de Investimento Imobiliário Riza Terrax | H43: 36501128000186 | I43: Híbrido | J43: Riza Asset | K43: Banco Genial S.A. | L43: 1 | M43: 0.0121 | N43: 1734923.792 | O43: 2024-09-17 | P43: 92.03 | Q43: 99.50635187 | R43: 0.9248655817 | S43: 2023-12-28 | T43: 3688.10267 | U43: 4011.497185 | V43: 0.9193830881 | W43: 7505 | X43: 7947.247012 | Y43: 0.9443521749 | AA43: 0.0002173676785 | AB43: 0.001407448459 | AC43: -0.01928815004 | AD43: -0.01205063106 | AE43: -0.07513441832 | AF43: -0.08569569401 | AG43: -0.01324723168 | AH43: -0.02192586617 | AI43: 0.02534616936 | AJ43: -0.1092546425 | AK43: 0.03111449246 | AL43: -0.03744086232 | AM43: 0.04845737141 | AN43: -0.09205602736 | AO43: 0.136539715 | AP43: -0.09002325194 | AQ43: 0.3722509952 | AR43: 0.1744135188 | AW43: 0.1293056584 | AY43: 0.03264837801 | AZ43: -0.02950752951 | BA43: 0.07689250944 | BB43: -0.05057000877 | BC43: 7 | BD43: 5 | BE43: 6 | BF43: 6 | BG43: -0.3768098754 | BH43: 0.01339546159 | BI43: -0.1030427868 | BJ43: 2023-12-28 | BK43: 2024-03-15 | BS43: 1.08563294 | BT43: 0.9938713266 | BU43: 0.9963928137 | BV43: 1.027856593 | BW43: 1.017582339 | BX43: 0.8830428212 | BY43: 1.079446429 | BZ43: 0.926882126 | CA43: 1.079446429 | CB43: 0.8586643129 | CC43: 0.8586643129 | CK43: 0.08910232027 | CL43: 9.37 | CM43: 0.149224035 | CN43: 15 | CO43: 0.1166027839 | CP43: 11.56 | CQ43: 0.1217548803 | CR43: 12.1 | CS43: 0.1191710049 | CT43: 0.149224035 | CU43: 0.08910232027
B44: SPXS11<XBSP> | C44: SPXS11 | D44: FII Spx Syn | E44: =IF(B44="","",VLOOKUP(H44,'Base FII Guide'!$B$5:$C$40000,2,0)) -> 671551<BraNa> | F44: 671551 | G44: Fundo de Investimento Imobiliário - Spx Syn Multiestratégia | H44: 43010543000100 | I44: Híbrido | J44: Spx Syn Gestao de Recursos Ltda. | K44: BTG Pactual Servicos Financeiros SA Dtvm | L44: 18571 | M44: 0.0013 | N44: 185739.168 | O44: 2024-09-17 | P44: 9.2 | Q44: 9.54082192 | R44: 0.9642775096 | S44: 2024-06-17 | T44: 259.08691 | U44: 757.5610087 | V44: 0.3420013795 | W44: 2247 | X44: 5020.537849 | Y44: 0.4475616095 | AA44: 0 | AB44: 0.00119008078 | AC44: -0.01170123035 | AD44: -0.004463711367 | AE44: 0.06118334589 | AF44: 0.05062207019 | AG44: -0.003227071558 | AH44: -0.01190570605 | AI44: -0.03572249041 | AJ44: -0.1703233023 | AK44: 0.03360060134 | AL44: -0.03495475343 | AM44: 0.0305626033 | AN44: -0.1099507955 | AO44: 0.1977238395 | AP44: -0.02883912746 | AW44: 0.1387215825 | AY44: 0.03902953586 | AZ44: -0.02841530055 | BA44: 0.05224728551 | BB44: -0.04541227308 | BC44: 7 | BD44: 5 | BE44: 8 | BF44: 4 | BG44: -0.4608159356 | BH44: 0.01434038849 | BI44: -0.09020181067 | BJ44: 2023-09-18 | BK44: 2023-12-05 | BL44: 1900-04-07 | BM44: 2024-02-09 | BW44: 1.001287512 | BX44: 0.9689576137 | BY44: 0.9840207853 | BZ44: 0.9629751835 | CA44: 1.001287512 | CB44: 0.9617369353 | CC44: 0.9617369353 | CO44: 0.1295661376 | CP44: 1.2244 | CQ44: 0.1148742325 | CR44: 1.16 | CS44: 0.122220185 | CT44: 0.1295661376 | CU44: 0.1148742325
B45: TRBL11<XBSP> | C45: TRBL11 | D45: FII Sdi Log | E45: =IF(B45="","",VLOOKUP(H45,'Base FII Guide'!$B$5:$C$40000,2,0)) -> 362001<BraNa> | F45: 362001 | G45: Fundo de Investimento Imobiliário Tellus Rio Bravo Renda Log | H45: 16671412000193 | I45: Logistica | J45: Rio Bravo Investimentos Ltda | K45: Rio Bravo Investimentos Dtvm | L45: 59817 | M45: 0.005 | N45: 716639.9192 | O45: 2024-09-17 | P45: 92.6 | Q45: 100.3929663 | R45: 0.9223753755 | S45: 2024-05-22 | T45: 1048.80359 | U45: 852.2926562 | V45: 1.230567438 | W45: 1204 | X45: 1153.063745 | Y45: 1.044174709 | AA45: -0.008565310493 | AB45: -0.007375229713 | AC45: -0.03692147686 | AD45: -0.02968395787 | AE45: 0.02242581557 | AF45: 0.01186453987 | AG45: -0.02961860658 | AH45: -0.03829724107 | AI45: -0.03812718647 | AJ45: -0.1727279984 | AK45: -0.02514034401 | AL45: -0.09369569878 | AM45: 0.02539148526 | AN45: -0.1151219135 | AO45: 0.1631986369 | AP45: -0.06336433007 | AQ45: 0.3842833345 | AR45: 0.186445858 | AS45: 0.3384721951 | AT45: -0.0057539814 | AU45: 0.2418953344 | AV45: -0.05741282699 | AW45: 0.1139989765 | AY45: 0.02736293475 | AZ45: -0.0299202816 | BA45: 0.02969684471 | BB45: -0.03692147686 | BC45: 8 | BD45: 4 | BE45: 6 | BF45: 6 | BG45: -0.6287238943 | BH45: 0.01176796718 | BI45: -0.07762462455 | BJ45: 2024-05-22 | BK45: 2024-09-17 | BO45: 1.135782975 | BP45: 1.230679913 | BQ45: 1.565375734 | BR45: 1.14191897 | BS45: 0.9702466196 | BT45: 0.9122737041 | BU45: 0.9275352701 | BV45: 0.8831982452 | BW45: 0.9642424327 | BX45: 1.0116803 | BY45: 0.9892985329 | BZ45: 0.9251759215 | CA45: 1.0116803 | CB45: 0.9144943531 | CC45: 0.9144943531 | CE45: 0.07977327595 | CF45: 7.6 | CG45: 0.07156416097 | CH45: 7.54 | CI45: 0.04149099913 | CJ45: 6.2 | CK45: 0.07409205671 | CL45: 7.63 | CM45: 0.1022689541 | CN45: 9.24 | CO45: 0.09992582389 | CP45: 9.43 | CQ45: 0.09719851391 | CR45: 9.68 | CS45: 0.08090196923 | CT45: 0.1022689541 | CU45: 0.04149099913
B46: TGAR11<XBSP> | C46: TGAR11 | D46: FII Tg Ativo | E46: =IF(B46="","",VLOOKUP(H46,'Base FII Guide'!$B$5:$C$40000,2,0)) -> 443141<BraNa> | F46: 443141 | G46: Fundo de Investimento Imobiliário Tg Ativo Real | H46: 25032881000153 | I46: Híbrido | J46: Tg Core Asset | K46: Vortx Dtvm Ltda | L46: 169467 | M46: 0.01904 | N46: 2729170.737 | O46: 2024-09-17 | P46: 115.8 | Q46: 120.4230295 | R46: 0.961610088 | S46: 2024-05-31 | T46: 10679.85858 | U46: 6970.892692 | V46: 1.532064694 | W46: 14091 | X46: 10844.99602 | Y46: 1.299308914 | AA46: -0.002927501291 | AB46: -0.001737420511 | AC46: -0.02713601613 | AD46: -0.01989849714 | AE46: 0.04625630712 | AF46: 0.03569503142 | AG46: -0.01158796159 | AH46: -0.02026659608 | AI46: -0.02533007988 | AJ46: -0.1599308918 | AK46: -0.01595587605 | AL46: -0.08451123083 | AM46: 0.07848198401 | AN46: -0.06203141476 | AO46: 0.1893852277 | AP46: -0.03717773929 | AQ46: 0.3685245905 | AR46: 0.1706871141 | AS46: 0.5424117985 | AT46: 0.198185622 | AU46: 0.6127691059 | AV46: 0.3134609445 | AW46: 0.0921102604 | AY46: 0.02062101911 | AZ46: -0.02603344904 | BA46: 0.03121714517 | BB46: -0.04444993374 | BC46: 9 | BD46: 3 | BE46: 7 | BF46: 5 | BG46: -0.2772363131 | BH46: 0.009513707563 | BI46: -0.04500576309 | BJ46: 2023-09-29 | BK46: 2023-10-26 | BL46: 1900-03-11 | BM46: 2024-01-16 | BO46: 0.9722788505 | BP46: 0.9897394539 | BQ46: 1.035116284 | BR46: 1.04105114 | BS46: 1.005794303 | BT46: 1.003153877 | BU46: 0.9063029139 | BV46: 0.92926488 | BW46: 0.9446286781 | BX46: 1.018636664 | BY46: 0.9777617861 | BZ46: 1.018949343 | CA46: 1.018949343 | CB46: 1 | CC46: 1 | CE46: 0.08242146135 | CF46: 9.34 | CG46: 0.08739372139 | CH46: 10.69 | CI46: 0.08809265291 | CJ46: 12.17 | CK46: 0.1065261269 | CL46: 14.25 | CM46: 0.1436312104 | CN46: 17.23 | CO46: 0.1364540182 | CP46: 16.47 | CQ46: 0.1294165316 | CR46: 15.97 | CS46: 0.1105622461 | CT46: 0.1436312104 | CU46: 0.08242146135
B47: RBRR11<XBSP> | C47: RBRR11 | D47: FII Rbrhgrad | E47: =IF(B47="","",VLOOKUP(H47,'Base FII Guide'!$B$5:$C$40000,2,0)) -> 466131<BraNa> | F47: 466131 | G47: Fundo de Investimento Imobiliário - FII Rbr Rendimento High | H47: 29467977000103 | I47: TVM | J47: Rbr Asset Management | K47: BTG Pactual Servicos Financeiros SA Dtvm | L47: 132461 | M47: 0.00953 | N47: 1365236.415 | O47: 2024-09-17 | P47: 90.67 | Q47: 91.34517888 | R47: 0.9926084891 | S47: 2024-09-09 | T47: 2943.14116 | U47: 3244.758604 | V47: 0.9070447201 | W47: 4514 | X47: 7889.625498 | Y47: 0.5721437603 | AA47: -0.0001102779006 | AB47: 0.00107980288 | AC47: 0.003162366518 | AD47: 0.0103998855 | AE47: 0.1048564369 | AF47: 0.09429516121 | AG47: 0.00614009122 | AH47: -0.002538543269 | AI47: 0.03099512816 | AJ47: -0.1036056837 | AK47: 0.06052948172 | AL47: -0.008025873054 | AM47: 0.1125338848 | AN47: -0.02797951395 | AO47: 0.1787771493 | AP47: -0.0477858177 | AQ47: 0.3152086593 | AR47: 0.1173711828 | AS47: 0.387888572 | AT47: 0.04366239545 | AU47: 0.4495078846 | AV47: 0.1501997232 | AW47: 0.1118836784 | AY47: 0.0207786277 | AZ47: -0.02438206017 | BA47: 0.05187436489 | BB47: -0.02096784302 | BC47: 7 | BD47: 5 | BE47: 8 | BF47: 4 | BG47: 0.06621313626 | BH47: 0.01156031912 | BI47: -0.04676339286 | BJ47: 2023-11-16 | BK47: 2023-11-28 | BL47: 1900-01-27 | BM47: 2023-12-26 | BO47: 1.123238112 | BP47: 1.112874909 | BQ47: 1.117308537 | BR47: 1.023500329 | BS47: 0.9526398528 | BT47: 0.989810654 | BU47: 0.9827561087 | BV47: 1.052563557 | BW47: 0.8952504274 | BX47: 0.9460588752 | BY47: 0.9311081635 | BZ47: 0.9623716378 | CA47: 1.052563557 | CB47: 0.9143121393 | CC47: 0.9143121393 | CG47: 0.06536875274 | CH47: 7.066362171 | CI47: 0.05911322142 | CJ47: 6.495951902 | CK47: 0.09785469815 | CL47: 9.3040247 | CM47: 0.1246690248 | CN47: 12.336 | CO47: 0.1175969622 | CP47: 9.90401616 | CQ47: 0.1047624309 | CR47: 9.481 | CS47: 0.09489418171 | CT47: 0.1246690248 | CU47: 0.05911322142
B48: CVBI11<XBSP> | C48: CVBI11 | D48: FII Vbi Cri | E48: =IF(B48="","",VLOOKUP(H48,'Base FII Guide'!$B$5:$C$40000,2,0)) -> 495344<BraNa> | F48: 495344 | G48: Fundo de Investimento Imobiliário - Vbi Cri | H48: 28729197000113 | I48: TVM | J48: Vbi Real Estate Gestao de Carteiras Ltda | K48: Brl Dtvm | L48: 95487 | M48: 0.00713 | N48: 1022299.67 | O48: 2024-09-17 | P48: 92.85 | Q48: 93.53624854 | R48: 0.9926632878 | S48: 2024-09-06 | T48: 1848.89167 | U48: 2594.874739 | V48: 0.7125167323 | W48: 5768 | X48: 5683.38247 | Y48: 1.014888586 | AA48: 0.001618122979 | AB48: 0.002808203759 | AC48: -0.002475895603 | AD48: 0.004761623383 | AE48: 0.1006922902 | AF48: 0.09013101453 | AG48: 0.002218335476 | AH48: -0.006460299013 | AI48: 0.0299979445 | AJ48: -0.1046028674 | AK48: 0.04449547819 | AL48: -0.02405987658 | AM48: 0.1182333625 | AN48: -0.02228003625 | AO48: 0.3067108893 | AP48: 0.08014792229 | AQ48: 0.344520726 | AR48: 0.1466832495 | AS48: 0.6833317861 | AT48: 0.3391056096 | AW48: 0.1168941856 | AY48: 0.03336773306 | AZ48: -0.01924686192 | BA48: 0.04416341917 | BB48: -0.009390660316 | BC48: 8 | BD48: 4 | BE48: 10 | BF48: 2 | BG48: 0.1124870207 | BH48: 0.01210964674 | BI48: -0.05839759029 | BJ48: 2023-09-18 | BK48: 2023-11-27 | BL48: 1900-03-09 | BM48: 2023-12-28 | BQ48: 1.045041198 | BR48: 0.9007792175 | BS48: 1.049801552 | BT48: 1.016039205 | BU48: 1.022372075 | BV48: 0.9979204826 | BW48: 0.9194989852 | BX48: 0.9311496274 | BY48: 0.9527587297 | BZ48: 0.9848085431 | CA48: 0.9979204826 | CB48: 0.9868607371 | CC48: 0.9868607371 | CI48: 0.08784688995 | CJ48: 9.18 | CK48: 0.1296596434 | CL48: 13.6 | CM48: 0.1231295844 | CN48: 12.59 | CO48: 0.1326767091 | CP48: 11.45 | CQ48: 0.1163414111 | CR48: 10.85 | CS48: 0.1179308476 | CT48: 0.1326767091 | CU48: 0.08784688995
B49: PVBI11<XBSP> | C49: PVBI11 | D49: FII Vbi Pri | E49: =IF(B49="","",VLOOKUP(H49,'Base FII Guide'!$B$5:$C$40000,2,0)) -> 558133<BraNa> | F49: 558133 | G49: Fundo de Investimento Imobiliário - Vbi Prime Properties | H49: 35652102000176 | I49: Lajes Corporativas | J49: Vbi Real Estate Gestao de Carteiras Ltda | K49: BTG Pactual Servicos Financeiros SA Dtvm | L49: 167233 | M49: 0.01695 | N49: 2428140.996 | O49: 2024-09-17 | P49: 89.5 | Q49: 99.52330716 | R49: 0.899286836 | S49: 2023-10-16 | T49: 5213.12309 | U49: 5290.207397 | V49: 0.9854288687 | W49: 16614 | X49: 10812.6255 | Y49: 1.536537079 | AA49: -0.006328411235 | AB49: -0.005138330455 | AC49: -0.03804815133 | AD49: -0.03081063235 | AE49: -0.07862370012 | AF49: -0.08918497582 | AG49: -0.03897132969 | AH49: -0.04764996418 | AI49: 0.01044081877 | AJ49: -0.1241599931 | AK49: -0.08296940221 | AL49: -0.151524757 | AM49: -0.1065920564 | AN49: -0.2471054551 | AO49: 0.08157301616 | AP49: -0.1449899508 | AQ49: 0.2948779048 | AR49: 0.09704042833 | AS49: 0.2137841521 | AT49: -0.1304420244 | AW49: 0.1231511508 | AY49: 0.03338801505 | AZ49: -0.02659778033 | BA49: 0.02990939854 | BB49: -0.0406177916 | BC49: 4 | BD49: 8 | BE49: 2 | BF49: 10 | BG49: -1.547009692 | BH49: 0.01273561945 | BI49: -0.1257488445 | BJ49: 2023-10-16 | BK49: 2024-06-20 | BS49: 0.9978039184 | BT49: 0.9425726371 | BU49: 0.9507673533 | BV49: 0.9251072556 | BW49: 0.9012899485 | BX49: 0.9673193602 | BY49: 1.021425872 | BZ49: 0.8514660887 | CA49: 1.021425872 | CB49: 0.8336053669 | CC49: 0.8336053669 | CK49: 0.06631080791 | CL49: 6.391035666 | CM49: 0.07147395171 | CN49: 6.75 | CO49: 0.08285039708 | CP49: 7.72 | CQ49: 0.07387354318 | CR49: 8.05 | CS49: 0.07362717497 | CT49: 0.08285039708 | CU49: 0.06631080791
B50: BARI11<XBSP> | C50: BARI11 | D50: FII Barigui | E50: =IF(B50="","",VLOOKUP(H50,'Base FII Guide'!$B$5:$C$40000,2,0)) -> 495603<BraNa> | F50: 495603 | G50: Fundo de Investimento Imobiliário Vbi Rendimentos Imobiliári | H50: 29267567000100 | I50: TVM | J50: Vbi Securities Ltda | K50: Oliveira Trust Dtvm | L50: 39850 | M50: 0.00247 | N50: 354515.6115 | O50: 2024-09-17 | P50: 76.5 | Q50: 82.4593328 | R50: 0.9277300385 | S50: 2024-06-28 | T50: 439.37441 | U50: 710.9697908 | V50: 0.6179930789 | W50: 1610 | X50: 1629.896414 | Y50: 0.9877928351 | AA50: 0 | AB50: 0.00119008078 | AC50: -0.03421285191 | AD50: -0.02697533293 | AE50: 0.0003298985903 | AF50: -0.01023137711 | AG50: -0.03288323256 | AH50: -0.04156186705 | AI50: 0.02073134017 | AJ50: -0.1138694717 | AK50: -0.04007159715 | AL50: -0.1086269519 | AM50: 0.01774431214 | AN50: -0.1227690866 | AO50: -0.007008917162 | AP50: -0.2335718841 | AQ50: 0.06882908535 | AR50: -0.1290083911 | AS50: 0.2112742717 | AT50: -0.1329519048 | AU50: 0.3354503791 | AV50: 0.03614221764 | AW50: 0.1447758563 | AY50: 0.07327858497 | AZ50: -0.03865943607 | BA50: 0.05580412627 | BB50: -0.0543071161 | BC50: 6 | BD50: 6 | BE50: 7 | BF50: 5 | BG50: -0.5113545609 | BH50: 0.01511657368 | BI50: -0.08651375832 | BJ50: 2024-03-28 | BK50: 2024-06-13 | BL50: 1900-03-03 | BM50: 2024-06-28 | BQ50: 1.085328419 | BR50: 0.982634912 | BS50: 1.111535608 | BT50: 1.028169871 | BU50: 1.007487381 | BV50: 0.9849675887 | BW50: 0.9091985911 | BX50: 0.8773515226 | BY50: 0.8608808329 | BZ50: 0.8290315394 | CA50: 0.9849675887 | CB50: 0.8416840807 | CC50: 0.8416840807 | CI50: 0.08508307468 | CJ50: 9.32 | CK50: 0.1359035296 | CL50: 15.44 | CM50: 0.1390243902 | CN50: 14.25 | CO50: 0.1103713956 | CP50: 9.5692 | CQ50: 0.1070513126 | CR50: 8.9709 | CS50: 0.1154867406 | CT50: 0.1390243902 | CU50: 0.08508307468
B51: VILG11<XBSP> | C51: VILG11 | D51: FII Vincilog | E51: =IF(B51="","",VLOOKUP(H51,'Base FII Guide'!$B$5:$C$40000,2,0)) -> 504361<BraNa> | F51: 504361 | G51: Vinci Logistica Fundo de Investimento Imobiliario - FII | H51: 24853044000122 | I51: Logistica | J51: Vinci Real State Gestora de Rec Ltda | K51: Brl Dtvm | L51: 159148 | M51: 0.00908 | N51: 1301024.103 | O51: 2024-09-17 | P51: 86.75 | Q51: 99.5297393 | R51: 0.8715987866 | S51: 2023-09-20 | T51: 1659.85137 | U51: 2385.636923 | V51: 0.6957686452 | W51: 2372 | X51: 4650.071713 | Y51: 0.51009966 | AA51: -0.01150865998 | AB51: -0.0103185792 | AC51: -0.006982600732 | AD51: 0.0002549182546 | AE51: -0.07108131608 | AF51: -0.08164259178 | AG51: -0.01769861583 | AH51: -0.02637725032 | AI51: 0.08002953518 | AJ51: -0.0545712767 | AK51: -0.008829169352 | AL51: -0.07738452413 | AM51: -0.126134166 | AN51: -0.2666475647 | AO51: -0.06676552602 | AP51: -0.293328493 | AQ51: 0.02891694414 | AR51: -0.1689205323 | AS51: -0.07251268304 | AT51: -0.4167388596 | AU51: 0.2135357805 | AV51: -0.08577238089 | AW51: 0.1707312677 | AY51: 0.04750261963 | AZ51: -0.04666666667 | BA51: 0.06442272892 | BB51: -0.05708202372 | BC51: 5 | BD51: 7 | BE51: 4 | BF51: 8 | BG51: -1.185505191 | BH51: 0.01768053141 | BI51: -0.1978979873 | BJ51: 2023-09-20 | BK51: 2024-06-20 | BP51: 1.041869403 | BQ51: 1.369900181 | BR51: 1.120814924 | BS51: 1.11625102 | BT51: 0.9549071111 | BU51: 0.918399742 | BV51: 0.8424308988 | BW51: 0.8838649637 | BX51: 0.9914430488 | BY51: 0.864474626 | BZ51: 0.7633870553 | CA51: 0.9914430488 | CB51: 0.7699756998 | CC51: 0.7699756998 | CI51: 0.04595331516 | CJ51: 6.91 | CK51: 0.05583155902 | CL51: 7.08 | CM51: 0.081163567 | CN51: 8.51 | CO51: 0.08112465988 | CP51: 8.05 | CQ51: 0.07013469577 | CR51: 7.55 | CS51: 0.06684155937 | CT51: 0.081163567 | CU51: 0.04595331516
B52: XPLG11<XBSP> | C52: XPLG11 | D52: FII Xp Log | E52: =IF(B52="","",VLOOKUP(H52,'Base FII Guide'!$B$5:$C$40000,2,0)) -> 471143<BraNa> | F52: 471143 | G52: Xp Log Fundo de Investimento Imobiliário - FII | H52: 26502794000185 | I52: Logistica | J52: Xp Asset Management | K52: Vortx Dtvm Ltda | L52: 348695 | M52: 0.02095 | N52: 3002189.562 | O52: 2024-09-17 | P52: 101.38 | Q52: 107.0048729 | R52: 0.9474334886 | S52: 2024-03-05 | T52: 3138.16443 | U52: 5008.72185 | V52: 0.6265399685 | W52: 5898 | X52: 7700.207171 | Y52: 0.7659534177 | AA52: -0.001674052191 | AB52: -0.0004839714111 | AC52: -0.01054069881 | AD52: -0.003303179821 | AE52: -0.005193295073 | AF52: -0.01575457077 | AG52: -0.01397897437 | AH52: -0.02265760886 | AI52: 0.01164892502 | AJ52: -0.1229518869 | AK52: -0.01177681133 | AL52: -0.0803321661 | AM52: -0.04203088268 | AN52: -0.1825442814 | AO52: 0.1019163327 | AP52: -0.1246466342 | AQ52: 0.3054258096 | AR52: 0.1075883332 | AS52: 0.08473516716 | AT52: -0.2594910094 | AU52: 0.4905615261 | AV52: 0.1912533647 | AW52: 0.1086124278 | AY52: 0.0273639108 | AZ52: -0.0432938856 | BA52: 0.04853683148 | BB52: -0.04338295735 | BC52: 6 | BD52: 6 | BE52: 5 | BF52: 7 | BG52: -1.233967318 | BH52: 0.01117043938 | BI52: -0.1139829106 | BJ52: 2024-03-05 | BK52: 2024-06-21 | BO52: 1.037063607 | BP52: 1.032701884 | BQ52: 1.558343564 | BR52: 1.190454933 | BS52: 1.121527237 | BT52: 0.9563131986 | BU52: 0.9143283927 | BV52: 0.8241251164 | BW52: 0.8632564398 | BX52: 1.009979352 | BY52: 0.9798590501 | BZ52: 0.9008173032 | CA52: 1.009979352 | CB52: 0.8919165536 | CC52: 0.8919165536 | CG52: 0.07705585998 | CH52: 7.678 | CI52: 0.04642433821 | CJ52: 7.05 | CK52: 0.0592382496 | CL52: 7.31 | CM52: 0.08156446541 | CN52: 8.3 | CO52: 0.09294285133 | CP52: 9.14 | CQ52: 0.08101791742 | CR52: 9.36 | CS52: 0.07304061366 | CT52: 0.09294285133 | CU52: 0.04642433821
B53: KFOF11<XBSP> | C53: KFOF11 | D53: FII Kineafof | E53: =IF(B53="","",VLOOKUP(H53,'Base FII Guide'!$B$5:$C$40000,2,0)) -> 482684<BraNa> | F53: 482684 | G53: Fundo de Fundos de Investimento Imobiliário Kinea FII Respon | H53: 30091444000140 | I53: TVM | J53: Kinea Investimento Ltda | K53: Intrag | L53: 23112 | M53: 0.00411 | N53: 588522.0035 | O53: 2024-09-17 | P53: 83.9 | Q53: 99.76541941 | R53: 0.8409727588 | S53: 2024-04-15 | T53: 995.18502 | U53: 1301.42422 | V53: 0.7646891804 | W53: 1751 | X53: 2323.334661 | Y53: 0.7536581058 | AA53: -0.00119047619 | AB53: -3.954101e-07 | AC53: -0.03184860374 | AD53: -0.02461108475 | AE53: -0.07460093149 | AF53: -0.08516220719 | AG53: -0.05085112666 | AH53: -0.05952976115 | AI53: -0.0169676483 | AJ53: -0.1515684602 | AK53: -0.1196122105 | AL53: -0.1881675653 | AM53: -0.04303880461 | AN53: -0.1835522034 | AO53: 0.1806240263 | AP53: -0.04593894064 | AQ53: 0.4128228452 | AR53: 0.2149853688 | AS53: 0.07798226989 | AT53: -0.2662439066 | AU53: 0.1642456067 | AV53: -0.1350625547 | AW53: 0.1611734033 | AY53: 0.05122994652 | AZ53: -0.03841536615 | BA53: 0.04904997935 | BB53: -0.04370125013 | BC53: 5 | BD53: 7 | BE53: 4 | BF53: 8 | BG53: -0.7941203244 | BH53: 0.01667833638 | BI53: -0.1628361762 | BJ53: 2024-04-15 | BK53: 2024-09-12 | BP53: 0.9595342808 | BQ53: 1.197032431 | BR53: 1.008815563 | BS53: 0.9723506559 | BT53: 0.8570593636 | BU53: 0.8038915287 | BV53: 0.8178668847 | BW53: 0.8550983969 | BX53: 0.9532709802 | BY53: 0.9880638678 | BZ53: 0.8977473101 | CA53: 0.9880638678 | CB53: 0.908592389 | CC53: 0.908592389 | CI53: 0.03930489731 | CJ53: 6.22 | CK53: 0.06447677147 | CL53: 6.87 | CM53: 0.1063774516 | CN53: 8.19 | CO53: 0.1194337194 | CP53: 9.28 | CQ53: 0.09975267931 | CR53: 9.68 | CS53: 0.08586910383 | CT53: 0.1194337194 | CU53: 0.03930489731
B54: GZIT11<XBSP> | C54: GZIT11 | D54: FII Gazit | E54: =IF(B54="","",VLOOKUP(H54,'Base FII Guide'!$B$5:$C$40000,2,0)) -> 461571<BraNa> | F54: 461571 | G54: Gazit Malls Fundo de Investimento Imobiliário | H54: 15447108000102 | I54: Shoppings | J54: BTG Pactual Gestora de Recursos Ltda | K54: BTG Pactual Servicos Financeiros SA Dtvm | L54: 5705 | M54: 0.00884 | N54: 1266572.986 | O54: 2024-09-17 | P54: 57.99 | T54: 424.16858 | W54: 2165 | AA54: 0.01736842105 | AB54: 0.01855850183 | AC54: 0.02275132275 | AD54: 0.02998884174 | AG54: 0.03877309359 | AH54: 0.0300944591 | AI54: -0.006390481645 | AJ54: -0.1409912935 | AK54: -0.09212978937 | AL54: -0.1606851441 | AY54: 0.03449296817 | AZ54: -0.0403548941 | BA54: 0.0296732859 | BB54: -0.0756521995 | BI54: -0.1885428284 | BJ54: 2024-03-07 | BK54: 2024-07-11 | BZ54: 0.6100334261 | CA54: 0.6100334261 | CB54: 1 | CC54: 1
B55: MALL11<XBSP> | C55: MALL11 | D55: FII Malls Bp | E55: =IF(B55="","",VLOOKUP(H55,'Base FII Guide'!$B$5:$C$40000,2,0)) -> 458538<BraNa> | F55: 458538 | G55: Genial Malls Fundo de Investimento Imobiliário | H55: 26499833000132 | I55: Shoppings | J55: - | K55: - | L55: 1 | M55: 0.0095 | N55: 1362031.805 | O55: 2024-09-17 | P55: 104.99 | Q55: 114.1237125 | R55: 0.9199665666 | S55: 2024-03-04 | T55: 1348.27932 | U55: 2908.277262 | V55: 0.4636006812 | W55: 3431 | X55: 3782.928287 | Y55: 0.9069693475 | AA55: -0.004928442801 | AB55: -0.003738362021 | AC55: -0.04727767695 | AD55: -0.04004015796 | AE55: -0.05473839785 | AF55: -0.06529967355 | AG55: -0.02343102049 | AH55: -0.03210965498 | AI55: -0.02571156426 | AJ55: -0.1603123761 | AK55: -0.07179098088 | AL55: -0.1403463357 | AM55: -0.0151673828 | AN55: -0.1556807816 | AO55: 0.1582510653 | AP55: -0.06831190169 | AQ55: 0.4367094761 | AR55: 0.2388719996 | AS55: 0.5523565183 | AT55: 0.2081303418 | AU55: 0.4492260795 | AV55: 0.149917918 | AW55: 0.09586476946 | AY55: 0.01696382205 | AZ55: -0.02525759095 | BA55: 0.02475631847 | BB55: -0.04727767695 | BC55: 7 | BD55: 4 | BE55: 5 | BF55: 7 | BG55: -1.152202332 | BH55: 0.009883042816 | BI55: -0.08114111357 | BJ55: 2024-03-04 | BK55: 2024-06-13 | BO55: 0.925443669 | BP55: 0.933144891 | BQ55: 1.189979824 | BR55: 0.8225499252 | BS55: 0.9962651992 | BT55: 0.9108632138 | BU55: 0.8718503885 | BV55: 0.9414088498 | BW55: 0.8566104792 | BX55: 0.9790666896 | BY55: 0.9751592331 | BZ55: 0.8797717232 | CA55: 0.9790666896 | CB55: 0.8985820196 | CC55: 0.8985820196 | CE55: 0.0653009064 | CF55: 6.628042 | CG55: 0.06464872945 | CH55: 6.92 | CI55: 0.03425203123 | CJ55: 4.3 | CK55: 0.06213610766 | CL55: 6.51 | CM55: 0.09251515785 | CN55: 8.85 | CO55: 0.09375 | CP55: 9.63 | CQ55: 0.08763948498 | CR55: 10.21 | CS55: 0.07146320251 | CT55: 0.09375 | CU55: 0.03425203123
B56: GGRC11<XBSP> | C56: GGRC11 | D56: FII Ggrcovep | E56: =IF(B56="","",VLOOKUP(H56,'Base FII Guide'!$B$5:$C$40000,2,0)) -> 443735<BraNa> | F56: 443735 | G56: Ggr Covepi Renda FI Imobiliário - Responsabilidade Limitada | H56: 26614291000100 | I56: Logistica | J56: - | K56: - | L56: 132517 | M56: 0.00786 | N56: 1126799.064 | O56: 2024-09-17 | P56: 10.65 | Q56: 11.09611604 | R56: 0.9597952975 | S56: 2024-04-01 | T56: 1302.94086 | U56: 1369.458532 | V56: 0.9514277574 | W56: 6070 | X56: 3912.984064 | Y56: 1.551245776 | AA56: 0 | AB56: 0.00119008078 | AC56: -0.01923166849 | AD56: -0.01199414951 | AE56: 0.008921431545 | AF56: -0.001639844154 | AG56: -0.01473273119 | AH56: -0.02341136568 | AI56: 0.0103082338 | AJ56: -0.1242925781 | AK56: -0.0251687448 | AL56: -0.09372409957 | AM56: 0.00787153266 | AN56: -0.1326418661 | AO56: 0.1074624895 | AP56: -0.1191004775 | AQ56: 0.2515924693 | AR56: 0.05375499285 | AS56: 0.09397286905 | AT56: -0.2502533075 | AU56: 0.1842402491 | AV56: -0.1150679123 | AW56: 0.07062027413 | AY56: 0.01628234466 | AZ56: -0.01281484755 | BA56: 0.02532133462 | BB56: -0.03038364671 | BC56: 8 | BD56: 4 | BE56: 5 | BF56: 7 | BG56: -1.290230929 | BH56: 0.007301950642 | BI56: -0.0552704589 | BJ56: 2024-04-01 | BK56: 2024-06-18 | BO56: 1.140666157 | BP56: 1.206501905 | BQ56: 1.26350539 | BR56: 1.084884943 | BS56: 1.124856238 | BT56: 0.883783814 | BU56: 0.8527322608 | BV56: 0.8130966741 | BW56: 0.9326846726 | BX56: 1.093408419 | BY56: 1.005502121 | BZ56: 0.9399999811 | CA56: 1.093408419 | CB56: 0.8596970397 | CC56: 0.8596970397 | CE56: 0.07498132935 | CF56: 1.004 | CG56: 0.06672103195 | CH56: 0.9 | CI56: 0.05739014647 | CJ56: 0.862 | CK56: 0.06578571429 | CL56: 0.921 | CM56: 0.09838250978 | CN56: 1.107 | CO56: 0.1006034483 | CP56: 1.167 | CQ56: 0.09389470074 | CR56: 1.095 | CS56: 0.07967984012 | CT56: 0.1006034483 | CU56: 0.05739014647
B57: HABT11<XBSP> | C57: HABT11 | D57: FII Habit 2 | E57: =IF(B57="","",VLOOKUP(H57,'Base FII Guide'!$B$5:$C$40000,2,0)) -> 511129<BraNa> | F57: 511129 | G57: Habitat II - Fundo de Investimento Imobiliário | H57: 30578417000105 | I57: TVM | J57: Habitat Capital Partners Asset Managemen | K57: Vortx Dtvm Ltda | L57: 70960 | M57: 0.00492 | N57: 705160.9609 | O57: 2024-09-17 | P57: 86.77 | Q57: 88.72535814 | R57: 0.9779616766 | S57: 2024-04-08 | T57: 891.89483 | U57: 1491.025287 | V57: 0.5981755226 | W57: 1170 | X57: 2663.338645 | Y57: 0.4392982477 | AA57: 0.0009228284707 | AB57: 0.002112909251 | AC57: -0.01285551763 | AD57: -0.005617998646 | AE57: 0.05608579776 | AF57: 0.04552452206 | AG57: -0.01451924429 | AH57: -0.02319787878 | AI57: 0.02848709319 | AJ57: -0.1061137187 | AK57: 0.01650040828 | AL57: -0.0520549465 | AM57: 0.05528926317 | AN57: -0.0852241356 | AO57: 0.2144083128 | AP57: -0.01215465416 | AQ57: 0.1248748096 | AR57: -0.07296266688 | AS57: 0.4098542328 | AT57: 0.06562805626 | AU57: 0.7775647799 | AV57: 0.4782566185 | AW57: 0.1096555674 | AY57: 0.02730414747 | AZ57: -0.02436335575 | BA57: 0.0447761194 | BB57: -0.03451995685 | BC57: 7 | BD57: 5 | BE57: 5 | BF57: 7 | BG57: -0.4092854956 | BH57: 0.01132701838 | BI57: -0.07104153031 | BJ57: 2024-04-08 | BK57: 2024-06-07 | BQ57: 1.21351378 | BR57: 0.9928065189 | BS57: 1.184805654 | BT57: 1.257065769 | BU57: 1.117373412 | BV57: 1.023542358 | BW57: 0.8899403743 | BX57: 0.9750089608 | BY57: 0.9133400336 | BZ57: 0.9052584813 | CA57: 1.023542358 | CB57: 0.8844367544 | CC57: 0.8844367544 | CI57: 0.09878079124 | CJ57: 11.91 | CK57: 0.1558723014 | CL57: 18.7 | CM57: 0.1293103448 | CN57: 14.1 | CO57: 0.1550675676 | CP57: 13.77 | CQ57: 0.1302039082 | CR57: 12.26 | CS57: 0.1338469827 | CT57: 0.1558723014 | CU57: 0.09878079124
B58: HCTR11<XBSP> | C58: HCTR11 | D58: FII Hectare | E58: =IF(B58="","",VLOOKUP(H58,'Base FII Guide'!$B$5:$C$40000,2,0)) -> 503185<BraNa> | F58: 503185 | G58: Hectare Ce - Fundo de Investimento Imobiliário | H58: 30248180000196 | I58: TVM | J58: Hectare Capital Gestora de Recu | K58: Vortx Dtvm Ltda | L58: 168267 | M58: 0.00452 | N58: 647729.6712 | O58: 2024-09-17 | P58: 29.33 | Q58: 37.03579008 | R58: 0.7919366629 | S58: 2023-10-23 | T58: 690.77587 | U58: 1524.489859 | V58: 0.4531193606 | W58: 1309 | X58: 3709.151394 | Y58: 0.3529109116 | AA58: -0.001701837986 | AB58: -0.0005117572055 | AC58: -0.002964037863 | AD58: 0.004273481123 | AE58: -0.1732315834 | AF58: -0.1837928591 | AG58: 0.03093933628 | AH58: 0.02226070179 | AI58: 0.06302660171 | AJ58: -0.07157421017 | AK58: 0.04903001836 | AL58: -0.01952533641 | AM58: 0.05790742598 | AN58: -0.08260597279 | AO58: -0.6248794475 | AP58: -0.8514424145 | AQ58: -0.6311698471 | AR58: -0.8290073235 | AS58: -0.4727349345 | AT58: -0.816961111 | AU58: -0.2361972378 | AV58: -0.5355053992 | AW58: 0.3572359686 | AY58: 0.1655555556 | AZ58: -0.08913250715 | BA58: 0.2366811754 | BB58: -0.1997340599 | BC58: 5 | BD58: 7 | BE58: 5 | BF58: 7 | BG58: 0.04212643916 | BH58: 0.03771724971 | BI58: -0.2825103616 | BJ58: 2023-10-23 | BK58: 2024-02-29 | BQ58: 1.215842701 | BR58: 1.122060452 | BS58: 1.251377276 | BT58: 1.138391607 | BU58: 1.073398866 | BV58: 0.9349731744 | BW58: 0.8258433741 | BX58: 0.5303550491 | BY58: 0.3389278492 | BZ58: 0.2633298373 | CA58: 0.9349731744 | CB58: 0.2816442701 | CC58: 0.2816442701 | CI58: 0.1431884058 | CJ58: 19.76 | CK58: 0.149915168 | CL58: 22.09 | CM58: 0.1321442727 | CN58: 16.67 | CO58: 0.06405127693 | CP58: 6.4205 | CQ58: 0.1365299685 | CR58: 4.328 | CS58: 0.1251658184 | CT58: 0.149915168 | CU58: 0.06405127693
B59: HGBS11<XBSP> | C59: HGBS11 | D59: FII Hedgebs | E59: =IF(B59="","",VLOOKUP(H59,'Base FII Guide'!$B$5:$C$40000,2,0)) -> 501484<BraNa> | F59: 501484 | G59: Hedge Brasil Shopping Fundo de Investimento Imobiliário | H59: 8431747000106 | I59: Shoppings | J59: Hedge Invest Real Estate Gestao de Rec | K59: Hedge Investments Dtvm Ltda | M59: 0.01869 | N59: 2677713.43 | O59: 2024-09-17 | P59: 210.35 | Q59: 221.0248651 | R59: 0.9517028769 | S59: 2024-03-05 | T59: 3659.79227 | U59: 4202.024177 | V59: 0.8709593558 | W59: 7125 | X59: 5130.820717 | Y59: 1.388666725 | AA59: -0.002986065029 | AB59: -0.001795984249 | AC59: -0.0007600589042 | AD59: 0.006477460082 | AE59: -0.02133435439 | AF59: -0.03189563009 | AG59: -0.008658634678 | AH59: -0.01733726917 | AI59: 0.01723777298 | AJ59: -0.1173630389 | AK59: -0.02016901586 | AL59: -0.08872437064 | AM59: 0.01257201912 | AN59: -0.1279413797 | AO59: 0.2066945964 | AP59: -0.01986837053 | AQ59: 0.4412194158 | AR59: 0.2433819394 | AS59: 0.3326242073 | AT59: -0.01160196921 | AU59: 0.1726792598 | AV59: -0.1266289016 | AW59: 0.09018977974 | AY59: 0.02061320755 | AZ59: -0.02173913044 | BA59: 0.04312644094 | BB59: -0.02297577855 | BC59: 4 | BD59: 8 | BE59: 5 | BF59: 7 | BG59: -0.9484455432 | BH59: 0.00931379274 | BI59: -0.08188325598 | BJ59: 2024-03-05 | BK59: 2024-06-24 | BO59: 1.06724718 | BP59: 1.145938465 | BQ59: 1.234167906 | BR59: 0.9451695354 | BS59: 0.9748579347 | BT59: 0.9445205028 | BU59: 0.890320964 | BV59: 0.8012940307 | BW59: 0.8504909883 | BX59: 0.9800178582 | BY59: 0.9880414623 | BZ59: 0.9300815487 | CA59: 0.9880414623 | CB59: 0.9413385817 | CC59: 0.9413385817 | CE59: 0.06128133705 | CF59: 14.3 | CG59: 0.07408660352 | CH59: 17.52 | CI59: 0.02662513815 | CJ59: 7.95 | CK59: 0.03763865039 | CL59: 8.11 | CM59: 0.07913631361 | CN59: 15.1 | CO59: 0.103316732 | CP59: 19.5 | CQ59: 0.09475982533 | CR59: 21.7 | CS59: 0.06812065715 | CT59: 0.103316732 | CU59: 0.02662513815
B60: HFOF11<XBSP> | C60: HFOF11 | D60: FII Htopfof3 | E60: =IF(B60="","",VLOOKUP(H60,'Base FII Guide'!$B$5:$C$40000,2,0)) -> 463116<BraNa> | F60: 463116 | G60: Hedge Top Fofii 3 Fundo de Investimento Imobiliário | H60: 18307582000119 | I60: TVM | J60: Hedge Invest Real Estate Gestao de Rec | K60: Hedge Investments Dtvm Ltda | L60: 74430 | M60: 0.01092 | N60: 1564714.013 | O60: 2024-09-17 | P60: 67.9 | Q60: 74.52840043 | R60: 0.9110620865 | S60: 2024-04-10 | T60: 1236.02141 | U60: 1984.57761 | V60: 0.6228133401 | W60: 5980 | X60: 4486.752988 | Y60: 1.332812396 | AA60: -0.004398826978 | AB60: -0.003208746198 | AC60: -0.0126508652 | AD60: -0.005413346215 | AE60: -0.0843655444 | AF60: -0.0949268201 | AG60: -0.02598393809 | AH60: -0.03466257258 | AI60: -0.008490699016 | AJ60: -0.1430915109 | AK60: -0.07497850396 | AL60: -0.1435338587 | AM60: -0.0544158138 | AN60: -0.1949292126 | AO60: 0.08661335793 | AP60: -0.1399496091 | AQ60: 0.06270143153 | AR60: -0.1351360449 | AS60: -0.1039181122 | AT60: -0.4481442887 | AU60: 0.06066007515 | AV60: -0.2386480863 | AW60: 0.09695931109 | AY60: 0.03973870441 | AZ60: -0.02434694395 | BA60: 0.1022320198 | BB60: -0.0489475019 | BC60: 4 | BD60: 8 | BE60: 2 | BF60: 10 | BG60: -1.498323796 | BH60: 0.01004688795 | BI60: -0.08893791352 | BJ60: 2024-04-10 | BK60: 2024-09-17 | BO60: 0.9603033792 | BP60: 1.049461871 | BQ60: 1.112435391 | BR60: 1.117669893 | BS60: 1.052946101 | BT60: 1.011312495 | BU60: 0.9382246792 | BV60: 0.8522586489 | BW60: 0.8539356534 | BX60: 0.9557597428 | BY60: 0.9698174058 | BZ60: 0.883267267 | CA60: 0.9698174058 | CB60: 0.9107562534 | CC60: 0.9107562534 | CG60: 0.1135276207 | CH60: 10.44 | CI60: 0.07014889721 | CJ60: 8.81 | CK60: 0.06916067146 | CL60: 7.21 | CM60: 0.08968058968 | CN60: 7.3 | CO60: 0.1093093963 | CP60: 7.55 | CQ60: 0.09517814428 | CR60: 7.56 | CS60: 0.09116755326 | CT60: 0.1135276207 | CU60: 0.06916067146
B61: HTMX11<XBSP> | C61: HTMX11 | D61: FII Hotel Mx | E61: =IF(B61="","",VLOOKUP(H61,'Base FII Guide'!$B$5:$C$40000,2,0)) -> 310336<BraNa> | F61: 310336 | G61: Fundo de Investimento Imobiliario FII Hotel Maxinvest | H61: 8706065000169 | I61: Hotel | J61: BTG Pactual Gestora de Recursos Ltda | K61: BTG Pactual Servicos Financeiros SA Dtvm | L61: 35041 | M61: 0.00208 | N61: 298158.9988 | O61: 2024-09-17 | P61: 198.2 | Q61: 199.32 | R61: 0.994380895 | S61: 2024-09-13 | T61: 795.25995 | U61: 1218.38054 | V61: 0.6527188543 | W61: 910 | X61: 1399.868526 | Y61: 0.6500610473 | AA61: -0.001561634175 | AB61: -0.0003715533949 | AC61: 0.05041591709 | AD61: 0.05765343607 | AE61: 0.1092977906 | AF61: 0.09873651491 | AG61: 0.1015022548 | AH61: 0.09282362027 | AI61: 0.1265389055 | AJ61: -0.0080619064 | AK61: 0.2183574896 | AL61: 0.1498021349 | AM61: 0.6114796602 | AN61: 0.4709662615 | AO61: 1.311674911 | AP61: 1.085111944 | AQ61: 1.802531289 | AR61: 1.604693812 | AS61: 1.236457088 | AT61: 0.8922309115 | AU61: 0.792529039 | AV61: 0.4932208776 | AW61: 0.3547498954 | AY61: 0.08025621703 | AZ61: -0.1901982437 | BA61: 0.1827886136 | BB61: -0.1292235634 | BC61: 8 | BD61: 4 | BE61: 9 | BF61: 3 | BG61: 1.591013264 | BH61: 0.03534371681 | BI61: -0.2152983701 | BJ61: 2023-12-28 | BK61: 2024-02-14 | BL61: 1900-04-13 | BM61: 2024-05-31 | BO61: 1.047810049 | BP61: 1.487064666 | BQ61: 1.261877351 | BR61: 0.9010338197 | BS61: 0.9784874259 | BT61: 0.7823944669 | BU61: 0.707265115 | BV61: 0.661385021 | BW61: 0.7858142078 | BX61: 0.9301510689 | BY61: 1.357963755 | BZ61: 1.472433782 | CA61: 1.472433782 | CB61: 1 | CC61: 1 | CE61: 0.07043921164 | CF61: 8.578843229 | CG61: 0.07617240776 | CH61: 11.17368084 | CI61: 0.009397206338 | CJ61: 1.762098418 | CK61: 0 | CL61: 0 | CM61: 0.04463320324 | CN61: 3.944682502 | CO61: 0.2078374907 | CP61: 22.92166713 | CQ61: 0.1969377877 | CR61: 28.63475433 | CS61: 0.08648818678 | CT61: 0.2078374907 | CU61: 0
B62: HSAF11<XBSP> | C62: HSAF11 | D62: FII Hsi Cri | E62: =IF(B62="","",VLOOKUP(H62,'Base FII Guide'!$B$5:$C$40000,2,0)) -> 556221<BraNa> | F62: 556221 | G62: Hsi Ativos Financeiros - Fundo de Investimento Imobiliario | H62: 35360687000150 | I62: TVM | J62: Hsi Gestora de Ativos Financeiros Ltda. | K62: Brl Dtvm | L62: 10694 | M62: 0.00148 | N62: 212163.7128 | O62: 2024-09-17 | P62: 83.98 | Q62: 85.52470255 | R62: 0.9819385218 | S62: 2024-08-02 | T62: 391.98182 | U62: 694.3862894 | V62: 0.5645010939 | W62: 654 | X62: 1200.306773 | Y62: 0.5448607096 | AA62: 0.003225421096 | AB62: 0.004415501877 | AC62: 0.0007149666344 | AD62: 0.007952485621 | AE62: 0.06473680094 | AF62: 0.05417552524 | AG62: 0.008572114837 | AH62: -0.000106519652 | AI62: 0.01755754984 | AJ62: -0.117043262 | AK62: 0.01742474391 | AL62: -0.05113061086 | AM62: 0.08709231954 | AN62: -0.05342107923 | AO62: 0.278968983 | AP62: 0.05240601604 | AQ62: 0.4128784506 | AR62: 0.2150409742 | AS62: 0.4104442901 | AT62: 0.06621811359 | AW62: 0.1273135182 | AY62: 0.04092377647 | AZ62: -0.03723404255 | BA62: 0.04015693515 | BB62: -0.04161992372 | BC62: 8 | BD62: 4 | BE62: 7 | BF62: 5 | BG62: -0.1093428562 | BH62: 0.01314437538 | BI62: -0.06722595078 | BJ62: 2024-04-05 | BK62: 2024-04-25 | BL62: 1900-03-18 | BM62: 2024-07-26 | BS62: 0.9545987024 | BT62: 1.04793779 | BU62: 0.9765223492 | BV62: 1.001224491 | BW62: 0.8550572476 | BX62: 0.9316224868 | BY62: 0.9222445421 | BZ62: 0.9409557565 | CA62: 1.001224491 | CB62: 0.9398049738 | CC62: 0.9398049738 | CK62: 0.1234791889 | CL62: 11.57 | CM62: 0.1349333333 | CN62: 12.65 | CO62: 0.1370038412 | CP62: 10.7 | CQ62: 0.1187335092 | CR62: 10.35 | CS62: 0.1285374682 | CT62: 0.1370038412 | CU62: 0.1187335092
B63: HSLG11<XBSP> | C63: HSLG11 | D63: FII Hsi Log | E63: =IF(B63="","",VLOOKUP(H63,'Base FII Guide'!$B$5:$C$40000,2,0)) -> 521922<BraNa> | F63: 521922 | G63: Hsi Logística Fundo de Investimento Imobiliário | H63: 32903621000171 | I63: Logistica | J63: Hsi Gestora de Fundos Imobiliarios Ltda | K63: Brl Dtvm | L63: 40067 | M63: 0.00754 | N63: 1081043.121 | O63: 2024-09-17 | P63: 85.39 | Q63: 94.74109258 | R63: 0.9012984512 | S63: 2024-03-11 | T63: 360.55143 | U63: 708.0221649 | V63: 0.5092374898 | W63: 1394 | X63: 1342.318725 | Y63: 1.038501493 | AA63: -0.007669959326 | AB63: -0.006479878546 | AC63: -0.003617269544 | AD63: 0.003620249442 | AE63: -0.06817174112 | AF63: -0.07873301682 | AG63: -0.002578769883 | AH63: -0.01125740437 | AI63: -0.01334935887 | AJ63: -0.1479501708 | AK63: -0.07576750975 | AL63: -0.1443228645 | AM63: -0.01034058251 | AN63: -0.1508539813 | AO63: 0.07181151668 | AP63: -0.1547514503 | AQ63: 0.2346516011 | AR63: 0.03681412469 | AW63: 0.1311220064 | AY63: 0.02904304221 | AZ63: -0.04396407686 | BA63: 0.09189668551 | BB63: -0.08193384224 | BC63: 6 | BD63: 6 | BE63: 5 | BF63: 7 | BG63: -0.7815374734 | BH63: 0.01351471634 | BI63: -0.1222165617 | BJ63: 2024-03-11 | BK63: 2024-07-02 | BS63: 1.02652841 | BT63: 0.884767805 | BU63: 0.8592663992 | BV63: 0.7958465547 | BW63: 0.8404465788 | BX63: 0.9106208646 | BY63: 0.9446067677 | BZ63: 0.8166649576 | CA63: 0.9446067677 | CB63: 0.8645554801 | CC63: 0.8645554801 | CK63: 0.06200760033 | CL63: 6.69 | CM63: 0.08230495712 | CN63: 7.87 | CO63: 0.09875283447 | CP63: 8.71 | CQ63: 0.09347368421 | CR63: 8.88 | CS63: 0.08413476903 | CT63: 0.09875283447 | CU63: 0.06200760033
B64: HSML11<XBSP> | C64: HSML11 | D64: FII Hsi Mall | E64: =IF(B64="","",VLOOKUP(H64,'Base FII Guide'!$B$5:$C$40000,2,0)) -> 504386<BraNa> | F64: 504386 | G64: Hsi Malls Fundo de Investimento Imobiliário | H64: 32892018000131 | I64: Shoppings | J64: Hsi Gestora de Fundos Imobiliarios Ltda | K64: S3 Caceis Brasil Dtvm S A | L64: 197528 | M64: 0.01347 | N64: 1930411.224 | O64: 2024-09-17 | P64: 92.77 | Q64: 96.07071429 | R64: 0.9656428672 | S64: 2024-07-30 | T64: 2109.6249 | U64: 3710.268669 | V64: 0.5685908726 | W64: 2969 | X64: 6520.836653 | Y64: 0.4553096723 | AA64: 0.0001078050882 | AB64: 0.001297885868 | AC64: -0.03112271541 | AD64: -0.02388519642 | AE64: 0.03523685265 | AF64: 0.02467557695 | AG64: -0.01903206976 | AH64: -0.02771070425 | AI64: 0.008649389081 | AJ64: -0.1259514228 | AK64: 0.002405406396 | AL64: -0.06614994838 | AM64: 0.09603501394 | AN64: -0.04447838482 | AO64: 0.2399632089 | AP64: 0.01340024188 | AQ64: 0.524970366 | AR64: 0.3271328895 | AS64: 0.4068452728 | AT64: 0.0626190963 | AU64: 0.3236345332 | AV64: 0.02432637178 | AW64: 0.103847172 | AY64: 0.02979166667 | AZ64: -0.02444329363 | BA64: 0.04301423027 | BB64: -0.03112271541 | BC64: 9 | BD64: 3 | BE64: 9 | BF64: 3 | BG64: -0.08131672405 | BH64: 0.01073873347 | BI64: -0.05436310013 | BJ64: 2024-06-07 | BK64: 2024-07-03 | BL64: 1900-01-31 | BM64: 2024-07-22 | BQ64: 1.288087018 | BR64: 0.8917435147 | BS64: 0.9604819046 | BT64: 0.9413894239 | BU64: 0.8482189308 | BV64: 0.7887625795 | BW64: 0.831562434 | BX64: 0.9842481911 | BY64: 1.011023141 | BZ64: 0.8568660824 | CA64: 1.011023141 | CB64: 0.8475237091 | CC64: 0.8475237091 | CI64: 0.03515190075 | CJ64: 4.42 | CK64: 0.05427017806 | CL64: 5.09 | CM64: 0.09250123335 | CN64: 7.5 | CO64: 0.108454523 | CP64: 8.8 | CQ64: 0.09978632479 | CR64: 9.34 | CS64: 0.078032832 | CT64: 0.108454523 | CU64: 0.03515190075
B65: IRDM11<XBSP> | C65: IRDM11 | D65: FII Iridium | E65: =IF(B65="","",VLOOKUP(H65,'Base FII Guide'!$B$5:$C$40000,2,0)) -> 461970<BraNa> | F65: 461970 | G65: Fundo de Investimento Imobiliario Iridium Recebiveis Imobili | H65: 28830325000110 | I65: TVM | J65: Iridium Gestao de Recursos Ltda | K65: BTG Pactual Servicos Financeiros SA Dtvm | L65: 288936 | M65: 0.01762 | N65: 2525592.888 | O65: 2024-09-17 | P65: 69.32 | Q65: 75.77455998 | R65: 0.9148189052 | S65: 2024-01-08 | T65: 4598.88971 | U65: 4324.63315 | V65: 1.063417301 | W65: 7058 | X65: 6406.912351 | Y65: 1.101622687 | AA65: -0.006734489183 | AB65: -0.005544408403 | AC65: -0.02769919771 | AD65: -0.02046167873 | AE65: -0.07536352604 | AF65: -0.08592480174 | AG65: -0.02499083893 | AH65: -0.03366947342 | AI65: -0.01324059878 | AJ65: -0.1478414107 | AK65: -0.01737782636 | AL65: -0.08593318114 | AM65: 0.003603800047 | AN65: -0.1369095987 | AO65: -0.1412436139 | AP65: -0.3678065809 | AQ65: -0.09893927339 | AR65: -0.2967767498 | AS65: 0.1837671915 | AT65: -0.160458985 | AU65: 0.5165624865 | AV65: 0.2172543251 | AW65: 0.1097388111 | AY65: 0.02754783553 | AZ65: -0.0206822455 | BA65: 0.1438240457 | BB65: -0.0721414802 | BC65: 6 | BD65: 6 | BE65: 7 | BF65: 5 | BG65: -0.8360796848 | BH65: 0.01135144272 | BI65: -0.0883379462 | BJ65: 2023-09-21 | BK65: 2023-11-30 | BL65: 1900-03-04 | BM65: 2023-12-26 | BO65: 1.145502696 | BP65: 1.146136872 | BQ65: 1.401018238 | BR65: 1.21340024 | BS65: 1.382765764 | BT65: 1.295713965 | BU65: 1.111244074 | BV65: 1.063043072 | BW65: 0.9951971518 | BX65: 0.990977985 | BY65: 0.9384996223 | BZ65: 0.8153862808 | CA65: 1.063043072 | CB65: 0.7670303323 | CC65: 0.7670303323 | CG65: 0.09249002149 | CH65: 10.12673245 | CI65: 0.08135425113 | CJ65: 11.55230366 | CK65: 0.1061193667 | CL65: 14.55851591 | CM65: 0.1261296286 | CN65: 13.74434563 | CO65: 0.110120092 | CP65: 10.1695905 | CQ65: 0.116231377 | CR65: 9.042801133 | CS65: 0.1054074561 | CT65: 0.1261296286 | CU65: 0.08135425113
B66: JSAF11<XBSP> | C66: JSAF11 | D66: FII Js A Fin | E66: =IF(B66="","",VLOOKUP(H66,'Base FII Guide'!$B$5:$C$40000,2,0)) -> 621722<BraNa> | F66: 621722 | G66: Js Ativos Financeiros Fundo de Investimento Imobiliário | H66: 42085661000107 | I66: TVM | J66: Safra Asset Management Ltda | K66: Banco J Safra SA | L66: 16035 | M66: 0.00514 | N66: 735696.0221 | O66: 2024-09-17 | P66: 94.9 | Q66: 100.2073249 | R66: 0.9470365572 | S66: 2024-05-29 | T66: 644.3694 | U66: 1622.050758 | V66: 0.3972560024 | W66: 796 | X66: 1992.952191 | Y66: 0.3994074738 | AA66: 0.003171247357 | AB66: 0.004361328138 | AC66: -0.03947368421 | AD66: -0.03223616522 | AE66: 0.03867506677 | AF66: 0.02811379107 | AG66: -0.04321599453 | AH66: -0.05189462902 | AI66: 0.02011996362 | AJ66: -0.1144808483 | AK66: -0.01121963029 | AL66: -0.07977498506 | AM66: 0.07929805755 | AN66: -0.06121534122 | AO66: 0.3866713133 | AP66: 0.1601083463 | AW66: 0.181018106 | AY66: 0.04389189189 | AZ66: -0.04175638985 | BA66: 0.0664171123 | BB66: -0.03947368421 | BC66: 7 | BD66: 5 | BE66: 6 | BF66: 6 | BG66: -0.07117535753 | BH66: 0.01869095701 | BI66: -0.1149272587 | BJ66: 2024-05-29 | BK66: 2024-06-20 | BU66: 1.022931511 | BV66: 0.8528567274 | BW66: 0.8894223754 | BX66: 0.93149244 | BY66: 0.9979245113 | BZ66: 0.9907935754 | CA66: 0.9979245113 | CB66: 0.9928542331 | CC66: 0.9928542331 | CM66: 0.1099739113 | CN66: 10.96 | CO66: 0.1360861759 | CP66: 11.37 | CQ66: 0.118566451 | CR66: 11.91 | CS66: 0.1215421794 | CT66: 0.1360861759 | CU66: 0.1099739113
B67: JSRE11<XBSP> | C67: JSRE11 | D67: FII Js Real | E67: =IF(B67="","",VLOOKUP(H67,'Base FII Guide'!$B$5:$C$40000,2,0)) -> 318760<BraNa> | F67: 318760 | G67: Js Real Estate Multigestão - FII | H67: 13371132000171 | I67: Híbrido | J67: Safra Asset Management Ltda | K67: Banco J Safra SA | L67: 100335 | M67: 0.00898 | N67: 1286328.296 | O67: 2024-09-17 | P67: 61.94 | Q67: 73.32199427 | R67: 0.8447669846 | S67: 2024-01-19 | T67: 1501.36312 | U67: 2385.166232 | V67: 0.6294584837 | W67: 4345 | X67: 5773.430279 | Y67: 0.752585515 | AA67: -0.00896 | AB67: -0.00776991922 | AC67: -0.02640679032 | AD67: -0.01916927133 | AE67: -0.1230729855 | AF67: -0.1336342612 | AG67: -0.04837870173 | AH67: -0.05705733622 | AI67: -0.0298393127 | AJ67: -0.1644401246 | AK67: -0.1266776958 | AL67: -0.1952330506 | AM67: -0.1328324197 | AN67: -0.2733458185 | AO67: -0.1567194043 | AP67: -0.3832823713 | AQ67: -0.009413554188 | AR67: -0.2072510306 | AS67: -0.1566598887 | AT67: -0.5008860653 | AU67: -0.1778639278 | AV67: -0.4771720892 | AW67: 0.1927654431 | AY67: 0.04383561644 | AZ67: -0.04137931034 | BA67: 0.06503476246 | BB67: -0.07947019868 | BC67: 4 | BD67: 8 | BE67: 3 | BF67: 9 | BG67: -1.066667797 | BH67: 0.01994147017 | BI67: -0.1672822904 | BJ67: 2024-01-19 | BK67: 2024-07-02 | BO67: 0.9098720615 | BP67: 0.996761738 | BQ67: 1.059082271 | BR67: 0.9013765794 | BS67: 0.8693308021 | BT67: 0.7892902631 | BU67: 0.7226942416 | BV67: 0.6675446093 | BW67: 0.6418549842 | BX67: 0.7070303064 | BY67: 0.6807251371 | BZ67: 0.5650488255 | CA67: 0.7070303064 | CB67: 0.7991861457 | CC67: 0.7991861457 | CE67: 0.06601320264 | CF67: 6.6 | CG67: 0.06999203505 | CH67: 7.03 | CI67: 0.04626829069 | CJ67: 5.66 | CK67: 0.06459112504 | CL67: 6.39 | CM67: 0.07291843928 | CN67: 5.999 | CO67: 0.07695490277 | CP67: 5.58 | CQ67: 0.07290589452 | CR67: 5.64 | CS67: 0.06709198428 | CT67: 0.07695490277 | CU67: 0.04626829069
B68: KISU11<XBSP> | C68: KISU11 | D68: FII Kilima | E68: =IF(B68="","",VLOOKUP(H68,'Base FII Guide'!$B$5:$C$40000,2,0)) -> 558095<BraNa> | F68: 558095 | G68: Kilima Fundo de Investimento em Cotas de FII Suno 30 | H68: 36669660000107 | I68: TVM | J68: Kilima Gestao de Recursos Ltda | K68: Brl Dtvm | L68: 124877 | M68: 0.00247 | N68: 353568.4 | O68: 2024-09-17 | P68: 8 | Q68: 8.325343201 | R68: 0.9609213467 | S68: 2024-05-31 | T68: 614.30668 | U68: 816.9450887 | V68: 0.7519559007 | W68: 4107 | X68: 3828.25498 | Y68: 1.072812553 | AA68: -0.008674101612 | AB68: -0.007484020832 | AC68: -0.01477832512 | AD68: -0.007540806137 | AE68: 0.0005573306353 | AF68: -0.01000394506 | AG68: -0.00994288132 | AH68: -0.01862151581 | AI68: -0.01190458395 | AJ68: -0.1465053958 | AK68: 0.008739270937 | AL68: -0.05981608384 | AM68: 0.02422355716 | AN68: -0.1162898416 | AO68: 0.1903693727 | AP68: -0.03619359432 | AQ68: 0.2310761947 | AR68: 0.0332387182 | AW68: 0.1030480471 | AY68: 0.0245398773 | AZ68: -0.02467685076 | BA68: 0.05932721713 | BB68: -0.03647944412 | BC68: 5 | BD68: 7 | BE68: 3 | BF68: 9 | BG68: -0.7170095772 | BH68: 0.0106290761 | BI68: -0.06938421785 | BJ68: 2023-09-20 | BK68: 2023-11-24 | BL68: 1900-03-05 | BM68: 2023-12-26 | BT68: 1.164839787 | BU68: 0.858899067 | BV68: 0.8649603489 | BW68: 0.9189728446 | BX68: 0.9238809157 | BY68: 0.9482294475 | BZ68: 0.9274221853 | CA68: 0.9482294475 | CB68: 0.9780567222 | CC68: 0.9780567222 | CM68: 0.108478803 | CN68: 0.87 | CO68: 0.1117353308 | CP68: 0.895 | CQ68: 0.1029919448 | CR68: 0.895 | CS68: 0.1077353595 | CT68: 0.1117353308 | CU68: 0.1029919448
B69: KIVO11<XBSP> | C69: KIVO11 | D69: FII Kivo | E69: =IF(B69="","",VLOOKUP(H69,'Base FII Guide'!$B$5:$C$40000,2,0)) -> 627267<BraNa> | F69: 627267 | G69: Kilima Volkano Recebiveis Imobiliarios Fundo de Investimento | H69: 42273325000198 | I69: TVM | J69: Kilima Gestao de Recursos Ltda | K69: Brl Dtvm | L69: 6957 | M69: 0.00124 | N69: 177818.88 | O69: 2024-09-17 | P69: 80 | Q69: 87.52719116 | R69: 0.9140016826 | S69: 2024-02-01 | T69: 211.44104 | U69: 375.9539626 | V69: 0.5624120531 | W69: 566 | X69: 1025.541833 | Y69: 0.5519033763 | AA69: 0.001627644922 | AB69: 0.002817725703 | AC69: -0.001996007984 | AD69: 0.005241511002 | AE69: -0.02006541014 | AF69: -0.03062668584 | AG69: -0.01427053346 | AH69: -0.02294916795 | AI69: -0.02927582129 | AJ69: -0.1638766332 | AK69: -0.05164037355 | AL69: -0.1201957283 | AM69: -0.003753064984 | AN69: -0.1442664638 | AO69: 0.1040259159 | AP69: -0.1225370511 | AW69: 0.1567989436 | AY69: 0.05294740558 | AZ69: -0.03617881736 | BA69: 0.05859375 | BB69: -0.0278078338 | BC69: 5 | BD69: 7 | BE69: 4 | BF69: 8 | BG69: -0.5908179256 | BH69: 0.01623680796 | BI69: -0.1012200344 | BJ69: 2024-02-01 | BK69: 2024-08-09 | BV69: 0.9876969792 | BW69: 0.9923254894 | BX69: 0.990477084 | BY69: 0.9797269807 | BZ69: 0.8961728009 | CA69: 0.9923254894 | CB69: 0.9031036797 | CC69: 0.9031036797 | CO69: 0.1638830898 | CP69: 15.7 | CQ69: 0.1383952612 | CR69: 12.85 | CS69: 0.1511391755 | CT69: 0.1638830898 | CU69: 0.1383952612
B70: KORE11<XBSP> | C70: KORE11 | D70: FII Kore | E70: =IF(B70="","",VLOOKUP(H70,'Base FII Guide'!$B$5:$C$40000,2,0)) -> 749761<BraNa> | F70: 749761 | G70: Kine Oport Real Estat FII Resp Lim Unica | H70: 52219978000142 | I70: Outros | J70: Kinea Investimento Ltda | K70: Intrag | L70: 19962 | M70: 0.00685 | N70: 982231.25 | O70: 2024-09-17 | P70: 102.05 | T70: 1788.32258 | W70: 1415 | AA70: -0.009127099718 | AB70: -0.007937018938 | AC70: -0.02063339731 | AD70: -0.01339587833 | AE70: 0.04398875903 | AF70: 0.03342748333 | AG70: 0.008143383966 | AH70: -0.0005352505232 | AI70: 0.02161051188 | AJ70: -0.1129903 | AK70: 0.008337639934 | AL70: -0.06021771484 | AY70: 0.02757051865 | AZ70: -0.02089790136 | BA70: 0.02497437331 | BB70: -0.02063339731 | BI70: -0.06778827356 | BJ70: 2024-03-07 | BK70: 2024-07-02 | BY70: 1.073819664 | BZ70: 0.9626964122 | CA70: 1.073819664 | CB70: 0.8965159094 | CC70: 0.8965159094
B71: KCRE11<XBSP> | C71: KCRE11 | D71: FII Kinea Cr | E71: =IF(B71="","",VLOOKUP(H71,'Base FII Guide'!$B$5:$C$40000,2,0)) -> 655317<BraNa> | F71: 655317 | G71: Kinea Creditas Fundo de Investimento Imobiliário - FII | H71: 42502802000140 | I71: TVM | J71: Kinea Investimento Ltda | K71: Intrag | L71: 14225 | M71: 0.00239 | N71: 342720 | O71: 2024-09-17 | P71: 9.52 | Q71: 9.87 | R71: 0.9645390071 | S71: 2024-08-30 | T71: 375.37659 | U71: 518.7229608 | V71: 0.7236552425 | W71: 1447 | X71: 833.0796813 | Y71: 1.736928691 | AA71: -0.004184100418 | AB71: -0.002994019637 | AC71: -0.03546099291 | AD71: -0.02822347392 | AE71: 0.06170389333 | AF71: 0.05114261763 | AG71: 0.0007092198575 | AH71: -0.007969414632 | AI71: 0.01852026657 | AJ71: -0.1160805453 | AK71: 0.03296803773 | AL71: -0.03558731704 | AM71: 0.1058787714 | AN71: -0.03463462741 | AO71: 0.2807464116 | AP71: 0.05418344461 | AW71: 0.09655102354 | AY71: 0.02697375247 | AZ71: -0.01950390078 | BA71: 0.0462184874 | BB71: -0.03546099291 | BC71: 8 | BD71: 4 | BE71: 8 | BF71: 4 | BG71: -0.002437883873 | BH71: 0.009993474233 | BI71: -0.05572441743 | BJ71: 2024-08-30 | BK71: 2024-09-12 | BV71: 1.028768546 | BW71: 0.8965112972 | BX71: 0.9474777429 | BY71: 0.9388903639 | BZ71: 0.9509901675 | CA71: 1.028768546 | CB71: 0.9243966208 | CC71: 0.9243966208 | CO71: 0.1306526939 | CP71: 1.147 | CQ71: 0.1135679435 | CR71: 1.094 | CS71: 0.1221103187 | CT71: 0.1306526939 | CU71: 0.1135679435
B72: KNHF11<XBSP> | C72: KNHF11 | D72: FII Kinea Hf | E72: =IF(B72="","",VLOOKUP(H72,'Base FII Guide'!$B$5:$C$40000,2,0)) -> 716685<BraNa> | F72: 716685 | G72: Kinea Hedge Fund FII Resp Lim Unica | H72: 42754342000147 | I72: Multicategoria | J72: Kinea Investimento Ltda | K72: Intrag | L72: 35833 | M72: 0.01306 | N72: 1870956.81 | O72: 2024-09-17 | P72: 95.15 | Q72: 99.49442823 | R72: 0.9563349596 | S72: 2024-04-05 | T72: 4434.75449 | U72: 2229.83212 | V72: 1.988828867 | W72: 2337 | X72: 1813.414343 | Y72: 1.288729192 | AA72: -0.003143006809 | AB72: -0.001952926029 | AC72: -0.02350164204 | AD72: -0.01626412305 | AE72: -0.0314461724 | AF72: -0.0420074481 | AG72: -0.009705594285 | AH72: -0.01838422877 | AI72: 0.02532790855 | AJ72: -0.1092729033 | AK72: -0.0146974872 | AL72: -0.08325284198 | AM72: 0.01938113017 | AN72: -0.1211322686 | AW72: 0.1033746082 | AY72: 0.03982207159 | AZ72: -0.02086759868 | BA72: 0.04761904762 | BB72: -0.02390248548 | BC72: 6 | BD72: 6 | BE72: 4 | BF72: 8 | BG72: -0.7527212894 | BH72: 0.01072416737 | BI72: -0.07970396374 | BJ72: 2024-04-05 | BK72: 2024-06-26 | BY72: 1.037912889 | BZ72: 0.9529435944 | CA72: 1.037912889 | CB72: 0.9181344646 | CC72: 0.9181344646 | CQ72: 0.1061479347 | CR72: 11.05 | CS72: 0.1061479347 | CT72: 0.1061479347 | CU72: 0.1061479347
B73: KNHY11<XBSP> | C73: KNHY11 | D73: FII Kinea Hy | E73: =IF(B73="","",VLOOKUP(H73,'Base FII Guide'!$B$5:$C$40000,2,0)) -> 482676<BraNa> | F73: 482676 | G73: Kinea High Yield Cri Fundo de Investimento Imobiliário - FII | H73: 30130708000128 | I73: TVM | J73: Kinea Investimento Ltda | K73: Intrag | L73: 28977 | M73: 0.02091 | N73: 2996672.155 | O73: 2024-09-17 | P73: 106.38 | Q73: 106.68 | R73: =IFERROR(P73/Q73,"") -> 0.9971878515 | S73: 2024-09-16 | T73: 4572.06947 | U73: 3518.706656 | V73: =IFERROR(T73/U73,"") -> 1.299360793 | W73: 6229 | X73: 4888.247012 | Y73: =IFERROR(W73/X73,"") -> 1.274280941 | AA73: -0.002812148482 | AB73: -0.001622067702 | AC73: 0.01323935613 | AD73: =IF(AC73="","",AC73-AC$6) -> 0.02047687511 | AE73: 0.1375387662 | AF73: =IF(AE73="","",AE73-AE$6) -> 0.1269774905 | AG73: 0.01717296219 | AH73: =IF(AG73="","",AG73-AG$6) -> 0.0084943277 | AI73: 0.04390922143 | AJ73: =IF(AI73="","",AI73-AI$6) -> -0.09069159044 | AK73: 0.06883506461 | AL73: =IF(AK73="","",AK73-AK$6) -> 0.00027970984 | AM73: 0.1745214695 | AN73: =IF(AM73="","",AM73-AM$6) -> 0.03400807076 | AO73: 0.4056673585 | AP73: =IF(AO73="","",AO73-AO$6) -> 0.1791043916 | AQ73: 0.4930029093 | AR73: =IF(AQ73="","",AQ73-AQ$6) -> 0.2951654328 | AS73: 0.62307383 | AT73: =IF(AS73="","",AS73-AS$6) -> 0.2788476535 | AU73: 0.6501756842 | AV73: =IF(AU73="","",AU73-AU$6) -> 0.3508675228 | AW73: 0.0623299108 | AY73: 0.01384936445 | AZ73: -0.01398465572 | BA73: 0.03266503667 | BB73: -0.004804392586 | BC73: 11 | BD73: 1 | BE73: 10 | BF73: 2 | BG73: 0.94889207 | BH73: 0.006446035192 | BI73: -0.01787448999 | BJ73: 2023-10-13 | BK73: 2023-10-30 | BL73: 1900-02-02 | BM73: 2023-12-01 | BO73: 1.065148144 | BP73: 1.243960544 | BQ73: 1.060798769 | BR73: 0.9986264257 | BS73: 1.058242437 | BT73: 1.101400987 | BU73: 1.086363896 | BV73: 1.068347045 | BW73: 0.9908819715 | BX73: 0.9699514268 | BY73: 0.9895818188 | BZ73: 1.05282487 | CA73: =IF(B73="","",IF(MAX(BO73:BZ73)=0,"-x-",MAX(BV73:BZ73))) -> 1.068347045 | CB73: =IF(B73="","",IFERROR(BZ73/CA73,"-x-")) -> 0.9854708495 | CC73: =IF(B73="","",IFERROR(BZ73/CA73,"-x-")) -> 0.9854708495 | CG73: 0.07105071142 | CH73: 7.79 | CI73: 0.06934647744 | CJ73: 8.16 | CK73: 0.1308780874 | CL73: 14.89 | CM73: 0.1236111111 | CN73: 13.35 | CO73: 0.1326657031 | CP73: 12.85 | CQ73: 0.1262135922 | CR73: 13 | CS73: 0.1089609471 | CT73: 0.1326657031 | CU73: 0.06934647744
B74: KNIP11<XBSP> | C74: KNIP11 | D74: FII Kinea Ip | E74: =IF(B74="","",VLOOKUP(H74,'Base FII Guide'!$B$5:$C$40000,2,0)) -> 428779<BraNa> | F74: 428779 | G74: Kinea Indices de Preços Fundo de Investimento Imobiliário - | H74: 24960430000113 | I74: Não se aplica | J74: Kinea Investimento Ltda | K74: Intrag | L74: 78396 | M74: 0.05305 | N74: 7602622.979 | O74: 2024-09-17 | P74: 94.94 | Q74: 96.09 | R74: 0.9880320533 | S74: 2024-09-09 | T74: 5405.03039 | U74: 9622.672162 | V74: 0.5616974473 | W74: 7038 | X74: 11783.47012 | Y74: 0.5972773664 | AA74: -0.0002106149959 | AB74: =IF(AA74="","",AA74-AA$6) -> 0.0009794657844 | AC74: -0.00835596407 | AD74: -0.001118445083 | AE74: 0.07880111175 | AF74: 0.06823983605 | AG74: -0.002879551242 | AH74: -0.01155818573 | AI74: 0.01738080495 | AJ74: -0.1172200069 | AK74: 0.03500370604 | AL74: -0.03355164874 | AM74: 0.1341392783 | AN74: -0.0063741205 | AO74: 0.2477238771 | AP74: 0.02116091008 | AQ74: 0.293969238 | AR74: 0.09613176155 | AS74: 0.3777377207 | AT74: 0.03351154416 | AU74: 0.4126479493 | AV74: 0.1133397879 | AW74: 0.06808887957 | AY74: 0.02106607086 | AZ74: -0.01476130653 | BA74: 0.04699824715 | BB74: -0.01404072883 | BC74: 8 | BD74: 4 | BE74: 10 | BF74: 2 | BG74: 0.3375859747 | BH74: 0.007045912844 | BI74: -0.02658529601 | BJ74: 2023-10-16 | BK74: 2023-11-01 | BL74: 1900-02-12 | BM74: 2023-12-18 | BO74: 1.040636179 | BP74: 1.088321324 | BQ74: 1.029637828 | BR74: 0.9902066569 | BS74: 1.061679172 | BT74: 1.046202952 | BU74: 1.044657853 | BV74: 1.053018543 | BW74: 0.9696194454 | BX74: 0.9440174122 | BY74: 0.9565516617 | BZ74: 0.9930133925 | CA74: 1.053018543 | CB74: 0.9430160556 | CC74: 0.9430160556 | CE74: 0.08361550038 | CF74: 8.89 | CG74: 0.07273559012 | CH74: 7.95 | CI74: 0.07347287484 | CJ74: 8.6 | CK74: 0.126408666 | CL74: 14.47 | CM74: 0.124975892 | CN74: 12.96 | CO74: 0.1068014504 | CP74: 9.72 | CQ74: 0.1069967707 | CR74: 9.94 | CS74: =IFERROR(AVERAGE(CE74,CG74,CI74,CK74,CM74,CO74,CQ74),"") -> 0.09928667778 | CT74: =IF(MAX(CE74,CG74,CI74,CK74,CM74,CO74,CQ74)=0,"",MAX(CE74,CG74,CI74,CK74,CM74,CO74,CQ74)) -> 0.126408666 | CU74: =IF(SUM(CE74:CR74)<>0,MIN(CE74,CG74,CI74,CK74,CM74,CO74,CQ74),"") -> 0.07273559012
B75: KNRI11<XBSP> | C75: KNRI11 | D75: FII Kinea | E75: =IF(B75="","",VLOOKUP(H75,'Base FII Guide'!$B$5:$C$40000,2,0)) -> 253707<BraNa> | F75: 253707 | G75: Kinea Renda Imobiliária Fundo de Investimento Imobiliário - | H75: 12005956000165 | I75: TVM | J75: Kinea Investimento Ltda | K75: Intrag | L75: 278225 | M75: 0.02908 | N75: 4167712.025 | O75: 2024-09-17 | P75: 147.77 | Q75: 160.2442789 | R75: 0.9221546066 | S75: 2024-03-28 | T75: 5055.03535 | U75: 4210.877826 | V75: 1.200470676 | W75: 6468 | X75: 4826.876494 | Y75: 1.339996996 | AA75: -0.003036027526 | AB75: -0.001845946746 | AC75: -0.0342461277 | AD75: -0.02700860872 | AE75: -0.05277116272 | AF75: -0.06333243842 | AG75: -0.05263851037 | AH75: -0.06131714486 | AI75: -0.02208981576 | AJ75: -0.1566906276 | AK75: -0.06816555533 | AL75: -0.1367209101 | AM75: -0.04444706757 | AN75: -0.1849604663 | AO75: 0.1182652913 | AP75: -0.1082976757 | AQ75: 0.2735747181 | AR75: 0.07573724163 | AS75: 0.1776930189 | AT75: -0.1665331576 | AU75: 0.3224893938 | AV75: 0.02318123238 | AW75: 0.1018374719 | AY75: 0.01769636759 | AZ75: -0.02312209444 | BA75: 0.04416403785 | BB75: -0.0342461277 | BC75: 6 | BD75: 6 | BE75: 3 | BF75: 9 | BG75: -1.338671863 | BH75: 0.01051472412 | BI75: -0.07846944065 | BJ75: 2024-03-28 | BK75: 2024-09-12 | BO75: 1.010168808 | BP75: 1.01860229 | BQ75: 1.308668121 | BR75: 1.076706853 | BS75: 1.028884851 | BT75: 0.8735238397 | BU75: 0.8936174267 | BV75: 0.8228738773 | BW75: 0.8708947197 | BX75: 0.9974074058 | BY75: 1.035680999 | BZ75: 0.9141246858 | CA75: 1.035680999 | CB75: 0.8826315116 | CC75: 0.8826315116 | CE75: 0.06516689082 | CF75: 10.66 | CG75: 0.06103931812 | CH75: 8.88 | CI75: 0.04087317666 | CJ75: 8.07 | CK75: 0.05269994433 | CL75: 8.52 | CM75: 0.07361180058 | CN75: 10.38 | CO75: 0.08706896552 | CP75: 12.12 | CQ75: 0.07179180377 | CR75: 12 | CS75: 0.06460741426 | CT75: 0.08706896552 | CU75: 0.04087317666
B76: KNCR11<XBSP> | C76: KNCR11 | D76: FII Kinea Ri | E76: =IF(B76="","",VLOOKUP(H76,'Base FII Guide'!$B$5:$C$40000,2,0)) -> 362506<BraNa> | F76: 362506 | G76: Kinea Rendimentos Imobiliários Fundo de Investimento Imobili | H76: 16706958000132 | I76: TVM | J76: Kinea Investimento Ltda | K76: Intrag | L76: 374525 | M76: 0.05116 | N76: 7331118.407 | O76: 2024-09-17 | P76: 105.5 | Q76: 106.1 | R76: 0.9943449576 | S76: 2024-09-09 | T76: 13479.17709 | U76: 11273.92664 | V76: 1.195606244 | W76: 15688 | X76: 14666.94422 | Y76: 1.069616122 | AA76: -0.004153294317 | AB76: -0.002963213537 | AC76: 0.01043961306 | AD76: 0.01767713205 | AE76: 0.1027849762 | AF76: 0.09222370054 | AG76: 0.02208062243 | AH76: 0.01340198794 | AI76: 0.04316744702 | AJ76: -0.09143336486 | AK76: 0.08408706527 | AL76: 0.01553171049 | AM76: 0.1904771932 | AN76: 0.04996379439 | AO76: 0.3476202543 | AP76: 0.1210572873 | AQ76: 0.5684191354 | AR76: 0.370581659 | AS76: 0.7866461893 | AT76: 0.4424200128 | AU76: 0.590230738 | AV76: 0.2909225765 | AW76: 0.06611962671 | AY76: 0.009993141961 | AZ76: -0.01376015289 | BA76: 0.03532096438 | BB76: 0.001646489105 | BC76: 12 | BD76: 0 | BE76: 7 | BF76: 5 | BG76: 1.118622807 | BH76: 0.006828232023 | BI76: -0.02038243766 | BJ76: 2024-01-19 | BK76: 2024-02-05 | BL76: 1900-01-15 | BM76: 2024-02-09 | BO76: 1.00967618 | BP76: 0.9966407284 | BQ76: 1.003542736 | BR76: 0.9246957786 | BS76: 0.8825195952 | BT76: 0.9093077388 | BU76: 1.002089848 | BV76: 1.00866744 | BW76: 0.9676156922 | BX76: 0.9680951942 | BY76: 1.024474758 | BZ76: 1.040275348 | CA76: 1.040275348 | CB76: 1 | CC76: 1 | CE76: 0.07132388862 | CF76: 7.3 | CG76: 0.06276666351 | CH76: 6.62 | CI76: 0.03981375903 | CJ76: 4.19 | CK76: 0.05830062341 | CL76: 5.05 | CM76: 0.1228122219 | CN76: 12.42 | CO76: 0.1392963381 | CP76: 13.58 | CQ76: 0.1212546347 | CR76: 12.1 | CS76: 0.08793830418 | CT76: 0.1392963381 | CU76: 0.03981375903
B77: KNSC11<XBSP> | C77: KNSC11 | D77: FII Kinea Sc | E77: =IF(B77="","",VLOOKUP(H77,'Base FII Guide'!$B$5:$C$40000,2,0)) -> 573981<BraNa> | F77: 573981 | G77: Kinea Securities FII 1 | H77: 35864448000138 | I77: Não se aplica | J77: Kinea Investimento Ltda | K77: Intrag | L77: 160624 | M77: 0.01212 | N77: 1225355.786 | O77: 2024-09-17 | P77: 9.23 | Q77: 9.27 | R77: 0.9956850054 | S77: 2024-09-16 | T77: 3504.43386 | U77: 3363.41723 | V77: 1.041926594 | W77: 15371 | X77: 13927.43028 | Y77: 1.103649395 | AA77: -0.004314994607 | AB77: -0.003124913826 | AC77: 0.006543075246 | AD77: 0.01378059423 | AE77: 0.1009269885 | AF77: 0.09036571284 | AG77: 0.008792829552 | AH77: 0.0001141950634 | AI77: 0.04795312924 | AJ77: -0.08664768264 | AK77: 0.06293590544 | AL77: -0.005619449336 | AM77: 0.1329839743 | AN77: -0.00752942443 | AO77: 0.3492598596 | AP77: 0.1226968926 | AQ77: 0.3730413087 | AR77: 0.1752038323 | AW77: 0.1039636643 | AY77: 0.02210708118 | AZ77: -0.02456409694 | BA77: 0.03986332574 | BB77: -0.03882004606 | BC77: 10 | BD77: 2 | BE77: 8 | BF77: 4 | BG77: 0.241633837 | BH77: 0.01074451201 | BI77: -0.03981435205 | BJ77: 2023-11-21 | BK77: 2023-12-04 | BL77: 1900-01-24 | BM77: 2023-12-26 | BS77: 0.9973152133 | BT77: 1.08109341 | BU77: 1.098212939 | BV77: 1.060174674 | BW77: 0.9697472493 | BX77: 0.9733477152 | BY77: 0.9953978376 | BZ77: 1.026114781 | CA77: 1.060174674 | CB77: 0.9678733199 | CC77: 0.9678733199 | CK77: 0.1337001936 | CL77: 1.312 | CM77: 0.1185587762 | CN77: 1.178 | CO77: 0.122279429 | CP77: 1.045 | CQ77: 0.1082536542 | CR77: 0.985 | CS77: 0.1206980132 | CT77: 0.1337001936 | CU77: 0.1082536542
B78: KNUQ11<XBSP> | C78: KNUQ11 | D78: FII Kinea Un | E78: =IF(B78="","",VLOOKUP(H78,'Base FII Guide'!$B$5:$C$40000,2,0)) -> 683280<BraNa> | F78: 683280 | G78: Kinea Unique Hy CDI Fundo de Investimento Imobiliário | H78: 42754362000118 | I78: TVM | J78: Kinea Investimento Ltda | K78: Intrag | L78: 18976 | M78: 0.01125 | N78: 1611642.414 | O78: 2024-09-17 | P78: 105.25 | T78: 2146.75446 | W78: 2799 | AA78: 0.003719244707 | AB78: 0.004909325487 | AC78: 0.001427212179 | AD78: 0.008664731165 | AE78: 0.125968768 | AF78: 0.1154074923 | AG78: 0.01997572004 | AH78: 0.01129708555 | AI78: 0.04308014674 | AJ78: -0.09152066514 | AK78: 0.09274504729 | AL78: 0.02418969251 | AY78: 0.01834595224 | AZ78: -0.01617633147 | BA78: 0.02960849892 | BB78: 0.001427212179 | BI78: -0.02596012529 | BJ78: 2024-02-15 | BK78: 2024-03-19 | BL78: 1900-02-04 | BM78: 2024-04-05 | BY78: 1.007166942 | BZ78: 1.042386933 | CA78: 1.042386933 | CB78: 1 | CC78: 1
B79: LGCP11<XBSP> | C79: LGCP11 | D79: FII Lgcp Int | E79: =IF(B79="","",VLOOKUP(H79,'Base FII Guide'!$B$5:$C$40000,2,0)) -> 521914<BraNa> | F79: 521914 | G79: Logcp Inter Fundo de Investimento Imobiliario | H79: 34598181000111 | I79: Logística | J79: Inter Asset Gestao de Recursos Ltda. | K79: Inter Dtvm Ltda | L79: 20451 | M79: 0.00205 | N79: 375542.3327 | O79: 2024-09-17 | P79: 83.23 | Q79: 85.74809115 | R79: 0.9706338518 | S79: 2024-08-07 | T79: 125.89977 | U79: 430.4152007 | V79: 0.2925077223 | W79: 149 | X79: 505.9800797 | Y79: 0.2944779962 | AA79: -0.005615292712 | AB79: -0.004425211932 | AC79: -0.01374570447 | AD79: -0.00650818548 | AE79: -0.002145488434 | AF79: -0.01270676413 | AG79: -0.01513398031 | AH79: -0.0238126148 | AI79: 0.01087646873 | AJ79: -0.1237243431 | AK79: -0.02140751491 | AL79: -0.08996286969 | AM79: 0.06554743466 | AN79: -0.07496596411 | AO79: 0.1929075349 | AP79: -0.03365543205 | AQ79: 0.3038492991 | AR79: 0.1060118226 | AS79: 0.1747623054 | AT79: -0.1694638711 | AW79: 0.0953215231 | AY79: 0.02792899408 | AZ79: -0.03264129181 | BA79: 0.03715670436 | BB79: -0.02899864069 | BC79: 6 | BD79: 6 | BE79: 5 | BF79: 7 | BG79: -0.3878463093 | BH79: 0.009850763962 | BI79: -0.05097251151 | BJ79: 2024-03-08 | BK79: 2024-05-09 | BL79: 1900-04-14 | BM79: 2024-08-07 | BQ79: 1.324088728 | BR79: 1.081522339 | BS79: 1.019469828 | BT79: 0.8984925035 | BU79: 0.8563925945 | BV79: 0.7760999874 | BW79: 0.7975508291 | BX79: 0.8579135099 | BY79: 0.8556870773 | BZ79: 0.8335855108 | CA79: 0.8579135099 | CB79: 0.9716428302 | CC79: 0.9716428302 | CI79: 0.04018619072 | CJ79: 5.102091581 | CK79: 0.06248137479 | CL79: 6.29 | CM79: 0.08352402746 | CN79: 7.3 | CO79: 0.09331544279 | CP79: 7.65 | CQ79: 0.0994199536 | CR79: 8.57 | CS79: 0.07578539787 | CT79: 0.0994199536 | CU79: 0.04018619072
B80: MANA11<XBSP> | C80: MANA11 | D80: FII Manati | E80: =IF(B80="","",VLOOKUP(H80,'Base FII Guide'!$B$5:$C$40000,2,0)) -> 657141<BraNa> | F80: 657141 | G80: Manatí Capital Hedge Fund Fundo de Investimento Imobiliário | H80: 42888583000189 | I80: TVM | J80: Manati Capital Management Ltda. | K80: Daycoval | L80: 1 | M80: 0.00237 | N80: 340077.4284 | O80: 2024-09-17 | P80: 9.06 | Q80: 9.692696917 | R80: 0.934724368 | S80: 2024-06-21 | T80: 1267.05252 | U80: 452.7234138 | V80: 2.798734241 | W80: 3630 | X80: 2099.621514 | Y80: 1.728883028 | AA80: -0.001102535833 | AB80: 8.75449468e-05 | AC80: -0.01307189542 | AD80: -0.005834376437 | AE80: 0.06046433842 | AF80: 0.04990306272 | AG80: -0.02463335352 | AH80: -0.03331198801 | AI80: -0.05963343257 | AJ80: -0.1942342445 | AK80: 0.04273744304 | AL80: -0.02581791174 | AM80: 0.09709586259 | AN80: -0.04341753617 | AO80: 0.1785630388 | AP80: -0.04799992815 | AW80: 0.134408544 | AY80: 0.04761904762 | AZ80: -0.04387755102 | BA80: 0.06417112299 | BB80: -0.04329896907 | BC80: 7 | BD80: 5 | BE80: 6 | BF80: 6 | BG80: -0.02854884558 | BH80: 0.01393398391 | BI80: -0.06527563197 | BJ80: 2024-06-13 | BK80: 2024-09-17 | BW80: 1.028216981 | BX80: 1.011463141 | BY80: 0.9602263762 | BZ80: 0.9561927615 | CA80: 1.028216981 | CB80: 0.9299523148 | CC80: 0.9299523148 | CO80: 0.131262525 | CP80: 1.31 | CQ80: 0.1310782241 | CR80: 1.24 | CS80: 0.1311703746 | CT80: 0.131262525 | CU80: 0.1310782241
B81: MCHY11<XBSP> | C81: MCHY11 | D81: FII Maua Hy | E81: =IF(B81="","",VLOOKUP(H81,'Base FII Guide'!$B$5:$C$40000,2,0)) -> 607355<BraNa> | F81: 607355 | G81: Maua Capital Real Estate FII-Unica | H81: 36655973000106 | I81: Não se aplica | J81: Maua Capital Real Estate Ltda | K81: BTG Pactual Servicos Financeiros SA Dtvm | L81: 97250 | M81: 0.00713 | N81: 1021130.127 | O81: 2024-09-17 | P81: 9.15 | Q81: 11.4719729 | R81: 0.7975960263 | S81: 2024-02-19 | T81: 2832.66954 | U81: 2263.900431 | V81: 1.251234154 | W81: 17582 | X81: 10870.59362 | Y81: 1.617390973 | AA81: -0.00759219089 | AB81: -0.00640211011 | AC81: -0.01499033217 | AD81: -0.007752813183 | AE81: -0.09862864648 | AF81: -0.1091899222 | AG81: -0.03653741866 | AH81: -0.04521605315 | AI81: 0.009124012116 | AJ81: -0.1254767998 | AK81: -0.03112133867 | AL81: -0.09967669344 | AM81: -0.04687550861 | AN81: -0.1873889074 | AO81: 0.1305508443 | AP81: -0.09601212267 | AW81: 0.2723842742 | AY81: 0.08597285068 | AZ81: -0.1279863481 | BA81: 0.1618880197 | BB81: -0.1574444415 | BC81: 6 | BD81: 6 | BE81: 5 | BF81: 7 | BG81: -0.4112041167 | BH81: 0.02782801595 | BI81: -0.2368040273 | BJ81: 2024-02-19 | BK81: 2024-04-29 | BU81: 1.167340212 | BV81: 1.043370319 | BW81: 1.116087787 | BX81: 1.09044263 | BY81: 1.12985773 | BZ81: 0.9434372542 | CA81: 1.12985773 | CB81: 0.835005354 | CC81: 0.835005354 | CM81: 0.1541666667 | CN81: 1.85 | CO81: 0.1455357143 | CP81: 1.63 | CQ81: 0.1362692898 | CR81: 1.51 | CS81: 0.1453238902 | CT81: 0.1541666667 | CU81: 0.1362692898
B82: MCCI11<XBSP> | C82: MCCI11 | D82: FII Maua | E82: =IF(B82="","",VLOOKUP(H82,'Base FII Guide'!$B$5:$C$40000,2,0)) -> 607347<BraNa> | F82: 607347 | G82: Maua Capital Recebiveis Imobil-Unica | H82: 23648935000184 | I82: Não se aplica | J82: Maua Capital Real Estate Ltda | K82: BTG Pactual Servicos Financeiros SA Dtvm | L82: 115149 | M82: 0.01043 | N82: 1494178.114 | O82: 2024-09-17 | P82: 88.1 | Q82: 91.82602289 | R82: 0.9594230178 | S82: 2024-07-29 | T82: 3124.25762 | U82: 3614.843781 | V82: 0.8642856537 | W82: 6382 | X82: 6056.741036 | Y82: 1.053701976 | AA82: 0.008124499371 | AB82: 0.009314580151 | AC82: -0.01293818068 | AD82: -0.005700661694 | AE82: 0.008826789624 | AF82: -0.001734486075 | AG82: -0.02248864139 | AH82: -0.03116727587 | AI82: 0.03197018356 | AJ82: -0.1026306283 | AK82: -0.01187576357 | AL82: -0.08043111835 | AM82: 0.02334771095 | AN82: -0.1171656878 | AO82: 0.1543720638 | AP82: -0.07219090313 | AQ82: 0.2460213508 | AR82: 0.04818387432 | AS82: 0.35190603 | AT82: 0.00767985352 | AW82: 0.1474079262 | AY82: 0.04722442956 | AZ82: -0.03728070175 | BA82: 0.08415316111 | BB82: -0.04541227701 | BC82: 5 | BD82: 7 | BE82: 5 | BF82: 7 | BG82: -0.4711266042 | BH82: 0.01522101506 | BI82: -0.06686318999 | BJ82: 2023-10-16 | BK82: 2023-11-29 | BL82: 1900-02-11 | BM82: 2023-12-15 | BQ82: 1.099881554 | BR82: 0.9962068697 | BS82: 1.03428047 | BT82: 1.002372213 | BU82: 1.051362035 | BV82: 1.011234244 | BW82: 0.9502627699 | BX82: 0.963643018 | BY82: 0.9904657066 | BZ82: 0.9307663777 | CA82: 1.011234244 | CB82: 0.9204260863 | CC82: 0.9204260863 | CI82: 0.06513920726 | CJ82: 7.100173591 | CK82: 0.09983522342 | CL82: 10.3 | CM82: 0.1233608548 | CN82: 12.7 | CO82: 0.1291240046 | CP82: 11.35 | CQ82: 0.1041883726 | CR82: 10 | CS82: 0.1043295325 | CT82: 0.1291240046 | CU82: 0.06513920726
B83: MXRF11<XBSP> | C83: MXRF11 | D83: FII Maxi Ren | E83: =IF(B83="","",VLOOKUP(H83,'Base FII Guide'!$B$5:$C$40000,2,0)) -> 362042<BraNa> | F83: 362042 | G83: Maxi Renda Fundo de Investimento Imobiliário - FII | H83: 97521225000125 | I83: TVM | J83: Xp Vista Asset Management Ltda | K83: BTG Pactual Servicos Financeiros SA Dtvm | L83: 1142848 | M83: 0.03052 | N83: 4373252.97 | O83: 2024-09-17 | P83: 10 | Q83: 10.05 | R83: 0.9950248756 | S83: 2024-08-30 | T83: 14693.07016 | U83: 11602.71081 | V83: 1.266348046 | W83: 38655 | X83: 34274.49801 | Y83: 1.127806452 | AA83: -0.001996007984 | AB83: -0.0008059272041 | AC83: -0.004975124379 | AD83: 0.002262394608 | AE83: 0.03372382514 | AF83: 0.02316254944 | AG83: 0.002937598292 | AH83: -0.005741036197 | AI83: 0.01379669342 | AJ83: -0.1208041185 | AK83: 0.02696690998 | AL83: -0.04158844479 | AM83: 0.02079107358 | AN83: -0.1197223252 | AO83: 0.2590363851 | AP83: 0.03247341808 | AQ83: 0.4520402754 | AR83: 0.254202799 | AS83: 0.4939074849 | AT83: 0.1496813084 | AU83: 0.7313016892 | AV83: 0.4319935278 | AW83: 0.06838611878 | AY83: 0.01595214357 | AZ83: -0.01801801802 | BA83: 0.02772466539 | BB83: -0.02910798122 | BC83: 7 | BD83: 5 | BE83: 7 | BF83: 5 | BG83: -1.166466802 | BH83: 0.007050853127 | BI83: -0.03661971831 | BJ83: 2024-01-31 | BK83: 2024-02-28 | BL83: 1900-02-14 | BM83: 2024-04-08 | BO83: 1.054515779 | BP83: 1.120559747 | BQ83: 1.38154368 | BR83: 1.072801581 | BS83: 1.036663204 | BT83: 1.015046597 | BU83: 0.9660552499 | BV83: 0.954348604 | BW83: 0.9884606856 | BX83: 1.079191566 | BY83: 1.053799602 | BZ83: 1.027262741 | CA83: 1.079191566 | CB83: 0.9518817352 | CC83: 0.9518817352 | CE83: 0.0866807611 | CF83: 0.82 | CG83: 0.08644400786 | CH83: 0.88 | CI83: 0.06576125804 | CJ83: 0.92 | CK83: 0.08925143954 | CL83: 0.93 | CM83: 0.1209677419 | CN83: 1.2 | CO83: 0.1371371371 | CP83: 1.37 | CQ83: 0.1106115108 | CR83: 1.23 | CS83: 0.09955055091 | CT83: 0.1371371371 | CU83: 0.06576125804
B84: MFII11<XBSP> | C84: MFII11 | D84: FII Merito I | E84: =IF(B84="","",VLOOKUP(H84,'Base FII Guide'!$B$5:$C$40000,2,0)) -> 335770<BraNa> | F84: 335770 | G84: Mérito Desenvolvimento Imobiliário I FII - Fundo de Investim | H84: 16915968000188 | I84: Híbrido | J84: Merito Investimentos Ltda | K84: Merito Dtvm Ltda | L84: 32361 | M84: 0.00371 | N84: 531664.29 | O84: 2024-09-17 | P84: 102 | Q84: 103.32 | R84: 0.987224158 | S84: 2024-08-30 | T84: 900.21096 | U84: 578.8190214 | V84: 1.555254625 | W84: 475 | X84: 555.9043825 | Y84: 0.8544634922 | AA84: -0.001956947162 | AB84: -0.0007668663821 | AC84: -0.01277584204 | AD84: -0.005538323057 | AE84: 0.1996100213 | AF84: 0.1890487456 | AG84: 0.01740556713 | AH84: 0.008726932636 | AI84: 0.03105129377 | AJ84: -0.1035495181 | AK84: 0.04542912478 | AL84: -0.02312623 | AM84: 0.2458246801 | AN84: 0.1053112813 | AO84: 0.3918877855 | AP84: 0.1653248185 | AQ84: 0.3567654072 | AR84: 0.1589279308 | AS84: 0.4455503557 | AT84: 0.1013241791 | AU84: 0.6978112555 | AV84: 0.3985030941 | AW84: 0.07735866474 | AY84: 0.01835748792 | AZ84: -0.02674897119 | BA84: 0.1299313894 | BB84: -0.01277584204 | BC84: 9 | BD84: 3 | BE84: 8 | BF84: 4 | BG84: 1.616030164 | BH84: 0.007991691408 | BI84: -0.04461279461 | BJ84: 2024-02-09 | BK84: 2024-02-20 | BL84: 1900-02-05 | BM84: 2024-04-04 | BO84: 0.8994816108 | BP84: 1.186674109 | BQ84: 1.085172284 | BR84: 1.116727023 | BS84: 1.094869576 | BT84: 0.90603648 | BU84: 1.036535175 | BV84: 0.9503078116 | BW84: 0.8735222128 | BX84: 0.935484039 | BY84: 0.8132855008 | BZ84: 0.9462121748 | CA84: 0.9503078116 | CB84: 0.9956901998 | CC84: 0.9956901998 | CE84: 0.07589092483 | CF84: 10.52 | CG84: 0.1446451894 | CH84: 13.29 | CI84: 0.09308185706 | CJ84: 12.19 | CK84: 0.09499481712 | CL84: 12.83 | CM84: 0.1221792682 | CN84: 13.59 | CO84: 0.1420528367 | CP84: 13.12 | CQ84: 0.1477308959 | CR84: 13.9 | CS84: 0.1172251127 | CT84: 0.1477308959 | CU84: 0.07589092483
B85: ARRI11<XBSP> | C85: ARRI11 | D85: FII Atrio | E85: =IF(B85="","",VLOOKUP(H85,'Base FII Guide'!$B$5:$C$40000,2,0)) -> 525308<BraNa> | F85: 525308 | G85: Open K Ativos e Recebiveis Imobiliarios - Fundo de Investime | H85: 32006821000121 | I85: TVM | J85: - | K85: - | L85: 27218 | M85: 0.00117 | N85: 174431.2467 | O85: 2024-09-17 | P85: 8.98 | Q85: 9.02 | R85: 0.9955654102 | S85: 2024-09-05 | T85: 243.84285 | U85: 320.7523533 | V85: 0.7602215463 | W85: 508 | X85: 950.247012 | Y85: 0.5345978399 | AA85: 0.003351955307 | AB85: 0.004542036087 | AC85: 0.0011148272 | AD85: 0.008352346187 | AE85: 0.09532248242 | AF85: 0.08476120672 | AG85: 0.00332723566 | AH85: -0.00535139883 | AI85: 0.0261260134 | AJ85: -0.1084747985 | AK85: 0.04653328 | AL85: -0.02202207478 | AM85: 0.1583780114 | AN85: 0.01786461264 | AO85: 0.3426420422 | AP85: 0.1160790752 | AQ85: 0.4504500616 | AR85: 0.2526125852 | AS85: 1.027327966 | AT85: 0.6831017891 | AW85: 0.06825210125 | AY85: 0.01949541284 | AZ85: -0.01661129568 | BA85: 0.03071672355 | BB85: -0.002195389684 | BC85: 10 | BD85: 1 | BE85: 8 | BF85: 4 | BG85: 0.6583369773 | BH85: 0.007061947401 | BI85: -0.02207505519 | BJ85: 2023-12-01 | BK85: 2023-12-13 | BL85: 1900-01-17 | BM85: 2023-12-27 | BQ85: 1.075858522 | BR85: 0.8547157489 | BS85: 0.9645448061 | BT85: 1.068678567 | BU85: 1.029827782 | BV85: 1.037536811 | BW85: 1.033315462 | BX85: 0.993798294 | BY85: 0.9990808536 | BZ85: 1.043510923 | CA85: 1.043510923 | CB85: 1 | CC85: 1 | CI85: 0.06062768798 | CJ85: 0.6211306404 | CK85: 0.1515613621 | CL85: 1.394335936 | CM85: 0.1640065606 | CN85: 1.578235133 | CO85: 0.1375655022 | CP85: 1.2601 | CQ85: 0.1352874859 | CR85: 1.2 | CS85: 0.1298097198 | CT85: 0.1640065606 | CU85: 0.06062768798
B86: OUJP11<XBSP> | C86: OUJP11 | D86: FII Ouri Jpp | E86: =IF(B86="","",VLOOKUP(H86,'Base FII Guide'!$B$5:$C$40000,2,0)) -> 470538<BraNa> | F86: 470538 | G86: Ourinvest Jpp Fundo de Investimento Imobiliário - FII | H86: 26091656000150 | I86: Híbrido | J86: Jpp Capital Gestao de Recursos | K86: Finaxis Corretora de Tit e Val Mob | L86: 28984 | M86: 0.00181 | N86: 260190.72 | O86: 2024-09-17 | P86: 80 | Q86: 93.96183459 | R86: 0.8514095148 | S86: 2024-02-02 | T86: 555.7736 | U86: 716.6201693 | V86: 0.7755483641 | W86: 1278 | X86: 1891.12749 | Y86: 0.6757873315 | AA86: 0.002631908759 | AB86: 0.003821989539 | AC86: 0.008191556395 | AD86: 0.01542907538 | AE86: -0.1139059319 | AF86: -0.1244672076 | AG86: 8.612025886e-05 | AH86: -0.00859251423 | AI86: -0.03666805224 | AJ86: -0.1712688641 | AK86: -0.08157546314 | AL86: -0.1501308179 | AM86: -0.1126574827 | AN86: -0.2531708815 | AO86: 0.09495787298 | AP86: -0.131605094 | AQ86: 0.3942354886 | AR86: 0.1963980121 | AS86: 0.3342323634 | AT86: -0.00999381314 | AU86: 0.3932917195 | AV86: 0.09398355813 | AW86: 0.1546269738 | AY86: 0.0318627451 | AZ86: -0.05026347791 | BA86: 0.04552238806 | BB86: -0.05535634245 | BC86: 6 | BD86: 6 | BE86: 4 | BF86: 8 | BG86: -1.250769192 | BH86: 0.01592022945 | BI86: -0.1837281134 | BJ86: 2024-02-02 | BK86: 2024-08-07 | BO86: 0.9741805356 | BP86: 1.054796908 | BQ86: 1.142510327 | BR86: 1.098641372 | BS86: 1.031670923 | BT86: 0.9462248358 | BU86: 0.8945682485 | BV86: 0.9539138084 | BW86: 0.9775559919 | BX86: 1.038008271 | BY86: 0.9860329284 | BZ86: 0.8099482398 | CA86: 1.038008271 | CB86: 0.7802907379 | CC86: 0.7802907379 | CE86: 0.08041735184 | CF86: 8.024981569 | CG86: 0.1040286911 | CH86: 10.62727094 | CI86: 0.06330062378 | CJ86: 7.423790044 | CK86: 0.09154922171 | CL86: 9.770509405 | CM86: 0.164195497 | CN86: 14.95 | CO86: 0.1438812084 | CP86: 14.05 | CQ86: 0.1077407918 | CR86: 10.94 | CS86: 0.1078733408 | CT86: 0.164195497 | CU86: 0.06330062378
B87: HGRE11<XBSP> | C87: HGRE11 | D87: FII Hgre Pax | E87: =IF(B87="","",VLOOKUP(H87,'Base FII Guide'!$B$5:$C$40000,2,0)) -> 362298<BraNa> | F87: 362298 | G87: Pátria Escritórios FII Responsabilidade Limitada | H87: 9072017000129 | I87: Lajes Corporativas | J87: Patria Investimentos Ltda | K87: Banco Genial S.A. | L87: 8 | M87: 0.00887 | N87: 1271355.374 | O87: 2024-09-17 | P87: 107.58 | Q87: 127.684361 | R87: 0.84254641 | S87: 2023-09-25 | T87: 3386.29535 | U87: 1804.32845 | V87: 1.876762155 | W87: 7483 | X87: 3751.589641 | Y87: 1.994621138 | AA87: -0.0110314396 | AB87: -0.009841358823 | AC87: -0.04804884524 | AD87: -0.04081132625 | AE87: -0.1367398563 | AF87: -0.147301132 | AG87: -0.06610464781 | AH87: -0.0747832823 | AI87: -0.02706860688 | AJ87: -0.1616694188 | AK87: -0.1292965227 | AL87: -0.1978518774 | AM87: -0.1521430389 | AN87: -0.2926564377 | AO87: -0.09749314309 | AP87: -0.3240561101 | AQ87: 0.04848714396 | AR87: -0.1493503325 | AS87: -0.0370235124 | AT87: -0.3812496889 | AU87: -0.02408089406 | AV87: -0.3233890555 | AW87: 0.1382580044 | AY87: 0.03130016051 | AZ87: -0.03406183759 | BA87: 0.06739362138 | BB87: -0.09141376758 | BC87: 5 | BD87: 7 | BE87: 3 | BF87: 9 | BG87: -1.667906633 | BH87: 0.01428600794 | BI87: -0.1574535901 | BJ87: 2023-09-22 | BK87: 2024-09-17 | BO87: 0.9786665187 | BP87: 1.055316017 | BQ87: 1.201992954 | BR87: 0.9199439935 | BS87: 0.906528731 | BT87: 0.7873934424 | BU87: 0.8082566547 | BV87: 0.7992349945 | BW87: 0.7770409615 | BX87: 0.9106464533 | BY87: 0.8603944625 | BZ87: 0.7060525089 | CA87: 0.9106464533 | CB87: 0.7753310917 | CC87: 0.7753310917 | CE87: 0.06598629945 | CF87: 9.44 | CG87: 0.05975371779 | CH87: 8.88 | CI87: 0.04148892952 | CJ87: 8.17 | CK87: 0.05877074922 | CL87: 9.17 | CM87: 0.08293963255 | CN87: 11.06 | CO87: 0.08448855713 | CP87: 10.3 | CQ87: 0.07607041947 | CR87: 10.5 | CS87: 0.06707118645 | CT87: 0.08448855713 | CU87: 0.04148892952
B88: HGFF11<XBSP> | C88: HGFF11 | D88: FII Hgff Paxci | E88: =IF(B88="","",VLOOKUP(H88,'Base FII Guide'!$B$5:$C$40000,2,0)) -> 506745<BraNa> | F88: 506745 | G88: Patria Imobiliario Fof Fundo de Investimento Imobiliário Res | H88: 32784898000122 | I88: Não se aplica | J88: Patria Investimentos Ltda | K88: Banco Genial S.A. | L88: 1 | M88: 0.00161 | N88: 230805.9182 | O88: 2024-09-17 | P88: 80.6 | Q88: 87.11603188 | R88: 0.9252028388 | S88: 2024-03-21 | T88: 448.01037 | U88: 751.7076142 | V88: 0.5959901982 | W88: 1317 | X88: 1442.199203 | Y88: 0.9131886892 | AA88: -0.01707317073 | AB88: -0.01588308995 | AC88: -0.03310940499 | AD88: -0.025871886 | AE88: -0.01451664493 | AF88: -0.02507792063 | AG88: -0.05161232886 | AH88: -0.06029096335 | AI88: -0.007706268317 | AJ88: -0.1423070802 | AK88: -0.04826767467 | AL88: -0.1168230294 | AM88: -0.001543738031 | AN88: -0.1420571368 | AO88: 0.2416466946 | AP88: 0.0150837276 | AQ88: 0.4274339473 | AR88: 0.2295964708 | AS88: 0.1450734291 | AT88: -0.1991527474 | AU88: 0.2327984794 | AV88: -0.06650968204 | AW88: 0.1427047621 | AY88: 0.04329823731 | AZ88: -0.0250028673 | BA88: 0.05836341757 | BB88: -0.03310940499 | BC88: 5 | BD88: 7 | BE88: 5 | BF88: 7 | BG88: -0.6490963518 | BH88: 0.01476382054 | BI88: -0.08557130175 | BJ88: 2024-03-21 | BK88: 2024-07-03 | BQ88: 1.001027035 | BR88: 1.001946748 | BS88: 0.9454381734 | BT88: 0.8734390258 | BU88: 0.8210692834 | BV88: 0.8104276506 | BW88: 0.8195904077 | BX88: 0.937494714 | BY88: 0.9282859159 | BZ88: 0.900907195 | CA88: 0.937494714 | CB88: 0.960973093 | CC88: 0.960973093 | CI88: 0.06300114548 | CJ88: 7.15 | CK88: 0.07158119658 | CL88: 6.7 | CM88: 0.09925591284 | CN88: 7.47 | CO88: 0.112406913 | CP88: 8 | CQ88: 0.09442446043 | CR88: 8.4 | CS88: 0.08813392567 | CT88: 0.112406913 | CU88: 0.06300114548
B89: HGLG11<XBSP> | C89: HGLG11 | D89: FII Hglg Pax | E89: =IF(B89="","",VLOOKUP(H89,'Base FII Guide'!$B$5:$C$40000,2,0)) -> 362301<BraNa> | F89: 362301 | G89: Pátria Log Fundo de Investimento Imobiliário Responsabilidad | H89: 11728688000147 | I89: Logistica | J89: Patria Investimentos Ltda | K89: Banco Genial S.A. | L89: 8 | M89: 0.03771 | N89: 5404998.373 | O89: 2024-09-17 | P89: 159.97 | Q89: 163.7995294 | R89: 0.9766206325 | S89: 2024-03-08 | T89: 7062.13162 | U89: 8912.544425 | V89: 0.7923810848 | W89: 10533 | X89: 10065.01195 | Y89: 1.046496522 | AA89: -0.001311025096 | AB89: -0.0001209443162 | AC89: -0.0008119925042 | AD89: 0.006425526482 | AE89: 0.04904441016 | AF89: 0.03848313446 | AG89: -0.005009224066 | AH89: -0.01368785856 | AI89: 0.02833333332 | AJ89: -0.1062674786 | AK89: 0.0004349253722 | AL89: -0.0681204294 | AM89: 0.06594246787 | AN89: -0.0745709309 | AO89: 0.104878887 | AP89: -0.12168408 | AQ89: 0.3152690852 | AR89: 0.1174316087 | AS89: 0.3963396698 | AT89: 0.05211349325 | AU89: 0.7037479898 | AV89: 0.4044398284 | AW89: 0.08699626418 | AY89: 0.02419510936 | AZ89: -0.03553204729 | BA89: 0.03551413255 | BB89: -0.01483975558 | BC89: 6 | BD89: 6 | BE89: 8 | BF89: 4 | BG89: -0.4303486497 | BH89: 0.008967139457 | BI89: -0.0696660959 | BJ89: 2024-03-08 | BK89: 2024-06-21 | BO89: 1.152466844 | BP89: 1.21904238 | BQ89: 1.516981106 | BR89: 1.402510554 | BS89: 1.205296974 | BT89: 1.149766035 | BU89: 1.139992626 | BV89: 1.121633185 | BW89: 1.053711755 | BX89: 1.087007091 | BY89: 1.016752425 | BZ89: 1.013106649 | CA89: 1.121633185 | CB89: 0.9032423992 | CC89: 0.9032423992 | CE89: 0.07284718579 | CF89: 9.72 | CG89: 0.06527827648 | CH89: 9.09 | CI89: 0.0446998101 | CJ89: 9.18 | CK89: 0.08101138084 | CL89: 14.45 | CM89: 0.09507730585 | CN89: 16.05 | CO89: 0.09057301294 | CP89: 14.7 | CQ89: 0.08110599078 | CR89: 13.2 | CS89: 0.07579899468 | CT89: 0.09507730585 | CU89: 0.0446998101
B90: PATL11<XBSP> | C90: PATL11 | D90: FII Patlogisci | E90: =IF(B90="","",VLOOKUP(H90,'Base FII Guide'!$B$5:$C$40000,2,0)) -> 551694<BraNa> | F90: 551694 | G90: Pátria Logística Fundo de Investimento Imobiliário | H90: 35754164000199 | I90: Híbrido | J90: Vbi Real Estate Gestao de Carteiras Ltda | K90: Vortx Dtvm Ltda | L90: 25842 | M90: 0.00209 | N90: 300190.9149 | O90: 2024-09-17 | P90: 60.14 | Q90: 67.55024663 | R90: 0.8903002284 | S90: 2024-02-22 | T90: 244.06217 | U90: 572.2518284 | V90: 0.4264943472 | W90: 997 | X90: 1723.262948 | Y90: 0.5785536102 | AA90: -0.004139758238 | AB90: -0.002949677458 | AC90: -0.01409836065 | AD90: -0.006860841668 | AE90: -0.0539615295 | AF90: -0.0645228052 | AG90: 0.006833039219 | AH90: -0.00184559527 | AI90: 0.02456633376 | AJ90: -0.1100344781 | AK90: -0.05952272573 | AL90: -0.1280780805 | AM90: -0.04957436619 | AN90: -0.190087765 | AO90: -0.1175245129 | AP90: -0.3440874799 | AQ90: 0.1008270857 | AR90: -0.09701039073 | AS90: -0.0906272478 | AT90: -0.4348534243 | AW90: 0.1518267566 | AY90: 0.03182461103 | AZ90: -0.04492214414 | BA90: 0.1004784689 | BB90: -0.09415204678 | BC90: 5 | BD90: 7 | BE90: 5 | BF90: 7 | BG90: -0.8946530062 | BH90: 0.01563999903 | BI90: -0.1419667496 | BJ90: 2024-02-22 | BK90: 2024-05-02 | BS90: 0.9839316851 | BT90: 0.8715054113 | BU90: 0.7582189716 | BV90: 0.7888472167 | BW90: 0.710895401 | BX90: 0.7679830066 | BY90: 0.6943987117 | BZ90: 0.6112131816 | CA90: 0.7888472167 | CB90: 0.7748182013 | CC90: 0.7748182013 | CK90: 0.07103132202 | CL90: 6.78065 | CM90: 0.09345166062 | CN90: 6.95 | CO90: 0.1017921147 | CP90: 7.1 | CQ90: 0.1003543586 | CR90: 7.08 | CS90: 0.09165736398 | CT90: 0.1017921147 | CU90: 0.07103132202
B91: HGPO11<XBSP> | C91: HGPO11 | D91: FII Hgpo Paxci Er | E91: =IF(B91="","",VLOOKUP(H91,'Base FII Guide'!$B$5:$C$40000,2,0)) -> 362336<BraNa> | F91: 362336 | G91: Patria Prime Offices Fundo de Investimento Imobiliario Respo | H91: 11260134000168 | I91: Lajes Corporativas | J91: Patria Investimentos Ltda | K91: Banco Genial S.A. | L91: 7 | M91: 0.00366 | N91: 524479.5933 | O91: 2024-09-17 | P91: 299.18 | Q91: 306.6878441 | R91: 0.9755195902 | S91: 2024-07-16 | T91: 256.76412 | U91: 801.6065099 | V91: 0.3203119197 | W91: 372 | X91: 661.752988 | Y91: 0.5621432872 | AA91: -0.001601815391 | AB91: -0.0004117346107 | AC91: -0.007036176568 | AD91: 0.0002013424191 | AE91: 0.1087125182 | AF91: 0.09815124246 | AG91: 0.0005588244094 | AH91: -0.00811981008 | AI91: -0.01231656997 | AJ91: -0.1469173819 | AK91: 0.01150025547 | AL91: -0.0570550993 | AM91: 0.166952346 | AN91: 0.02643894719 | AO91: 0.3081798841 | AP91: 0.08161691712 | AQ91: 0.6485744203 | AR91: 0.4507369438 | AS91: 0.7367948888 | AT91: 0.3925687123 | AU91: 1.248802025 | AV91: 0.9494938638 | AW91: 0.1415746803 | AY91: 0.07125825068 | AZ91: -0.02407645033 | BA91: 0.04933443118 | BB91: -0.01077375122 | BC91: 7 | BD91: 5 | BE91: 8 | BF91: 4 | BG91: 0.4265818229 | BH91: 0.01476449621 | BI91: -0.03898214653 | BJ91: 2023-09-29 | BK91: 2023-11-03 | BL91: 1900-02-08 | BM91: 2023-11-28 | BO91: 1.143487515 | BP91: 1.262575757 | BQ91: 1.093363563 | BR91: 1.011563115 | BS91: 0.9217798048 | BT91: 0.9048101853 | BU91: 0.8956850254 | BV91: 0.9683649602 | BW91: 0.8738777148 | BX91: 0.9293634235 | BY91: 0.91206797 | BZ91: 0.8679631721 | CA91: 0.9683649602 | CB91: 0.8963182352 | CC91: 0.8963182352 | CE91: 0.0638898694 | CF91: 9.05 | CG91: 0.05811915888 | CH91: 9.95 | CI91: 0.04908223862 | CJ91: 10.91 | CK91: 0.06318607764 | CL91: 14.16 | CM91: 0.07227962006 | CN91: 17.35 | CO91: 0.07224494476 | CP91: 18.9 | CQ91: 0.06879391101 | CR91: 18.8 | CS91: 0.06394226005 | CT91: 0.07227962006 | CU91: 0.04908223862
B92: HGCR11<XBSP> | C92: HGCR11 | D92: FII Hgcr Paxci Er | E92: =IF(B92="","",VLOOKUP(H92,'Base FII Guide'!$B$5:$C$40000,2,0)) -> 362311<BraNa> | F92: 362311 | G92: Pátria Recebíveis Imobiliários Fundo de Investimento Imobili | H92: 11160521000122 | I92: TVM | J92: Patria Investimentos Ltda | K92: Banco Genial S.A. | L92: 3 | M92: 0.01106 | N92: 1585443.84 | O92: 2024-09-17 | P92: 102.83 | Q92: 103.0444874 | R92: 0.9979184969 | S92: 2024-08-23 | T92: 2390.3039 | U92: 3406.575472 | V92: 0.7016735486 | W92: 3892 | X92: 5099.103586 | Y92: 0.7632714132 | AA92: 0.002046384719 | AB92: 0.0032364655 | AC92: 0.003709126404 | AD92: 0.01094664539 | AE92: 0.0620831734 | AF92: 0.0515218977 | AG92: 0.005556861448 | AH92: -0.003121773041 | AI92: 0.01611139148 | AJ92: -0.1184894204 | AK92: 0.02714706361 | AL92: -0.04140829116 | AM92: 0.06751462804 | AN92: -0.07299877073 | AO92: 0.2652222265 | AP92: 0.03865925948 | AQ92: 0.4436435678 | AR92: 0.2458060914 | AS92: 0.5840226239 | AT92: 0.2397964474 | AU92: 0.4968603005 | AV92: 0.1975521391 | AW92: 0.08664160421 | AY92: 0.01575999241 | AZ92: -0.03701589114 | BA92: 0.02177293935 | BB92: -0.01151394043 | BC92: 9 | BD92: 3 | BE92: 7 | BF92: 5 | BG92: -0.4165111899 | BH92: 0.00891722417 | BI92: -0.0474313836 | BJ92: 2023-09-29 | BK92: 2023-11-01 | BL92: 1900-02-26 | BM92: 2023-12-22 | BO92: 1.091064002 | BP92: 1.134419501 | BQ92: 1.23312098 | BR92: 1.032064193 | BS92: 0.9542080012 | BT92: 1.006508815 | BU92: 1.019748113 | BV92: 1.028848305 | BW92: 0.9998605066 | BX92: 1.004583735 | BY92: 1.016914455 | BZ92: 1.023215473 | CA92: 1.028848305 | CB92: 0.9945251094 | CC92: 0.9945251094 | CE92: 0.09154315606 | CF92: 9.45 | CG92: 0.07859458512 | CH92: 8.97 | CI92: 0.05001917913 | CJ92: 6.52 | CK92: 0.09765509053 | CL92: 9.87 | CM92: 0.1322685539 | CN92: 13.83 | CO92: 0.1357107479 | CP92: 13.7 | CQ92: 0.1086350975 | CR92: 11.7 | CS92: 0.09920377288 | CT92: 0.1357107479 | CU92: 0.05001917913
B93: HGRU11<XBSP> | C93: HGRU11 | D93: FII Hgru Pax | E93: =IF(B93="","",VLOOKUP(H93,'Base FII Guide'!$B$5:$C$40000,2,0)) -> 466123<BraNa> | F93: 466123 | G93: Pátria Renda Urbana - Fundo de Investimento Imobiliário - Re | H93: 29641226000153 | I93: Multicategoria | J93: Patria Investimentos Ltda | K93: Banco Genial S.A. | L93: 4 | M93: 0.02443 | N93: 2291604.021 | O93: 2024-09-17 | P93: 124.5 | Q93: 131.3947986 | R93: 0.9475260917 | S93: 2024-01-17 | T93: 3520.35854 | U93: 3510.477796 | V93: 1.002814644 | W93: 7267 | X93: 5276.605578 | Y93: 1.377211143 | AA93: -8.031483412e-05 | AB93: 0.001109765946 | AC93: -0.01767397822 | AD93: -0.01043645924 | AE93: -0.03664740131 | AF93: -0.047208677 | AG93: -0.01489446578 | AH93: -0.02357310027 | AI93: 0.01257387288 | AJ93: -0.122026939 | AK93: -0.041359675 | AL93: -0.1099150298 | AM93: -0.02780094485 | AN93: -0.1683143436 | AO93: 0.1821632482 | AP93: -0.04439971883 | AQ93: 0.4185528304 | AR93: 0.220715354 | AS93: 0.3427494748 | AT93: -0.00147670171 | AU93: 0.8093960956 | AV93: 0.5100879342 | AW93: 0.1183553173 | AY93: 0.03386531724 | AZ93: -0.04475118053 | BA93: 0.04751215862 | BB93: -0.06066109699 | BC93: 7 | BD93: 5 | BE93: 5 | BF93: 7 | BG93: -1.012282521 | BH93: 0.01219889499 | BI93: -0.07102143858 | BJ93: 2024-01-15 | BK93: 2024-06-13 | BO93: 1.015048551 | BP93: 1.052877105 | BQ93: 1.227338613 | BR93: 1.18727162 | BS93: 1.088239277 | BT93: 0.9952268188 | BU93: 0.9896428364 | BV93: 1.003627151 | BW93: 0.978007307 | BX93: 1.071697144 | BY93: 1.084579536 | BZ93: 0.991520208 | CA93: 1.084579536 | CB93: 0.9141977839 | CC93: 0.9141977839 | CG93: 0.07933154053 | CH93: 8.26 | CI93: 0.06171634507 | CJ93: 8.22 | CK93: 0.06717984605 | CL93: 8.64 | CM93: 0.08546135512 | CN93: 10.04 | CO93: 0.0987602962 | CP93: 11.87 | CQ93: 0.08521923621 | CR93: 12.05 | CS93: 0.07961143653 | CT93: 0.0987602962 | CU93: 0.06171634507
B94: PORD11<XBSP> | C94: PORD11 | D94: FII Polo Cri | E94: =IF(B94="","",VLOOKUP(H94,'Base FII Guide'!$B$5:$C$40000,2,0)) -> 362794<BraNa> | F94: 362794 | G94: Polo Crédito Imobiliário - Fundo de Investimento Imobiliário | H94: 17156502000109 | I94: TVM | J94: Polo Capital Gest de Recursos | K94: Oliveira Trust Dtvm | L94: 36592 | M94: 0.00226 | N94: 324368.625 | O94: 2024-09-17 | P94: 8.7 | Q94: 9.026369842 | R94: 0.9638426247 | S94: 2024-04-19 | T94: 638.41691 | U94: 590.8638478 | V94: 1.080480575 | W94: 2873 | X94: 2006 | Y94: 1.43220339 | AA94: -0.002293577982 | AB94: -0.001103497202 | AC94: -0.003550566946 | AD94: 0.003686952041 | AE94: 0.05057827261 | AF94: 0.04001699691 | AG94: -0.01582486007 | AH94: -0.02450349456 | AI94: -0.01375670142 | AJ94: -0.1483575133 | AK94: 0.02435841401 | AL94: -0.04419694076 | AM94: 0.09426791168 | AN94: -0.04624548709 | AO94: 0.1705156342 | AP94: -0.05604733278 | AQ94: 0.3975812105 | AR94: 0.199743734 | AS94: 0.4889486699 | AT94: 0.1447224934 | AU94: 0.5956625485 | AV94: 0.2963543871 | AW94: 0.09645237191 | AY94: 0.02057842047 | AZ94: -0.02747252747 | BA94: 0.04187220374 | BB94: -0.02552204176 | BC94: 7 | BD94: 5 | BE94: 8 | BF94: 4 | BG94: -0.1120955843 | BH94: 0.009952103278 | BI94: -0.05791728352 | BJ94: 2024-04-19 | BK94: 2024-05-09 | BO94: 0.9666076359 | BP94: 1.047963404 | BQ94: 1.030692733 | BR94: 0.9133096026 | BS94: 1.024492831 | BT94: 1.032416646 | BU94: 0.9552461999 | BV94: 0.9855018635 | BW94: 0.9167237584 | BX94: 0.9145258837 | BY94: 0.9188519581 | BZ94: 0.9060311181 | CA94: 0.9855018635 | CB94: 0.9193601266 | CC94: 0.9193601266 | CE94: 0.08192534381 | CF94: 0.834 | CG94: 0.1153350203 | CH94: 1.145908834 | CI94: 0.09986967148 | CJ94: 1.076571133 | CK94: 0.1079721362 | CL94: 1.116 | CM94: 0.1555853724 | CN94: 1.47684108 | CO94: 0.1362170577 | CP94: 1.225 | CQ94: 0.1265106996 | CR94: 1.141 | CS94: 0.1176307574 | CT94: 0.1555853724 | CU94: 0.08192534381
B95: RBRF11<XBSP> | C95: RBRF11 | D95: FII Rbralpha | E95: =IF(B95="","",VLOOKUP(H95,'Base FII Guide'!$B$5:$C$40000,2,0)) -> 450693<BraNa> | F95: 450693 | G95: Rbr Alpha Multiestratégia Real Estate Fundo de Investimento | H95: 27529279000151 | I95: TVM | J95: Rbr Asset Management | K95: BTG Pactual Servicos Financeiros SA Dtvm | L95: 129747 | M95: 0.00688 | N95: 985015.44 | O95: 2024-09-17 | P95: 7.2 | Q95: 8.098636461 | R95: 0.8890385479 | S95: 2024-03-11 | T95: 2586.15043 | U95: 2900.901556 | V95: 0.8914988601 | W95: 16637 | X95: 12610.21116 | Y95: 1.31932763 | AA95: -0.009628610729 | AB95: -0.008438529949 | AC95: -0.03421470636 | AD95: -0.02697718737 | AE95: -0.05840522708 | AF95: -0.06896650278 | AG95: -0.05436146607 | AH95: -0.06304010056 | AI95: 0.02676213986 | AJ95: -0.107838672 | AK95: -0.08889693604 | AL95: -0.1574522908 | AM95: -0.03741681162 | AN95: -0.1779302104 | AO95: 0.1740597242 | AP95: -0.05250324283 | AQ95: 0.2230751235 | AR95: 0.02523764708 | AS95: 0.1042203977 | AT95: -0.2400057789 | AU95: 0.1272732538 | AV95: -0.1720349076 | AW95: 0.1635455012 | AY95: 0.03590425532 | AZ95: -0.04103646383 | BA95: 0.07746650724 | BB95: -0.06917051082 | BC95: 7 | BD95: 5 | BE95: 6 | BF95: 6 | BG95: -0.7510910102 | BH95: 0.01687927701 | BI95: -0.1341338822 | BJ95: 2024-03-11 | BK95: 2024-06-13 | BO95: 1.01618058 | BP95: 1.035206971 | BQ95: 1.175986593 | BR95: 1.022061416 | BS95: 1.031007647 | BT95: 0.9325015287 | BU95: 0.909086086 | BV95: 0.8178915928 | BW95: 0.8408338035 | BX95: 0.9240595651 | BY95: 0.9308631614 | BZ95: 0.8298745544 | CA95: 0.9308631614 | CB95: 0.8915107922 | CC95: 0.8915107922 | CE95: 0.08571091997 | CF95: 0.8399670157 | CG95: 0.08844794362 | CH95: 0.880145487 | CI95: 0.06073011587 | CJ95: 0.794046265 | CK95: 0.07632753326 | CL95: 0.74572 | CM95: 0.09327508989 | CN95: 0.7406042137 | CO95: 0.1052019762 | CP95: 0.724 | CQ95: 0.08260122699 | CR95: 0.6732 | CS95: 0.08461354368 | CT95: 0.1052019762 | CU95: 0.06073011587
B96: RBRL11<XBSP> | C96: RBRL11 | D96: FII Rbr Log | E96: =IF(B96="","",VLOOKUP(H96,'Base FII Guide'!$B$5:$C$40000,2,0)) -> 528366<BraNa> | F96: 528366 | G96: Rbr Log Fundo de Investimento Imobiliário | H96: 35705463000133 | I96: Híbrido | J96: Rbr Asset Management | K96: Brl Dtvm | L96: 14967 | M96: 0.00374 | N96: 534962.8 | O96: 2024-09-17 | P96: 80 | Q96: 85.25521487 | R96: 0.9383590215 | S96: 2023-09-21 | T96: 314.46418 | U96: 797.948386 | V96: 0.394090878 | W96: 493 | X96: 1830.438247 | Y96: 0.2693344071 | AA96: -0.001996007984 | AB96: -0.0008059272041 | AC96: 0.004530430389 | AD96: 0.01176794938 | AE96: -0.01595492083 | AF96: -0.02651619653 | AG96: 0.0141226295 | AH96: 0.005443995011 | AI96: 0.06311574159 | AJ96: -0.07148507029 | AK96: 0.03862774921 | AL96: -0.02992760557 | AM96: -0.0616409785 | AN96: -0.2021543773 | AO96: 0.01644399529 | AP96: -0.2101189717 | AQ96: 0.04141294634 | AR96: -0.1564245301 | AS96: 0.0284851303 | AT96: -0.3157410462 | AW96: 0.1677740258 | AY96: 0.03954081633 | AZ96: -0.0325 | BA96: 0.08171742329 | BB96: -0.06627698038 | BC96: 6 | BD96: 6 | BE96: 5 | BF96: 7 | BG96: -0.8574529519 | BH96: 0.01737771062 | BI96: -0.1347331854 | BJ96: 2023-09-21 | BK96: 2024-06-25 | BR96: 1.160740888 | BS96: 1.020546618 | BT96: 0.9284868756 | BU96: 0.9006274446 | BV96: 0.792289168 | BW96: 0.7831400448 | BX96: 0.8856512326 | BY96: 0.8600316312 | BZ96: 0.7822489238 | CA96: 0.8856512326 | CB96: 0.8832471464 | CC96: 0.8832471464 | CK96: 0.07625688073 | CL96: 8.312 | CM96: 0.08178154387 | CN96: 7.914 | CO96: 0.0944047619 | CP96: 7.93 | CQ96: 0.08671135227 | CR96: 8.15 | CS96: 0.08478863469 | CT96: 0.0944047619 | CU96: 0.07625688073
B97: RBFF11<XBSP> | C97: RBFF11 | D97: FII Riob Ff | E97: =IF(B97="","",VLOOKUP(H97,'Base FII Guide'!$B$5:$C$40000,2,0)) -> 356131<BraNa> | F97: 356131 | G97: Rio Bravo Fundo de Fundos de Investimento Imobiliário | H97: 17329029000114 | I97: TVM | J97: Rio Bravo Investimentos Ltda | K97: Rio Bravo Investimentos Dtvm | L97: 23569 | M97: 0.00158 | N97: 226715.031 | O97: 2024-09-17 | P97: 60.47 | Q97: 63.20133249 | R97: 0.956783625 | S97: 2024-05-22 | T97: 385.67867 | U97: 509.585983 | V97: 0.7568470932 | W97: 414 | X97: 682.4223108 | Y97: 0.6066624632 | AA97: -0.00820075447 | AB97: -0.007010673689 | AC97: -0.00542763158 | AD97: 0.001809887407 | AE97: 0.06792017801 | AF97: 0.05735890232 | AG97: -0.003477170978 | AH97: -0.01215580547 | AI97: -0.003380225377 | AJ97: -0.1379810373 | AK97: 0.03396272018 | AL97: -0.03459263459 | AM97: 0.09777623634 | AN97: -0.04273716243 | AO97: 0.323417117 | AP97: 0.09685414997 | AQ97: 0.3864766847 | AR97: 0.1886392083 | AS97: 0.2378956931 | AT97: -0.1063304834 | AU97: 0.3107557314 | AV97: 0.01144757001 | AW97: 0.1197550392 | AY97: 0.02357629089 | AZ97: -0.0263367917 | BA97: 0.03569100391 | BB97: -0.03440550488 | BC97: 8 | BD97: 4 | BE97: 8 | BF97: 4 | BG97: -0.04257273508 | BH97: 0.01238006297 | BI97: -0.08359799513 | BJ97: 2024-05-22 | BK97: 2024-07-03 | BO97: 0.9387506547 | BP97: 0.8624334589 | BQ97: 1.01022368 | BR97: 0.9235052465 | BS97: 0.9506293144 | BT97: 0.9312424541 | BU97: 0.8374367823 | BV97: 0.8321543084 | BW97: 0.8216647187 | BX97: 0.8632767844 | BY97: 0.8728420462 | BZ97: 0.9207009294 | CA97: 0.9207009294 | CB97: 1 | CC97: 1 | CE97: 0.06059667596 | CF97: 5.87 | CG97: 0.06708816298 | CH97: 5.73 | CI97: 0.0742490418 | CJ97: 8.33 | CK97: 0.07772653283 | CL97: 5.73 | CM97: 0.1044908062 | CN97: 5.91 | CO97: 0.1151572927 | CP97: 6.04 | CQ97: 0.1002135699 | CR97: 6.1 | CS97: 0.08564601176 | CT97: 0.1151572927 | CU97: 0.06059667596
B98: RZAK11<XBSP> | C98: RZAK11 | D98: FII Riza Akn | E98: =IF(B98="","",VLOOKUP(H98,'Base FII Guide'!$B$5:$C$40000,2,0)) -> 569348<BraNa> | F98: 569348 | G98: Riza Akin Fundo de Investimento Imobiliário - FII | H98: 36642219000131 | I98: TVM | J98: Riza Asset | K98: BTG Pactual Servicos Financeiros SA Dtvm | L98: 50329 | M98: 0.00501 | N98: 717666.4698 | O98: 2024-09-17 | P98: 81.48 | Q98: 83.16896482 | R98: 0.9796923669 | S98: 2024-04-12 | T98: 3862.59623 | U98: 2808.252005 | V98: 1.375445018 | W98: 7318 | X98: 4870.653387 | Y98: 1.502467825 | AA98: -0.001470588235 | AB98: -0.0002805074546 | AC98: -0.0004347221447 | AD98: 0.006802796842 | AE98: 0.02975680904 | AF98: 0.01919553334 | AG98: -0.001282838138 | AH98: -0.009961472627 | AI98: 0.02374972051 | AJ98: -0.1108510914 | AK98: -0.01689483801 | AL98: -0.08545019279 | AM98: 0.009907210066 | AN98: -0.1306061887 | AO98: 0.1362508993 | AP98: -0.09031206768 | AQ98: 0.5598995222 | AR98: 0.3620620457 | AW98: 0.1114708986 | AY98: 0.03426275993 | AZ98: -0.05031854011 | BA98: 0.06576167373 | BB98: -0.08046408268 | BC98: 7 | BD98: 5 | BE98: 7 | BF98: 5 | BG98: -0.773987498 | BH98: 0.01147261911 | BI98: -0.08602376332 | BJ98: 2023-10-13 | BK98: 2023-11-29 | BL98: 1900-02-25 | BM98: 2024-01-08 | BS98: 1.036159493 | BT98: 0.9977324609 | BU98: 0.9975937089 | BV98: 1.046455861 | BW98: 1.032501456 | BX98: 1.009668088 | BY98: 0.9662037511 | BZ98: 0.9094639038 | CA98: 1.046455861 | CB98: 0.8690895985 | CC98: 0.8690895985 | CK98: 0.07698421332 | CL98: 7.69765149 | CM98: 0.1894970271 | CN98: 17.88283445 | CO98: 0.151715585 | CP98: 14.68 | CQ98: 0.1526001705 | CR98: 14.32 | CS98: 0.142699249 | CT98: 0.1894970271 | CU98: 0.07698421332
B99: RZAT11<XBSP> | C99: RZAT11 | D99: FII Arctium | E99: =IF(B99="","",VLOOKUP(H99,'Base FII Guide'!$B$5:$C$40000,2,0)) -> 496235<BraNa> | F99: 496235 | G99: Riza Arctium Real Estate Fundo de Investimento Imobiliário | H99: 28267696000136 | I99: Outros | J99: Riza Asset | K99: BTG Pactual Servicos Financeiros SA Dtvm | L99: 38616 | M99: 0.00257 | N99: 368925.6343 | O99: 2024-09-17 | P99: 99.49 | Q99: 99.49 | R99: 1 | S99: 2024-09-17 | T99: 1548.74388 | U99: 1012.522035 | V99: 1.529590297 | W99: 1183 | X99: 1771.262948 | Y99: 0.6678850259 | AA99: 0.004949494949 | AB99: 0.006139575729 | AC99: 0.02312654017 | AD99: 0.03036405916 | AE99: 0.1889710595 | AF99: 0.1784097838 | AG99: 0.02323066459 | AH99: 0.0145520301 | AI99: 0.09133303352 | AJ99: -0.04326777836 | AK99: 0.08346962621 | AL99: 0.01491427143 | AM99: 0.2888351882 | AN99: 0.1483217894 | AO99: 0.2758420225 | AP99: 0.04927905556 | AQ99: 0.5535377582 | AR99: 0.3557002817 | AS99: 1.101019307 | AT99: 0.7567931302 | AW99: 0.131200932 | AY99: 0.0626142596 | AZ99: -0.03031536114 | BA99: 0.07601849492 | BB99: -0.01945421014 | BC99: 8 | BD99: 4 | BE99: 9 | BF99: 3 | BG99: 1.291056985 | BH99: 0.01365207262 | BI99: -0.06522609044 | BJ99: 2024-05-17 | BK99: 2024-06-06 | BL99: 1900-02-08 | BM99: 2024-07-12 | BQ99: 1.205066842 | BR99: 1.011084894 | BS99: 1.311992822 | BT99: 0.9656568481 | BU99: 1.041410716 | BV99: 1.069717874 | BW99: 0.8801960527 | BX99: 0.9481306066 | BY99: 0.9247511243 | BZ99: 0.9887867454 | CA99: 1.069717874 | CB99: 0.9243434827 | CC99: 0.9243434827 | CI99: 0.1111240398 | CJ99: 13.33477365 | CK99: 0.1460709206 | CL99: 18.98921967 | CM99: 0.1502185644 | CN99: 15.76694052 | CO99: 0.1337261621 | CP99: 11.79331023 | CQ99: 0.1539594426 | CR99: 13.59 | CS99: 0.1390198259 | CT99: 0.1539594426 | CU99: 0.1111240398
B100: SARE11<XBSP> | C100: SARE11 | D100: FII Sant Ren | E100: =IF(B100="","",VLOOKUP(H100,'Base FII Guide'!$B$5:$C$40000,2,0)) -> 521681<BraNa> | F100: 521681 | G100: Santander Renda de Aluguéis Fundo de Investimento Imobiliári | H100: 32903702000171 | I100: Híbrido | J100: Santander Brasil Gestao de Recursos Ltda | K100: S3 Caceis Brasil Dtvm S A | L100: 35032 | M100: 0.00255 | N100: 364940.6821 | O100: 2024-09-17 | P100: 39.52 | Q100: 49.60663332 | R100: 0.7966676503 | S100: 2023-09-25 | T100: 448.29649 | U100: 1252.925614 | V100: 0.3577997648 | W100: 704 | X100: 2776.840637 | Y100: 0.253525532 | AA100: 0.002791169754 | AB100: 0.003981250535 | AC100: -0.02057001239 | AD100: -0.0133324934 | AE100: -0.1431632159 | AF100: -0.1537244916 | AG100: -0.01669012138 | AH100: -0.02536875587 | AI100: -0.1105032309 | AJ100: -0.2451040428 | AK100: -0.01592953616 | AL100: -0.08448489093 | AM100: -0.1846242047 | AN100: -0.3251376034 | AO100: -0.367614628 | AP100: -0.5941775949 | AQ100: -0.2942060234 | AR100: -0.4920434999 | AS100: -0.425678008 | AT100: -0.7699041846 | AW100: 0.2310919267 | AY100: 0.09135802469 | AZ100: -0.06741573034 | BA100: 0.06380563124 | BB100: -0.1202035192 | BC100: 3 | BD100: 9 | BE100: 3 | BF100: 9 | BG100: -1.063208371 | BH100: 0.02403319943 | BI100: -0.2178465377 | BJ100: 2023-09-25 | BK100: 2024-09-03 | BR100: 0.8956492698 | BS100: 0.9784261632 | BT100: 0.9843811905 | BU100: 0.708042191 | BV100: 0.6851358998 | BW100: 0.712650589 | BX100: 0.6837333018 | BY100: 0.5451456125 | BZ100: 0.4492761404 | CA100: 0.712650589 | CB100: 0.6304297609 | CC100: 0.6304297609 | CK100: 0.0723146635 | CL100: 7.00367516 | CM100: 0.1093572241 | CN100: 7.69 | CO100: 0.09918215613 | CP100: 6.67 | CQ100: 0.0819086981 | CR100: 4.36 | CS100: 0.09069068546 | CT100: 0.1093572241 | CU100: 0.0723146635
B101: SNEL11<XBSP> | C101: SNEL11 | D101: FII Suno El | E101: =IF(B101="","",VLOOKUP(H101,'Base FII Guide'!$B$5:$C$40000,2,0)) -> 686281<BraNa> | F101: 686281 | G101: Suno Energias Limpas FI Imobiliário | H101: 43741171000184 | I101: Outros | J101: - | K101: - | L101: 10848 | M101: 0.00121 | N101: 173107.3746 | O101: 2024-09-17 | P101: 9.16 | T101: 411.27789 | W101: 617 | AA101: 0.004385964914 | AB101: 0.005576045694 | AC101: 0.009947161354 | AD101: 0.01718468034 | AE101: 0.2244776832 | AF101: 0.2139164075 | AG101: -0.003098442452 | AH101: -0.01177707694 | AI101: 0.05125008028 | AJ101: -0.0833507316 | AK101: 0.01689447454 | AL101: -0.05166088024 | AY101: 0.265 | AZ101: -0.05138339921 | BA101: 0.1241149032 | BB101: -0.05922474087 | BI101: -0.1514644879 | BJ101: 2024-03-20 | BK101: 2024-04-26 | BY101: 1.206531229 | BZ101: 1.285940242 | CA101: 1.285940242 | CB101: 1 | CC101: 1
B102: SNFF11<XBSP> | C102: SNFF11 | D102: FII Sunofofi | E102: =IF(B102="","",VLOOKUP(H102,'Base FII Guide'!$B$5:$C$40000,2,0)) -> 592226<BraNa> | F102: 592226 | G102: Suno Fundo de Fundos de Investimento Imobiliário | H102: 40011225000168 | I102: TVM | J102: Suno Gestora de Recursos Ltda. | K102: BTG Pactual Servicos Financeiros SA Dtvm | L102: 29949 | M102: 0.00279 | N102: 250313.5 | O102: 2024-09-17 | P102: 88.45 | Q102: 90.15894737 | R102: 0.9810451717 | S102: 2024-09-03 | T102: 462.40298 | U102: 527.1553889 | V102: 0.8771663721 | W102: 468 | X102: 776.5099602 | Y102: 0.6026967122 | AA102: 0.004999431882 | AB102: 0.006189512662 | AC102: -0.01092941279 | AD102: -0.003691893806 | AE102: 0.120751755 | AF102: 0.1101904793 | AG102: 0.01185255017 | AH102: 0.003173915682 | AI102: 0.06310534525 | AJ102: -0.07149546663 | AK102: 0.1190637543 | AL102: 0.0505083995 | AM102: 0.08212278578 | AN102: -0.05839061299 | AO102: 0.2464347746 | AP102: 0.01987180764 | AQ102: 0.3269652734 | AR102: 0.1291277969 | AW102: 0.1365102067 | AY102: 0.03692065986 | AZ102: -0.04015784587 | BA102: 0.06317573375 | BB102: -0.03434639653 | BC102: 7 | BD102: 5 | BE102: 6 | BF102: 6 | BG102: -0.1264590569 | BH102: 0.01408908115 | BI102: -0.09872997136 | BJ102: 2023-09-18 | BK102: 2023-12-07 | BL102: 1900-05-09 | BM102: 2024-03-28 | BT102: 1.033545965 | BU102: 0.9228128655 | BV102: 0.9786089425 | BW102: 0.9935346235 | BX102: 0.9418505222 | BY102: 0.9474413073 | BZ102: 0.9905893736 | CA102: 0.9935346235 | CB102: 0.9970355841 | CC102: 0.9970355841 | CM102: 0.1057647606 | CN102: 9.1 | CO102: 0.09779395042 | CP102: 8.6 | CQ102: 0.1228202368 | CR102: 11.41 | CS102: 0.1087929826 | CT102: 0.1228202368 | CU102: 0.09779395042
B103: SNCI11<XBSP> | C103: SNCI11 | D103: FII Suno Cri | E103: =IF(B103="","",VLOOKUP(H103,'Base FII Guide'!$B$5:$C$40000,2,0)) -> 622540<BraNa> | F103: 622540 | G103: Suno Recebíveis Imobiliários Fundo de Investimento Imobiliár | H103: 41076710000182 | I103: TVM | J103: Suno Gestora de Recursos Ltda. | K103: BTG Pactual Servicos Financeiros SA Dtvm | L103: 41677 | M103: 0.00271 | N103: 389130 | O103: 2024-09-17 | P103: 92.65 | Q103: 96.61951417 | R103: 0.9589160202 | S103: 2024-09-03 | T103: 810.89969 | U103: 624.3184135 | V103: 1.298855956 | W103: 740 | X103: 646.2549801 | Y103: 1.145058874 | AA103: 0.001946577269 | AB103: 0.00313665805 | AC103: -0.0375360891 | AD103: -0.03029857011 | AE103: 0.006891371164 | AF103: -0.003669904535 | AG103: -0.02925532776 | AH103: -0.03793396225 | AI103: 0.02681274519 | AJ103: -0.1077880667 | AK103: -0.002073093665 | AL103: -0.07062844844 | AM103: 0.05057792853 | AN103: -0.08993547024 | AO103: 0.1768815011 | AP103: -0.04968146592 | AW103: 0.06878354361 | AY103: 0.01252631579 | AZ103: -0.01447916667 | BA103: 0.03152815013 | BB103: -0.0375360891 | BC103: 7 | BD103: 5 | BE103: 6 | BF103: 6 | BG103: -0.7655989663 | BH103: 0.007102984585 | BI103: -0.04294695751 | BJ103: 2024-09-03 | BK103: 2024-09-16 | BU103: 1.002838944 | BV103: 1.050512633 | BW103: 1.010927807 | BX103: 1.000952268 | BY103: 0.9905525173 | BZ103: 0.9362293856 | CA103: 1.050512633 | CB103: 0.8912119243 | CC103: 0.8912119243 | CM103: 0.1452606867 | CN103: 14.85 | CO103: 0.1254316474 | CP103: 12.35 | CQ103: 0.1264483627 | CR103: 12.55 | CS103: 0.1323802323 | CT103: 0.1452606867 | CU103: 0.1254316474
B104: TEPP11<XBSP> | C104: TEPP11 | D104: FII Tel Prop | E104: =IF(B104="","",VLOOKUP(H104,'Base FII Guide'!$B$5:$C$40000,2,0)) -> 522961<BraNa> | F104: 522961 | G104: Tellus Properties - Fundo de Investimento Imobiliário | H104: 26681370000125 | I104: Lajes Corporativas | J104: Tellus Investimentos e Consultoria Ltda | K104: Brl Dtvm | L104: 30171 | M104: 0.00258 | N104: 369422.1125 | O104: 2024-09-17 | P104: 87.5 | Q104: 92.8367412 | R104: 0.9425147724 | S104: 2024-05-07 | T104: 604.82357 | U104: 1405.621211 | V104: 0.4302891599 | W104: 2000 | X104: 1853.099602 | Y104: 1.079272802 | AA104: -0.0002285191958 | AB104: 0.0009615615845 | AC104: -0.01430663512 | AD104: -0.007069116137 | AE104: 0.03490652949 | AF104: 0.0243452538 | AG104: -0.01010608024 | AH104: -0.01878471473 | AI104: -0.01933603414 | AJ104: -0.153936846 | AK104: -0.01701116237 | AL104: -0.08556651714 | AM104: 0.07562632424 | AN104: -0.06488707453 | AO104: 0.276235522 | AP104: 0.04967255502 | AQ104: 0.5571816017 | AR104: 0.3593441253 | AS104: 0.3094027463 | AT104: -0.03482343017 | AW104: 0.1089067267 | AY104: 0.03761825264 | AZ104: -0.02268063506 | BA104: 0.05296655879 | BB104: -0.0243902439 | BC104: 5 | BD104: 7 | BE104: 6 | BF104: 6 | BG104: -0.2423255687 | BH104: 0.01128377674 | BI104: -0.05928807189 | BJ104: 2024-05-07 | BK104: 2024-08-07 | BQ104: 1.148144038 | BR104: 0.9630394769 | BS104: 0.9542679857 | BT104: 0.8297498881 | BU104: 0.8204628096 | BV104: 0.7589769301 | BW104: 0.694766688 | BX104: 0.925059633 | BY104: 0.9445456096 | BZ104: 0.8982390271 | CA104: 0.9445456096 | CB104: 0.9509747522 | CC104: 0.9509747522 | CI104: 0.0552003602 | CJ104: 6.13 | CK104: 0.06037694499 | CL104: 5.51 | CM104: 0.07899317178 | CN104: 5.9 | CO104: 0.1039097744 | CP104: 6.91 | CQ104: 0.1104490787 | CR104: 10.01 | CS104: 0.08178586601 | CT104: 0.1104490787 | CU104: 0.0552003602
B105: TVRI11<XBSP> | C105: TVRI11 | D105: FII Tivio Ri | E105: =IF(B105="","",VLOOKUP(H105,'Base FII Guide'!$B$5:$C$40000,2,0)) -> 311189<BraNa> | F105: 311189 | G105: Tivio Renda Imobiliária Fundo de Investimento Imobiliário | H105: 14410722000129 | I105: Híbrido | J105: BV Dtvm | K105: Bem Dtvm | L105: 69853 | M105: 0.01111 | N105: 1591809.803 | O105: 2024-09-17 | P105: 99.99 | Q105: 103.2041334 | R105: 0.9688565436 | S105: 2024-08-02 | T105: 1434.64898 | U105: 1237.750491 | V105: 1.15907769 | W105: 1772 | X105: 1420.74502 | Y105: 1.247232948 | AA105: 0.004924623116 | AB105: 0.006114703896 | AC105: -0.02534360074 | AD105: -0.01810608175 | AE105: 0.1120792651 | AF105: 0.1015179894 | AG105: -0.01247149999 | AH105: -0.02115013448 | AI105: 0.01117610855 | AJ105: -0.1234247033 | AK105: -0.0131102095 | AL105: -0.08166556427 | AM105: 0.1743494532 | AN105: 0.0338360544 | AO105: 0.3890405396 | AP105: 0.1624775726 | AQ105: 0.408126232 | AR105: 0.2102887556 | AS105: 0.1370030223 | AT105: -0.2072231543 | AU105: 0.1464990038 | AV105: -0.1528091577 | AW105: 0.1330263166 | AY105: 0.0393258427 | AZ105: -0.03433024431 | BA105: 0.08026410812 | BB105: -0.03390714658 | BC105: 8 | BD105: 4 | BE105: 7 | BF105: 5 | BG105: 0.498381284 | BH105: 0.01376655807 | BI105: -0.09922411459 | BJ105: 2023-09-21 | BK105: 2023-10-09 | BL105: 1900-02-22 | BM105: 2023-12-08 | BO105: 1.346337519 | BP105: 1.409060062 | BQ105: 1.668064462 | BR105: 1.619539793 | BS105: 1.218637398 | BT105: 1.196925753 | BU105: 0.979086297 | BV105: 0.801644157 | BW105: 0.8415150035 | BX105: 0.9919577243 | BY105: 0.9773900998 | BZ105: 0.984910423 | CA105: 0.9919577243 | CB105: 0.9928955628 | CC105: 0.9928955628 | CE105: 0.0855828194 | CF105: 12.2168684 | CG105: 0.08952153757 | CH105: 12.4305248 | CI105: 0.07501056833 | CJ105: 12.7924604 | CK105: 0.09799647963 | CL105: 12.0386392 | CM105: 0.1155403965 | CN105: 10.84 | CO105: 0.1281626862 | CP105: 10.84 | CQ105: 0.1196392996 | CR105: 11.41 | CS105: 0.1016362553 | CT105: 0.1281626862 | CU105: 0.07501056833
B106: TRXF11<XBSP> | C106: TRXF11 | D106: FII Trx Real | E106: =IF(B106="","",VLOOKUP(H106,'Base FII Guide'!$B$5:$C$40000,2,0)) -> 517811<BraNa> | F106: 517811 | G106: Trx Real Estate Fundo de Investimento Imobiliário - FII | H106: 28548288000152 | I106: Híbrido | J106: Trx Gestora de Recursos | K106: Brl Dtvm | L106: 180932 | M106: 0.01468 | N106: 2103734.115 | O106: 2024-09-17 | P106: 105 | Q106: 107.5654532 | R106: 0.9761498406 | S106: 2024-02-27 | T106: 6603.1015 | U106: 8460.0519 | V106: 0.7805036633 | W106: 5568 | X106: 6752.414343 | Y106: 0.8245939478 | AA106: -0.001806255347 | AB106: -0.0006161745669 | AC106: -0.002185688491 | AD106: 0.005051830495 | AE106: 0.02388316094 | AF106: 0.01332188524 | AG106: -0.000679553682 | AH106: -0.009358188171 | AI106: 0.02287559957 | AJ106: -0.1117252123 | AK106: -0.002286464138 | AL106: -0.07084181891 | AM106: 0.0452260919 | AN106: -0.09528730687 | AO106: 0.1827801096 | AP106: -0.04378285739 | AQ106: 0.4229477084 | AR106: 0.2251102319 | AS106: 0.5525726057 | AT106: 0.2083464292 | AW106: 0.05684340706 | AY106: 0.01606176236 | AZ106: -0.01969286359 | BA106: 0.03644963829 | BB106: -0.03200537017 | BC106: 6 | BD106: 6 | BE106: 6 | BF106: 6 | BG106: -1.024461176 | BH106: 0.005867057581 | BI106: -0.05372991277 | BJ106: 2024-02-27 | BK106: 2024-06-24 | BR106: 1.042569765 | BS106: 0.9393700014 | BT106: 0.9735813438 | BU106: 0.9837607379 | BV106: 1.002868487 | BW106: 0.9857551513 | BX106: 1.051587356 | BY106: 1.022640899 | BZ106: 0.9765761912 | CA106: 1.051587356 | CB106: 0.9286686316 | CC106: 0.9286686316 | CK106: 0.09179841897 | CL106: 9.29 | CM106: 0.1012266879 | CN106: 10.15 | CO106: 0.1043771044 | CP106: 10.85 | CQ106: 0.1049591184 | CR106: 11.81 | CS106: 0.1005903324 | CT106: 0.1049591184 | CU106: 0.09179841897
B107: URPR11<XBSP> | C107: URPR11 | D107: FII Urca Ren | E107: =IF(B107="","",VLOOKUP(H107,'Base FII Guide'!$B$5:$C$40000,2,0)) -> 529516<BraNa> | F107: 529516 | G107: Urca Prime Renda Fundo de Investimento Imobiliário - FII | H107: 34508872000187 | I107: TVM | J107: Urca Gestao de Recursos Ltda | K107: Vortx Dtvm Ltda | L107: 85163 | M107: 0.00663 | N107: 950093.4781 | O107: 2024-09-17 | P107: 80.97 | Q107: 83.55239964 | R107: 0.9690924539 | S107: 2024-03-28 | T107: 1396.07372 | U107: 1963.51531 | V107: 0.7110073004 | W107: 1202 | X107: 2391.322709 | Y107: 0.5026506859 | AA107: 0.001484230055 | AB107: 0.002674310835 | AC107: -0.01087222087 | AD107: -0.003634701878 | AE107: 0.03249343636 | AF107: 0.02193216066 | AG107: -0.005229666475 | AH107: -0.01390830096 | AI107: 0.007159549956 | AJ107: -0.1274412619 | AK107: -0.01009408315 | AL107: -0.07864943792 | AM107: -0.003871868064 | AN107: -0.1443852668 | AO107: 0.06322272949 | AP107: -0.1633402375 | AQ107: 0.1448596171 | AR107: -0.05297785936 | AS107: 0.9675524126 | AT107: 0.6233262361 | AW107: 0.09935181747 | AY107: 0.0179016542 | AZ107: -0.04835658548 | BA107: 0.05052607238 | BB107: -0.04115922418 | BC107: 7 | BD107: 5 | BE107: 6 | BF107: 6 | BG107: -1.009111637 | BH107: 0.0101991026 | BI107: -0.12785885 | BJ107: 2023-09-18 | BK107: 2023-11-07 | BL107: 1900-03-16 | BM107: 2024-01-10 | BS107: 1.301068901 | BT107: 1.283376394 | BU107: 1.191190881 | BV107: 1.122377962 | BW107: 1.010977729 | BX107: 0.9802700828 | BY107: 0.832792436 | BZ107: 0.7915127402 | CA107: 1.122377962 | CB107: 0.7052105144 | CC107: 0.7052105144 | CK107: 0.1828703347 | CL107: 23.764 | CM107: 0.1640721196 | CN107: 18.655 | CO107: 0.1483631995 | CP107: 14.82 | CQ107: 0.1376205106 | CR107: 12.99 | CS107: 0.1582315411 | CT107: 0.1828703347 | CU107: 0.1376205106
B108: VGIR11<XBSP> | C108: VGIR11 | D108: FII Valrelll | E108: =IF(B108="","",VLOOKUP(H108,'Base FII Guide'!$B$5:$C$40000,2,0)) -> 473413<BraNa> | F108: 473413 | G108: Valora Cri CDI Fundo de Investimento Imobiliario - FII | H108: 29852732000191 | I108: Não se aplica | J108: Valora Renda Fixa Ltda | K108: BTG Pactual Servicos Financeiros SA Dtvm | L108: 252065 | M108: 0.01079 | N108: 1447863.754 | O108: 2024-09-17 | P108: 9.91 | Q108: 10.0582983 | R108: 0.9852561245 | S108: 2024-09-02 | T108: 8447.82475 | U108: 4044.241002 | V108: 2.08885295 | W108: 64283 | X108: 20210.00797 | Y108: 3.180750849 | AA108: -0.009 | AB108: -0.00780991922 | AC108: -0.007908600152 | AD108: -0.0006710811649 | AE108: 0.1135076674 | AF108: 0.1029463917 | AG108: 0.01729697403 | AH108: 0.008618339543 | AI108: 0.03706847344 | AJ108: -0.09753233844 | AK108: 0.08750673207 | AL108: 0.0189513773 | AM108: 0.174284501 | AN108: 0.03377110227 | AO108: 0.3477913989 | AP108: 0.1212284319 | AQ108: 0.5780980932 | AR108: 0.3802606167 | AS108: 0.9054805301 | AT108: 0.5612543535 | AU108: 0.7165429149 | AV108: 0.4172347534 | AW108: 0.08520676011 | AY108: 0.02092050209 | AZ108: -0.02797202797 | BA108: 0.03396177443 | BB108: -0.007908600152 | BC108: 7 | BD108: 5 | BE108: 9 | BF108: 3 | BG108: 0.7141063191 | BH108: 0.008792541904 | BI108: -0.04495504496 | BJ108: 2023-11-27 | BK108: 2023-12-01 | BL108: 1900-01-27 | BM108: 2024-01-08 | BO108: 1.026341819 | BP108: 1.079261484 | BQ108: 1.253411973 | BR108: 0.8994814328 | BS108: 0.8876413745 | BT108: 0.9225417539 | BU108: 1.008170871 | BV108: 1.015255009 | BW108: 1.021850061 | BX108: 0.9857519536 | BY108: 1.020523959 | BZ108: 1.020051132 | CA108: 1.021850061 | CB108: 0.9982395368 | CC108: 0.9982395368 | CG108: 0.09081329822 | CH108: 0.9081329822 | CI108: 0.04850326209 | CJ108: 0.5901391899 | CK108: 0.08102662979 | CL108: 0.6981254423 | CM108: 0.1480243161 | CN108: 1.461 | CO108: 0.1472081218 | CP108: 1.45 | CQ108: 0.1344364012 | CR108: 1.3 | CS108: 0.1083353382 | CT108: 0.1480243161 | CU108: 0.04850326209
B109: VGIP11<XBSP> | C109: VGIP11 | D109: FII Valoraip | E109: =IF(B109="","",VLOOKUP(H109,'Base FII Guide'!$B$5:$C$40000,2,0)) -> 532071<BraNa> | F109: 532071 | G109: Valora Cri Índice de Preço Fundo de Investimento Imobiliário | H109: 34197811000146 | I109: TVM | J109: Valora Renda Fixa Ltda | K109: BTG Pactual Servicos Financeiros SA Dtvm | L109: 89991 | M109: 0.00712 | N109: 1019832.61 | O109: 2024-09-17 | P109: 86.52 | Q109: 89.19303744 | R109: 0.9700308733 | S109: 2024-08-08 | T109: 1697.31032 | U109: 2008.127721 | V109: 0.8452203025 | W109: 8014 | X109: 4200.175299 | Y109: 1.908015602 | AA109: -0.003225806452 | AB109: -0.002035725672 | AC109: -0.01234241166 | AD109: -0.005104892675 | AE109: 0.06977765712 | AF109: 0.05921638142 | AG109: -0.01256553548 | AH109: -0.02124416997 | AI109: 0.008087329928 | AJ109: -0.126513482 | AK109: 0.004164948725 | AL109: -0.06439040605 | AM109: 0.05813716701 | AN109: -0.08237623176 | AO109: 0.1935661009 | AP109: -0.03299686606 | AQ109: 0.2903556945 | AR109: 0.09251821808 | AS109: 0.5672591612 | AT109: 0.2230329847 | AW109: 0.1322923788 | AY109: 0.0422357397 | AZ109: -0.02926412475 | BA109: 0.0360073119 | BB109: -0.01862739516 | BC109: 9 | BD109: 3 | BE109: 6 | BF109: 6 | BG109: -0.298546118 | BH109: 0.01371841105 | BI109: -0.06545726456 | BJ109: 2023-10-03 | BK109: 2023-11-27 | BL109: 1900-02-28 | BM109: 2024-01-02 | BR109: 1.03058185 | BS109: 1.156532836 | BT109: 1.047146773 | BU109: 1.060372124 | BV109: 1.068213946 | BW109: 0.9499231182 | BX109: 0.9637016004 | BY109: 0.9413078919 | BZ109: 0.9428542125 | CA109: 1.068213946 | CB109: 0.8826454813 | CC109: 0.8826454813 | CK109: 0.125135722 | CL109: 13.83 | CM109: 0.1329735034 | CN109: 13.55 | CO109: 0.1241997439 | CP109: 10.67 | CQ109: 0.1102611736 | CR109: 10.09 | CS109: 0.1231425358 | CT109: 0.1329735034 | CU109: 0.1102611736
B110: VGHF11<XBSP> | C110: VGHF11 | D110: FII Valor He | E110: =IF(B110="","",VLOOKUP(H110,'Base FII Guide'!$B$5:$C$40000,2,0)) -> 588350<BraNa> | F110: 588350 | G110: Valora Hedge Fund Fundo de Investimento Imobiliário - FII | H110: 36771692000119 | I110: TVM | J110: Valora Renda Fixa Ltda | K110: Daycoval | L110: 1 | M110: 0.01013 | N110: 1451198.027 | O110: 2024-09-17 | P110: 8.81 | Q110: 8.978823925 | R110: 0.9811975459 | S110: 2024-01-26 | T110: 2635.32976 | U110: 4135.192287 | V110: 0.6372931601 | W110: 12250 | X110: 18821.05976 | Y110: 0.6508666438 | AA110: 0 | AB110: 0.00119008078 | AC110: -0.008998875141 | AD110: -0.001761356154 | AE110: 0.009202126974 | AF110: -0.001359148725 | AG110: 0.01012373453 | AH110: 0.001445100044 | AI110: 0.03078593743 | AJ110: -0.1038148745 | AK110: 0.007094930184 | AL110: -0.06146042459 | AM110: 0.04620967182 | AN110: -0.09430372695 | AO110: 0.1700961215 | AP110: -0.0564668455 | AQ110: 0.4019546433 | AR110: 0.2041171669 | AW110: 0.100129033 | AY110: 0.03424657534 | AZ110: -0.02234042553 | BA110: 0.0425299891 | BB110: -0.04680851064 | BC110: 6 | BD110: 6 | BE110: 7 | BF110: 5 | BG110: -0.5391785629 | BH110: 0.01036177203 | BI110: -0.08624588277 | BJ110: 2024-01-26 | BK110: 2024-04-23 | BT110: 1.00232821 | BU110: 1.037672882 | BV110: 1.085785229 | BW110: 1.016662946 | BX110: 1.015924634 | BY110: 1.011623782 | BZ110: 0.9810139832 | CA110: 1.085785229 | CB110: 0.9035064739 | CC110: 0.9035064739 | CM110: 0.1588594705 | CN110: 1.56 | CO110: 0.1385606874 | CP110: 1.29 | CQ110: 0.1196222455 | CR110: 1.14 | CS110: 0.1390141345 | CT110: 0.1588594705 | CU110: 0.1196222455
B111: LVBI11<XBSP> | C111: LVBI11 | D111: FII Vbi Log | E111: =IF(B111="","",VLOOKUP(H111,'Base FII Guide'!$B$5:$C$40000,2,0)) -> 491438<BraNa> | F111: 491438 | G111: Fundo de Investimento Imobiliário - Vbi Logístico | H111: 30629603000118 | I111: Logistica | J111: Vbi Real Estate Gestao de Carteiras Ltda | K111: BTG Pactual Servicos Financeiros SA Dtvm | L111: 130206 | M111: 0.01239 | N111: 1776265.863 | O111: 2024-09-17 | P111: 110.2 | Q111: 115.1298366 | R111: 0.9571802001 | S111: 2024-06-07 | T111: 4696.47255 | U111: 4196.240113 | V111: 1.119209679 | W111: 5588 | X111: 7759.525896 | Y111: 0.7201470908 | AA111: 0.0008173644528 | AB111: 0.002007445233 | AC111: -0.004426777486 | AD111: 0.0028107415 | AE111: 0.00554181135 | AF111: -0.005019464349 | AG111: -0.02049007318 | AH111: -0.02916870767 | AI111: 0.02098644173 | AJ111: -0.1136143701 | AK111: -0.02731963405 | AL111: -0.09587498883 | AM111: 0.02686032454 | AN111: -0.1136530742 | AO111: 0.1836608546 | AP111: -0.04290211241 | AQ111: 0.3976942627 | AR111: 0.1998567863 | AS111: 0.2496775911 | AT111: -0.09454858547 | AU111: 0.4722253805 | AV111: 0.1729172191 | AW111: 0.1254510069 | AY111: 0.03044727861 | AZ111: -0.0255599711 | BA111: 0.04643110795 | BB111: -0.03107638889 | BC111: 5 | BD111: 7 | BE111: 7 | BF111: 5 | BG111: -0.5490567836 | BH111: 0.01298139668 | BI111: -0.09274408829 | BJ111: 2024-06-07 | BK111: 2024-07-03 | BO111: 1.072230832 | BP111: 1.071497896 | BQ111: 1.297675572 | BR111: 1.137313676 | BS111: 1.0822947 | BT111: 0.9231916534 | BU111: 0.8917215129 | BV111: 0.8522995191 | BW111: 0.8855530046 | BX111: 1.015873565 | BY111: 1.013248061 | BZ111: 0.8842632757 | CA111: 1.015873565 | CB111: 0.8704461914 | CC111: 0.8704461914 | CG111: 0.06799255294 | CH111: 7.122219921 | CI111: 0.05332068924 | CJ111: 7.116712393 | CK111: 0.05822529918 | CL111: 6.952100722 | CM111: 0.08609920517 | CN111: 8.814836625 | CO111: 0.0920023465 | CP111: 9.41 | CQ111: 0.09161016949 | CR111: 10.81 | CS111: 0.07487504375 | CT111: 0.0920023465 | CU111: 0.05332068924
B112: RVBI11<XBSP> | C112: RVBI11 | D112: FII Vbi Reit | E112: =IF(B112="","",VLOOKUP(H112,'Base FII Guide'!$B$5:$C$40000,2,0)) -> 532061<BraNa> | F112: 532061 | G112: Vbi Reits Multiestratégia Fundo de Investimento Imobiliário | H112: 35507457000171 | I112: TVM | J112: - | K112: - | L112: 42739 | M112: 0.0052 | N112: 745216.3902 | O112: 2024-09-17 | P112: 72.52 | Q112: 82.90966343 | R112: 0.8746869424 | S112: 2024-03-05 | T112: 902.9019 | U112: 1215.489182 | V112: 0.7428300582 | W112: 1045 | X112: 1744.131474 | Y112: 0.5991520797 | AA112: -0.006575342465 | AB112: -0.005385261685 | AC112: -0.01272915152 | AD112: -0.00549163253 | AE112: -0.047746187 | AF112: -0.0583074627 | AG112: -0.01538310541 | AH112: -0.0240617399 | AI112: 0.02017698121 | AJ112: -0.1144238307 | AK112: -0.1129044088 | AL112: -0.1814597635 | AM112: -0.02312649413 | AN112: -0.1636398929 | AO112: 0.1366774282 | AP112: -0.08988553877 | AQ112: 0.1037081791 | AR112: -0.09412929739 | AS112: 0.2293110474 | AT112: -0.1149151291 | AW112: 0.157893674 | AY112: 0.03348994097 | AZ112: -0.073798627 | BA112: 0.03326071027 | BB112: -0.03728068385 | BC112: 5 | BD112: 7 | BE112: 5 | BF112: 7 | BG112: -0.7058537218 | BH112: 0.01617381034 | BI112: -0.1547807107 | BJ112: 2024-03-05 | BK112: 2024-06-25 | BR112: 0.8532823801 | BS112: 0.9774000082 | BT112: 0.9569136728 | BU112: 0.9482107447 | BV112: 0.8677527009 | BW112: 0.8649034117 | BX112: 0.9352343679 | BY112: 0.9639584948 | BZ112: 0.883903504 | CA112: 0.9639584948 | CB112: 0.9169518282 | CC112: 0.9169518282 | CK112: 0.0931696905 | CL112: 8.73 | CM112: 0.1071301035 | CN112: 9 | CO112: 0.1224714463 | CP112: 8.9 | CQ112: 0.1071514568 | CR112: 8.9 | CS112: 0.1074806743 | CT112: 0.1224714463 | CU112: 0.0931696905
B113: VCJR11<XBSP> | C113: VCJR11 | D113: FII Vectis | E113: =IF(B113="","",VLOOKUP(H113,'Base FII Guide'!$B$5:$C$40000,2,0)) -> 589934<BraNa> | F113: 589934 | G113: Vectis Juros Real Fundo de Investimento Imobiliário - FII | H113: 32400250000105 | I113: TVM | J113: Vectis Gestao de Recursos Ltda. | K113: Intrag | L113: 34280 | M113: 0.0093 | N113: 1332519.285 | O113: 2024-09-17 | P113: 90.5 | Q113: 92.94 | R113: 0.9737465031 | S113: 2024-09-09 | T113: 1257.68067 | U113: 2149.314209 | V113: 0.5851544017 | W113: 1575 | X113: 4098.649402 | Y113: 0.3842729264 | AA113: -0.002974551064 | AB113: -0.001784470283 | AC113: -0.01308615049 | AD113: -0.005848631503 | AE113: 0.052313791 | AF113: 0.04175251531 | AG113: -0.009230181467 | AH113: -0.01790881596 | AI113: 0.01960980252 | AJ113: -0.1149910094 | AK113: 0.02360401106 | AL113: -0.04495134371 | AM113: 0.1170638394 | AN113: -0.02344955938 | AO113: 0.2650008727 | AP113: 0.03843790571 | AQ113: 0.40980175 | AR113: 0.2119642735 | AS113: 0.4588194689 | AT113: 0.1145932923 | AW113: 0.1116726235 | AY113: 0.02463605823 | AZ113: -0.02647527911 | BA113: 0.0621691632 | BB113: -0.01308615049 | BC113: 7 | BD113: 5 | BE113: 6 | BF113: 6 | BG113: 0.1030450296 | BH113: 0.01153647851 | BI113: -0.05549181183 | BJ113: 2024-04-12 | BK113: 2024-04-26 | BL113: 1900-03-28 | BM113: 2024-08-16 | BR113: 0.9905476656 | BS113: 1.034912051 | BT113: 0.9592975738 | BU113: 1.01952423 | BV113: 1.076341815 | BW113: 0.9496815912 | BX113: 0.9415726413 | BY113: 0.9583464317 | BZ113: 0.9467010047 | CA113: 1.076341815 | CB113: 0.879554238 | CC113: 0.879554238 | CK113: 0.1085981487 | CL113: 11.38 | CM113: 0.1240246407 | CN113: 12.08 | CO113: 0.1243436487 | CP113: 11.13 | CQ113: 0.1196093493 | CR113: 10.9 | CS113: 0.1191439468 | CT113: 0.1243436487 | CU113: 0.1085981487
B114: VSLH11<XBSP> | C114: VSLH11 | D114: FII Vers Cri | E114: =IF(B114="","",VLOOKUP(H114,'Base FII Guide'!$B$5:$C$40000,2,0)) -> 576603<BraNa> | F114: 576603 | G114: Versalhes Recebiveis Imobiliarios - FI Imobiliario | H114: 36244015000142 | I114: TVM | J114: R Capital Asset Management Investimentos | K114: Vortx Dtvm Ltda | L114: 80412 | M114: 0.00073 | N114: 104822.9594 | O114: 2024-09-17 | P114: 3.51 | Q114: 3.924173091 | R114: 0.8944559575 | S114: 2023-11-20 | T114: 159.37718 | U114: 222.4363902 | V114: 0.7165067725 | W114: 1142 | X114: 1791.840637 | Y114: 0.6373334638 | AA114: -0.002840909092 | AB114: -0.001650828312 | AC114: -0.01064464783 | AD114: -0.003407128845 | AE114: -0.05832985299 | AF114: -0.06889112869 | AG114: 0.04464285714 | AH114: 0.03596422265 | AI114: 0.1230177378 | AJ114: -0.01158307409 | AK114: 0.03408454035 | AL114: -0.03447081443 | AM114: 0.3378523717 | AN114: 0.197338973 | AO114: -0.5106013149 | AP114: -0.7371642819 | AQ114: -0.4817440676 | AR114: -0.6795815441 | AW114: 0.2860756144 | AY114: 0.0977443609 | AZ114: -0.06703910615 | BA114: 0.2157141014 | BB114: -0.0727665706 | BC114: 6 | BD114: 6 | BE114: 6 | BF114: 6 | BG114: 0.8835530376 | BH114: 0.02988325705 | BI114: -0.2207324405 | BJ114: 2023-11-20 | BK114: 2024-06-19 | BT114: 1.072348588 | BU114: 0.979187773 | BV114: 0.878467703 | BW114: 0.8748202337 | BX114: 0.4884551319 | BY114: 0.3841470276 | BZ114: 0.3234064117 | CA114: 0.878467703 | CB114: 0.368148323 | CC114: 0.368148323 | CM114: 0.1398550725 | CN114: 1.351 | CO114: 0.05830583058 | CP114: 0.53 | CQ114: 0.1571906355 | CR114: 0.47 | CS114: 0.1184505128 | CT114: 0.1571906355 | CU114: 0.05830583058
B115: VIUR11<XBSP> | C115: VIUR11 | D115: FII Vinci Ub | E115: =IF(B115="","",VLOOKUP(H115,'Base FII Guide'!$B$5:$C$40000,2,0)) -> 599182<BraNa> | F115: 599182 | G115: Vinci Imoveis Urbanos Fundo de Investimento Imobiliario | H115: 36445587000190 | I115: Outros | J115: Vinci Real State Gestora de Rec Ltda | K115: Brl Dtvm | L115: 50453 | M115: 0.00121 | N115: 173803.119 | O115: 2024-09-17 | P115: 6.45 | Q115: 7.494164403 | R115: 0.8606696695 | S115: 2024-02-15 | T115: 534.82651 | U115: 391.1106108 | V115: 1.367455894 | W115: 2604 | X115: 2201.294821 | Y115: 1.182940138 | AA115: -0.01376146789 | AB115: -0.01257138711 | AC115: 0.001086450411 | AD115: 0.008323969398 | AE115: -0.1212519662 | AF115: -0.1318132419 | AG115: 0.01039888251 | AH115: 0.001720248019 | AI115: 0.08847950418 | AJ115: -0.0461213077 | AK115: -0.0266149485 | AL115: -0.09517030328 | AM115: -0.12771379 | AN115: -0.2682271888 | AO115: -0.01930685494 | AP115: -0.2458698219 | AQ115: 0.08397389278 | AR115: -0.1138635837 | AW115: 0.1559156685 | AY115: 0.03599374022 | AZ115: -0.05160390516 | BA115: 0.03057581872 | BB115: -0.08734052993 | BC115: 7 | BD115: 5 | BE115: 4 | BF115: 8 | BG115: -1.326670455 | BH115: 0.01606682693 | BI115: -0.2092918 | BJ115: 2024-02-07 | BK115: 2024-06-17 | BT115: 0.9420968343 | BU115: 0.7985437363 | BV115: 0.756981281 | BW115: 0.8527950276 | BX115: 0.9240840793 | BY115: 0.8850490372 | BZ115: 0.7317327482 | CA115: 0.9240840793 | CB115: 0.7918465046 | CC115: 0.7918465046 | CM115: 0.1113986285 | CN115: 0.861 | CO115: 0.1100917431 | CP115: 0.864 | CQ115: 0.1001207729 | CR115: 0.829 | CS115: 0.1072037149 | CT115: 0.1113986285 | CU115: 0.1001207729
B116: VINO11<XBSP> | C116: VINO11 | D116: FII Vinc Cor | E116: =IF(B116="","",VLOOKUP(H116,'Base FII Guide'!$B$5:$C$40000,2,0)) -> 356395<BraNa> | F116: 356395 | G116: Vinci Offices Fundo de Investimento Imobiliário | H116: 12516185000170 | I116: Híbrido | J116: Vinci Real State Gestora de Rec Ltda | K116: Brl Dtvm | L116: 153812 | M116: 0.00321 | N116: 460514.2002 | O116: 2024-09-17 | P116: 5.56 | Q116: 8.119638039 | R116: 0.6847595882 | S116: 2023-09-20 | T116: 1113.03745 | U116: 1073.053088 | V116: 1.03726224 | W116: 3225 | X116: 4608.358566 | Y116: 0.6998153364 | AA116: -0.01418439716 | AB116: -0.01299431638 | AC116: -0.08552631579 | AD116: -0.0782887968 | AE116: -0.2183468265 | AF116: -0.2289081022 | AG116: -0.07036091473 | AH116: -0.07903954922 | AI116: -0.2024720754 | AJ116: -0.3370728873 | AK116: -0.2118237808 | AL116: -0.2803791356 | AM116: -0.3137016262 | AN116: -0.454215025 | AO116: -0.3314753622 | AP116: -0.5580383291 | AQ116: -0.3791655142 | AR116: -0.5770029907 | AS116: -0.3209081212 | AT116: -0.6651342977 | AW116: 0.2419369492 | AY116: 0.06833114323 | AZ116: -0.05604719764 | BA116: 0.05355932203 | BB116: -0.1123919308 | BC116: 6 | BD116: 6 | BE116: 5 | BF116: 7 | BG116: -1.508877266 | BH116: 0.0250187404 | BI116: -0.3152404118 | BJ116: 2023-09-20 | BK116: 2024-09-17 | BQ116: 1.162997658 | BR116: 0.974293928 | BS116: 1.030145471 | BT116: 0.9969858886 | BU116: 1.018545822 | BV116: 0.817201121 | BW116: 0.8632510386 | BX116: 0.8643616229 | BY116: 0.6994340113 | BZ116: 0.5189936302 | CA116: 0.8643616229 | CB116: 0.6004357626 | CC116: 0.6004357626 | CI116: 0.06075418994 | CJ116: 0.87 | CK116: 0.0939041859 | CL116: 1.18 | CM116: 0.07544483986 | CN116: 0.848 | CO116: 0.07829030893 | CP116: 0.74 | CQ116: 0.07786516854 | CR116: 0.693 | CS116: 0.07725173863 | CT116: 0.0939041859 | CU116: 0.06075418994
B117: VISC11<XBSP> | C117: VISC11 | D117: FII Vinci Sc | E117: =IF(B117="","",VLOOKUP(H117,'Base FII Guide'!$B$5:$C$40000,2,0)) -> 380555<BraNa> | F117: 380555 | G117: Vinci Shopping Centers Fundo de Investimento Imobiliário - F | H117: 17554274000125 | I117: Híbrido | J117: Vinci Real State Gestora de Rec Ltda | K117: Brl Dtvm | L117: 353755 | M117: 0.02186 | N117: 3132808.309 | O117: 2024-09-17 | P117: 108.67 | Q117: 118.3237928 | R117: 0.9184120744 | S117: 2024-05-20 | T117: 4166.45076 | U117: 7874.918001 | V117: 0.5290786214 | W117: 11214 | X117: 11594.09163 | Y117: 0.967216782 | AA117: -0.002295262578 | AB117: -0.001105181797 | AC117: -0.029038599 | AD117: -0.02180108001 | AE117: -0.05714800051 | AF117: -0.06770927621 | AG117: -0.03075787549 | AH117: -0.03943650998 | AI117: -0.03156571751 | AJ117: -0.1661665294 | AK117: -0.06443291 | AL117: -0.1329882648 | AM117: -0.04275527712 | AN117: -0.1832686759 | AO117: 0.1926442191 | AP117: -0.03391874791 | AQ117: 0.3928951511 | AR117: 0.1950576747 | AS117: 0.3015697049 | AT117: -0.04265647159 | AU117: 0.3317584679 | AV117: 0.03245030652 | AW117: 0.1077958267 | AY117: 0.02495253594 | AZ117: -0.05316017316 | BA117: 0.04985163205 | BB117: -0.03779358253 | BC117: 6 | BD117: 6 | BE117: 5 | BF117: 7 | BG117: -1.252819014 | BH117: 0.01106530814 | BI117: -0.08946742183 | BJ117: 2024-05-20 | BK117: 2024-07-01 | BO117: 1.062460299 | BP117: 1.060867393 | BQ117: 1.144413306 | BR117: 0.8501829792 | BS117: 0.9658708372 | BT117: 0.8952459689 | BU117: 0.8857854719 | BV117: 0.8794161461 | BW117: 0.8509517875 | BX117: 1.038560808 | BY117: 0.9186622994 | BZ117: 0.8575426836 | CA117: 1.038560808 | CB117: 0.8257029119 | CC117: 0.8257029119 | CE117: 0.07073694391 | CF117: 7.3142 | CG117: 0.07231940169 | CH117: 7.7668 | CI117: 0.03149067876 | CJ117: 4.375 | CK117: 0.05000434065 | CL117: 5.76 | CM117: 0.08405571248 | CN117: 8.63 | CO117: 0.09936414539 | CP117: 10.47 | CQ117: 0.09135881274 | CR117: 11.45 | CS117: 0.07133286223 | CT117: 0.09936414539 | CU117: 0.03149067876
B118: WHGR11<XBSP> | C118: WHGR11 | D118: FII Whg Real | E118: =IF(B118="","",VLOOKUP(H118,'Base FII Guide'!$B$5:$C$40000,2,0)) -> 630764<BraNa> | F118: 630764 | G118: Whg Real Estate Fundo de Investimento Imobiliário FII | H118: 41256643000188 | I118: Híbrido | J118: Wealth High Governance Asset Manag Ltda | K118: Xp Investimentos Cctvm | L118: 12990 | M118: 0.00204 | N118: 292740.2291 | O118: 2024-09-17 | P118: 9.47 | Q118: 9.69 | R118: 0.9772961816 | S118: 2024-09-09 | T118: 341.70891 | U118: 566.0474494 | V118: 0.6036753816 | W118: 423 | X118: 3857.115538 | Y118: 0.1096674434 | AA118: -0.009414225941 | AB118: -0.008224145161 | AC118: -0.02068252327 | AD118: -0.01344500428 | AE118: 0.05894199173 | AF118: 0.04838071603 | AG118: -0.02068252327 | AH118: -0.02936115776 | AI118: 0.01896589205 | AJ118: -0.1156349198 | AK118: 0.02690769372 | AL118: -0.04164766106 | AM118: 0.0991807285 | AN118: -0.04133267026 | AO118: 0.2813127607 | AP118: 0.05474979369 | AW118: 0.09829915734 | AY118: 0.02308499475 | AZ118: -0.01836734694 | BA118: 0.03419689119 | BB118: -0.02068252327 | BC118: 9 | BD118: 3 | BE118: 9 | BF118: 3 | BG118: -0.06253958857 | BH118: 0.01016267204 | BI118: -0.0338484254 | BJ118: 2024-01-25 | BK118: 2024-02-26 | BL118: 1900-02-09 | BM118: 2024-03-25 | BV118: 1.016269521 | BW118: 0.8587222169 | BX118: 0.914350709 | BY118: 0.9734334752 | BZ118: 0.9774533545 | CA118: 1.016269521 | CB118: 0.9618052443 | CC118: 0.9618052443 | CO118: 0.141025641 | CP118: 1.21 | CQ118: 0.1226899384 | CR118: 1.195 | CS118: 0.1318577897 | CT118: 0.141025641 | CU118: 0.1226899384
B119: XPCI11<XBSP> | C119: XPCI11 | D119: FII Xp Cred | E119: =IF(B119="","",VLOOKUP(H119,'Base FII Guide'!$B$5:$C$40000,2,0)) -> 509159<BraNa> | F119: 509159 | G119: Xp Crédito Imobiliário - Fundo de Investimento Imobiliário | H119: 28516301000191 | I119: TVM | J119: Xp Vista Asset Management Ltda | K119: Xp Investimentos Cctvm | L119: 79104 | M119: 0.0053 | N119: 759645.4896 | O119: 2024-09-17 | P119: 87.3 | Q119: 87.5 | R119: 0.9977142857 | S119: 2024-09-13 | T119: 1819.93286 | U119: 1952.597155 | V119: 0.9320575191 | W119: 8700 | X119: 5448.784861 | Y119: 1.596686275 | AA119: -0.0001145344177 | AB119: 0.001075546363 | AC119: 0.002181150268 | AD119: 0.009418669255 | AE119: 0.09886984353 | AF119: 0.08830856783 | AG119: 0.00481004699 | AH119: -0.003868587499 | AI119: 0.05484806344 | AJ119: -0.07975274844 | AK119: 0.03196136351 | AL119: -0.03659399127 | AM119: 0.1095102806 | AN119: -0.03100311815 | AO119: 0.2262968274 | AP119: -0.00026613959 | AQ119: 0.318410313 | AR119: 0.1205728366 | AS119: 0.5942983464 | AT119: 0.2500721699 | AW119: 0.1057388468 | AY119: 0.02372685185 | AZ119: -0.02012592759 | BA119: 0.03693601545 | BB119: -0.01593978304 | BC119: 9 | BD119: 3 | BE119: 7 | BF119: 5 | BG119: 0.03771499418 | BH119: 0.01092616547 | BI119: -0.04278396951 | BJ119: 2023-11-16 | BK119: 2023-12-13 | BL119: 1900-01-26 | BM119: 2023-12-22 | BQ119: 1.074390974 | BR119: 0.9207662306 | BS119: 0.9364545976 | BT119: 1.040697249 | BU119: 1.007332357 | BV119: 0.9702381356 | BW119: 0.8773707543 | BX119: 0.9273253779 | BY119: 0.920641295 | BZ119: 0.9592746491 | CA119: 0.9702381356 | CB119: 0.9887002108 | CC119: 0.9887002108 | CI119: 0.06919814958 | CJ119: 7.18 | CK119: 0.1189412918 | CL119: 10.92 | CM119: 0.1239565943 | CN119: 11.88 | CO119: 0.1357825493 | CP119: 10.94 | CQ119: 0.1193693694 | CR119: 10.6 | CS119: 0.1134495909 | CT119: 0.1357825493 | CU119: 0.06919814958
B120: XPIN11<XBSP> | C120: XPIN11 | D120: FII Xp Indl | E120: =IF(B120="","",VLOOKUP(H120,'Base FII Guide'!$B$5:$C$40000,2,0)) -> 479802<BraNa> | F120: 479802 | G120: Xp Industrial Fundo de Investimento Imobiliário | H120: 28516325000140 | I120: Outros | J120: Xp Vista Asset Management Ltda | K120: Vortx Dtvm Ltda | L120: 49151 | M120: 0.00382 | N120: 547579.3168 | O120: 2024-09-17 | P120: 76.58 | Q120: 79.71299743 | R120: 0.9606965297 | S120: 2023-10-02 | T120: 341.95351 | U120: 624.0644745 | V120: 0.5479458036 | W120: 399 | X120: 1081.792829 | Y120: 0.3688321732 | AA120: -0.001304121024 | AB120: -0.0001140402437 | AC120: -0.01883408072 | AD120: -0.01159656173 | AE120: 0.01661364719 | AF120: 0.006052371495 | AG120: -0.01618705036 | AH120: -0.02486568485 | AI120: 0.05270065025 | AJ120: -0.08190016163 | AK120: 0.01821046481 | AL120: -0.05034488997 | AM120: 0.01660398094 | AN120: -0.1239094178 | AO120: 0.1279899956 | AP120: -0.09857297138 | AQ120: 0.06421708859 | AR120: -0.1336203879 | AS120: -0.05209046392 | AT120: -0.3963166404 | AU120: 0.3375773278 | AV120: 0.03826916635 | AW120: 0.1363347113 | AY120: 0.02999638598 | AZ120: -0.03152173913 | BA120: 0.01774789587 | BB120: -0.05099089754 | BC120: 6 | BD120: 6 | BE120: 5 | BF120: 7 | BG120: -0.564365362 | BH120: 0.0140983623 | BI120: -0.09795727 | BJ120: 2023-10-02 | BK120: 2024-06-19 | BO120: 0.9637677912 | BP120: 1.04100125 | BQ120: 1.583262368 | BR120: 1.069614943 | BS120: 1.06254084 | BT120: 0.9017833952 | BU120: 0.8544304881 | BV120: 0.6777674952 | BW120: 0.7105705938 | BX120: 0.7814861699 | BY120: 0.781145744 | BZ120: 0.7277604436 | CA120: 0.7814861699 | CB120: 0.9312518527 | CC120: 0.9312518527 | CG120: 0.07720051169 | CH120: 8.61 | CI120: 0.042 | CJ120: 7.56 | CK120: 0.06400679117 | CL120: 7.54 | CM120: 0.07944273104 | CN120: 7.47 | CO120: 0.1053914928 | CP120: 7.78 | CQ120: 0.09066731141 | CR120: 7.5 | CS120: 0.07645147302 | CT120: 0.1053914928 | CU120: 0.042
B121: XPML11<XBSP> | C121: XPML11 | D121: FII Xp Malls | E121: =IF(B121="","",VLOOKUP(H121,'Base FII Guide'!$B$5:$C$40000,2,0)) -> 464971<BraNa> | F121: 464971 | G121: Xp Malls Fundo de Investimento Imobiliário - FII | H121: 28757546000100 | I121: Shoppings | J121: Xp Vista Asset Management Ltda | K121: Xp Investimentos Cctvm | L121: 527538 | M121: 0.04321 | N121: 6191435.777 | O121: 2024-09-17 | P121: 111.92 | Q121: 113.4611281 | R121: 0.9864171269 | S121: 2024-05-17 | T121: 17573.13393 | U121: 13450.78728 | V121: 1.306476235 | W121: 25811 | X121: 17413.25896 | Y121: 1.482261308 | AA121: -0.0007142857139 | AB121: 0.0004757950664 | AC121: -0.0007142857139 | AD121: 0.006523233273 | AE121: 0.02215501315 | AF121: 0.01159373746 | AG121: -0.001160196341 | AH121: -0.00983883083 | AI121: 0.04215399569 | AJ121: -0.09244681619 | AK121: -0.007116244779 | AL121: -0.07567159955 | AM121: 0.11916502 | AN121: -0.02134837877 | AO121: 0.3010894755 | AP121: 0.07452650849 | AQ121: 0.4527882417 | AR121: 0.2549507653 | AS121: 0.4178274395 | AT121: 0.07360126294 | AU121: 0.4405762271 | AV121: 0.1412680657 | AW121: 0.1067661514 | AY121: 0.03862973761 | AZ121: -0.02370296701 | BA121: 0.06328022993 | BB121: -0.01323379503 | BC121: 6 | BD121: 6 | BE121: 9 | BF121: 3 | BG121: 0.1202652079 | BH121: 0.01107520168 | BI121: -0.06216680997 | BJ121: 2024-05-17 | BK121: 2024-06-13 | BO121: 1.052017981 | BP121: 1.072636918 | BQ121: 1.320071024 | BR121: 0.9315241458 | BS121: 1.04287174 | BT121: 0.9836775856 | BU121: 0.9775031512 | BV121: 0.924471976 | BW121: 0.9478682631 | BX121: 0.9175322473 | BY121: 1.047567149 | BZ121: 0.9351422051 | CA121: 1.047567149 | CB121: 0.8926799646 | CC121: 0.8926799646 | CE121: 0.0554687279 | CF121: 5.555747787 | CG121: 0.06562224105 | CH121: 7.074077585 | CI121: 0.02288359556 | CJ121: 3.135052592 | CK121: 0.04658874527 | CL121: 5.438304235 | CM121: 0.08548727748 | CN121: 8.5 | CO121: 0.1044105351 | CP121: 9.99 | CQ121: 0.0975432871 | CR121: 10.76 | CS121: 0.06828634421 | CT121: 0.1044105351 | CU121: 0.02288359556
B122: XPSF11<XBSP> | C122: XPSF11 | D122: FII Xp Selec | E122: =IF(B122="","",VLOOKUP(H122,'Base FII Guide'!$B$5:$C$40000,2,0)) -> 508306<BraNa> | F122: 508306 | G122: Xp Selection Fundo de Fundos de Investimento Imobiliário - F | H122: 30983020000190 | I122: TVM | J122: Xp Vista Asset Management Ltda | K122: Xp Investimentos Cctvm | L122: 62978 | M122: 0.00222 | N122: 318703.7504 | O122: 2024-09-17 | P122: 7.36 | Q122: 7.999035698 | R122: 0.9201109081 | S122: 2024-03-01 | T122: 365.96808 | U122: 556.4254348 | V122: 0.6577127089 | W122: 1853 | X122: 3525.14741 | Y122: 0.5256517769 | AA122: -0.004059539919 | AB122: -0.002869459138 | AC122: -0.01604278075 | AD122: -0.008805261762 | AE122: -0.04017765498 | AF122: -0.05073893068 | AG122: -0.008160613438 | AH122: -0.01683924793 | AI122: -0.003391375085 | AJ122: -0.137992187 | AK122: -0.05872431309 | AL122: -0.1272796679 | AM122: -0.038326353 | AN122: -0.1788397518 | AO122: 0.2137703806 | AP122: -0.01279258641 | AQ122: 0.2571596259 | AR122: 0.05932214947 | AS122: 0.1891104889 | AT122: -0.1551156877 | AW122: 0.1142647093 | AY122: 0.0202020202 | AZ122: -0.02190721649 | BA122: 0.06461932182 | BB122: -0.02971497878 | BC122: 2 | BD122: 10 | BE122: 3 | BF122: 9 | BG122: -1.135362291 | BH122: 0.01178654439 | BI122: -0.08965848135 | BJ122: 2024-03-01 | BK122: 2024-08-09 | BR122: 0.9737591051 | BS122: 0.9768900919 | BT122: 1.013130364 | BU122: 0.9105902391 | BV122: 0.8340131734 | BW122: 0.9012295589 | BX122: 0.9172036076 | BY122: 0.9520402383 | BZ122: 0.8873737053 | CA122: 0.9520402383 | CB122: 0.9320758405 | CC122: 0.9320758405 | CK122: 0.09167184587 | CL122: 0.885 | CM122: 0.1040342298 | CN122: 0.851 | CO122: 0.1210953077 | CP122: 0.911 | CQ122: 0.1036299766 | CR122: 0.885 | CS122: 0.10510784 | CT122: 0.1210953077 | CU122: 0.09167184587
B123: ZAVI11<XBSP> | C123: ZAVI11 | D123: FII Zavit R | E123: =IF(B123="","",VLOOKUP(H123,'Base FII Guide'!$B$5:$C$40000,2,0)) -> 600288<BraNa> | F123: 600288 | G123: Zavit Real Estate Fund Fundo de Investimento Imobiliário | H123: 40575940000123 | I123: Híbrido | J123: Zavit Consultoria Financeira Ltda | K123: Vortx Dtvm Ltda | L123: 4189 | M123: 0.00087 | N123: 123668.1388 | O123: 2024-09-17 | P123: 105.4 | Q123: 128.7930042 | R123: 0.8183674309 | S123: 2024-02-06 | T123: 678.64642 | U123: 448.0634079 | V123: 1.514621386 | W123: 524 | X123: 547.5219123 | Y123: 0.9570393224 | AA123: 0.0013300399 | AB123: 0.002520120681 | AC123: -0.119612429 | AD123: -0.11237491 | AE123: -0.07821576052 | AF123: -0.08877703622 | AG123: -0.07515691199 | AH123: -0.08383554648 | AI123: -0.04715589239 | AJ123: -0.1817567043 | AK123: -0.1551403394 | AL123: -0.2236956941 | AM123: -0.07897528679 | AN123: -0.2194886856 | AW123: 0.3445264416 | AY123: 0.1784508441 | AZ123: -0.06736217286 | BA123: 0.2002979146 | BB123: -0.119612429 | BC123: 6 | BD123: 6 | BE123: 6 | BF123: 6 | BG123: -0.343745331 | BH123: 0.03625509627 | BI123: -0.2314219842 | BJ123: 2024-02-06 | BK123: 2024-07-10 | BW123: 1.009792988 | BX123: 0.9239755442 | BY123: 0.9251444594 | BZ123: 0.8154488861 | CA123: 1.009792988 | CB123: 0.8075406503 | CC123: 0.8075406503 | CO123: 0.104890435 | CP123: 13.508 | CQ123: 0.1112579692 | CR123: 14.31 | CS123: 0.1080742021 | CT123: 0.1112579692 | CU123: 0.104890435
E124: =IF(B124="","",VLOOKUP(H124,'Base FII Guide'!$B$5:$C$40000,2,0)) ->  | H124: =IFERROR(VLOOKUP(G124,#REF!,2,FALSE),"") ->  | I124: =IFERROR(VLOOKUP(G124,#REF!,3,FALSE),"") ->  | J124: =IFERROR(VLOOKUP(G124,#REF!,4,FALSE),"") ->  | K124: =IFERROR(VLOOKUP(G124,#REF!,5,FALSE),"") -> 
E125: =IF(B125="","",VLOOKUP(H125,'Base FII Guide'!$B$5:$C$40000,2,0)) ->  | H125: =IFERROR(VLOOKUP(G125,#REF!,2,FALSE),"") ->  | I125: =IFERROR(VLOOKUP(G125,#REF!,3,FALSE),"") ->  | J125: =IFERROR(VLOOKUP(G125,#REF!,4,FALSE),"") ->  | K125: =IFERROR(VLOOKUP(G125,#REF!,5,FALSE),"") -> 
E126: =IF(B126="","",VLOOKUP(H126,'Base FII Guide'!$B$5:$C$40000,2,0)) ->  | H126: =IFERROR(VLOOKUP(G126,#REF!,2,FALSE),"") ->  | I126: =IFERROR(VLOOKUP(G126,#REF!,3,FALSE),"") ->  | J126: =IFERROR(VLOOKUP(G126,#REF!,4,FALSE),"") ->  | K126: =IFERROR(VLOOKUP(G126,#REF!,5,FALSE),"") -> 
E127: =IF(B127="","",VLOOKUP(H127,'Base FII Guide'!$B$5:$C$40000,2,0)) ->  | H127: =IFERROR(VLOOKUP(G127,#REF!,2,FALSE),"") ->  | I127: =IFERROR(VLOOKUP(G127,#REF!,3,FALSE),"") ->  | J127: =IFERROR(VLOOKUP(G127,#REF!,4,FALSE),"") ->  | K127: =IFERROR(VLOOKUP(G127,#REF!,5,FALSE),"") -> 
E128: =IF(B128="","",VLOOKUP(H128,'Base FII Guide'!$B$5:$C$40000,2,0)) ->  | H128: =IFERROR(VLOOKUP(G128,#REF!,2,FALSE),"") ->  | I128: =IFERROR(VLOOKUP(G128,#REF!,3,FALSE),"") ->  | J128: =IFERROR(VLOOKUP(G128,#REF!,4,FALSE),"") ->  | K128: =IFERROR(VLOOKUP(G128,#REF!,5,FALSE),"") -> 
E129: =IF(B129="","",VLOOKUP(H129,'Base FII Guide'!$B$5:$C$40000,2,0)) ->  | H129: =IFERROR(VLOOKUP(G129,#REF!,2,FALSE),"") ->  | I129: =IFERROR(VLOOKUP(G129,#REF!,3,FALSE),"") ->  | J129: =IFERROR(VLOOKUP(G129,#REF!,4,FALSE),"") ->  | K129: =IFERROR(VLOOKUP(G129,#REF!,5,FALSE),"") -> 
E130: =IF(B130="","",VLOOKUP(H130,'Base FII Guide'!$B$5:$C$40000,2,0)) ->  | H130: =IFERROR(VLOOKUP(G130,#REF!,2,FALSE),"") ->  | I130: =IFERROR(VLOOKUP(G130,#REF!,3,FALSE),"") ->  | J130: =IFERROR(VLOOKUP(G130,#REF!,4,FALSE),"") ->  | K130: =IFERROR(VLOOKUP(G130,#REF!,5,FALSE),"") -> 
E131: =IF(B131="","",VLOOKUP(H131,'Base FII Guide'!$B$5:$C$40000,2,0)) ->  | H131: =IFERROR(VLOOKUP(G131,#REF!,2,FALSE),"") ->  | I131: =IFERROR(VLOOKUP(G131,#REF!,3,FALSE),"") ->  | J131: =IFERROR(VLOOKUP(G131,#REF!,4,FALSE),"") ->  | K131: =IFERROR(VLOOKUP(G131,#REF!,5,FALSE),"") -> 
E132: =IF(B132="","",VLOOKUP(H132,'Base FII Guide'!$B$5:$C$40000,2,0)) ->  | H132: =IFERROR(VLOOKUP(G132,#REF!,2,FALSE),"") ->  | I132: =IFERROR(VLOOKUP(G132,#REF!,3,FALSE),"") ->  | J132: =IFERROR(VLOOKUP(G132,#REF!,4,FALSE),"") ->  | K132: =IFERROR(VLOOKUP(G132,#REF!,5,FALSE),"") -> 
E133: =IF(B133="","",VLOOKUP(H133,'Base FII Guide'!$B$5:$C$40000,2,0)) ->  | H133: =IFERROR(VLOOKUP(G133,#REF!,2,FALSE),"") ->  | I133: =IFERROR(VLOOKUP(G133,#REF!,3,FALSE),"") ->  | J133: =IFERROR(VLOOKUP(G133,#REF!,4,FALSE),"") ->  | K133: =IFERROR(VLOOKUP(G133,#REF!,5,FALSE),"") -> 
E134: =IF(B134="","",VLOOKUP(H134,'Base FII Guide'!$B$5:$C$40000,2,0)) ->  | H134: =IFERROR(VLOOKUP(G134,#REF!,2,FALSE),"") ->  | I134: =IFERROR(VLOOKUP(G134,#REF!,3,FALSE),"") ->  | J134: =IFERROR(VLOOKUP(G134,#REF!,4,FALSE),"") ->  | K134: =IFERROR(VLOOKUP(G134,#REF!,5,FALSE),"") -> 
E135: =IF(B135="","",VLOOKUP(H135,'Base FII Guide'!$B$5:$C$40000,2,0)) ->  | H135: =IFERROR(VLOOKUP(G135,#REF!,2,FALSE),"") ->  | I135: =IFERROR(VLOOKUP(G135,#REF!,3,FALSE),"") ->  | J135: =IFERROR(VLOOKUP(G135,#REF!,4,FALSE),"") ->  | K135: =IFERROR(VLOOKUP(G135,#REF!,5,FALSE),"") -> 
E136: =IF(B136="","",VLOOKUP(H136,'Base FII Guide'!$B$5:$C$40000,2,0)) ->  | H136: =IFERROR(VLOOKUP(G136,#REF!,2,FALSE),"") ->  | I136: =IFERROR(VLOOKUP(G136,#REF!,3,FALSE),"") ->  | J136: =IFERROR(VLOOKUP(G136,#REF!,4,FALSE),"") ->  | K136: =IFERROR(VLOOKUP(G136,#REF!,5,FALSE),"") -> 
E137: =IF(B137="","",VLOOKUP(H137,'Base FII Guide'!$B$5:$C$40000,2,0)) ->  | H137: =IFERROR(VLOOKUP(G137,#REF!,2,FALSE),"") ->  | I137: =IFERROR(VLOOKUP(G137,#REF!,3,FALSE),"") ->  | J137: =IFERROR(VLOOKUP(G137,#REF!,4,FALSE),"") ->  | K137: =IFERROR(VLOOKUP(G137,#REF!,5,FALSE),"") ->  | R137: =IFERROR(P137/Q137,"") ->  | V137: =IFERROR(T137/U137,"") ->  | Y137: =IFERROR(W137/X137,"") ->  | AD137: =IF(AC137="","",AC137-AC$6) ->  | AF137: =IF(AE137="","",AE137-AE$6) ->  | AH137: =IF(AG137="","",AG137-AG$6) ->  | AJ137: =IF(AI137="","",AI137-AI$6) ->  | AL137: =IF(AK137="","",AK137-AK$6) ->  | AN137: =IF(AM137="","",AM137-AM$6) ->  | AP137: =IF(AO137="","",AO137-AO$6) ->  | AR137: =IF(AQ137="","",AQ137-AQ$6) ->  | AT137: =IF(AS137="","",AS137-AS$6) ->  | AV137: =IF(AU137="","",AU137-AU$6) ->  | CA137: =IF(B137="","",IF(MAX(BO137:BZ137)=0,"-x-",MAX(BV137:BZ137))) ->  | CB137: =IF(B137="","",IFERROR(BZ137/CA137,"-x-")) ->  | CC137: =IF(B137="","",IFERROR(BZ137/CA137,"-x-")) -> 
E138: =IF(B138="","",VLOOKUP(H138,'Base FII Guide'!$B$5:$C$40000,2,0)) ->  | H138: =IFERROR(VLOOKUP(G138,#REF!,2,FALSE),"") ->  | I138: =IFERROR(VLOOKUP(G138,#REF!,3,FALSE),"") ->  | J138: =IFERROR(VLOOKUP(G138,#REF!,4,FALSE),"") ->  | K138: =IFERROR(VLOOKUP(G138,#REF!,5,FALSE),"") ->  | AB138: =IF(AA138="","",AA138-AA$6) ->  | CS138: =IFERROR(AVERAGE(CE138,CG138,CI138,CK138,CM138,CO138,CQ138),"") ->  | CT138: =IF(MAX(CE138,CG138,CI138,CK138,CM138,CO138,CQ138)=0,"",MAX(CE138,CG138,CI138,CK138,CM138,CO138,CQ138)) ->  | CU138: =IF(SUM(CE138:CR138)<>0,MIN(CE138,CG138,CI138,CK138,CM138,CO138,CQ138),"") -> 
E139: =IF(B139="","",VLOOKUP(H139,'Base FII Guide'!$B$5:$C$40000,2,0)) ->  | H139: =IFERROR(VLOOKUP(G139,#REF!,2,FALSE),"") ->  | I139: =IFERROR(VLOOKUP(G139,#REF!,3,FALSE),"") ->  | J139: =IFERROR(VLOOKUP(G139,#REF!,4,FALSE),"") ->  | K139: =IFERROR(VLOOKUP(G139,#REF!,5,FALSE),"") -> 
E140: =IF(B140="","",VLOOKUP(H140,'Base FII Guide'!$B$5:$C$40000,2,0)) ->  | H140: =IFERROR(VLOOKUP(G140,#REF!,2,FALSE),"") ->  | I140: =IFERROR(VLOOKUP(G140,#REF!,3,FALSE),"") ->  | J140: =IFERROR(VLOOKUP(G140,#REF!,4,FALSE),"") ->  | K140: =IFERROR(VLOOKUP(G140,#REF!,5,FALSE),"") -> 
E141: =IF(B141="","",VLOOKUP(H141,'Base FII Guide'!$B$5:$C$40000,2,0)) ->  | H141: =IFERROR(VLOOKUP(G141,#REF!,2,FALSE),"") ->  | I141: =IFERROR(VLOOKUP(G141,#REF!,3,FALSE),"") ->  | J141: =IFERROR(VLOOKUP(G141,#REF!,4,FALSE),"") ->  | K141: =IFERROR(VLOOKUP(G141,#REF!,5,FALSE),"") -> 
E142: =IF(B142="","",VLOOKUP(H142,'Base FII Guide'!$B$5:$C$40000,2,0)) ->  | H142: =IFERROR(VLOOKUP(G142,#REF!,2,FALSE),"") ->  | I142: =IFERROR(VLOOKUP(G142,#REF!,3,FALSE),"") ->  | J142: =IFERROR(VLOOKUP(G142,#REF!,4,FALSE),"") ->  | K142: =IFERROR(VLOOKUP(G142,#REF!,5,FALSE),"") -> 
E143: =IF(B143="","",VLOOKUP(H143,'Base FII Guide'!$B$5:$C$40000,2,0)) ->  | H143: =IFERROR(VLOOKUP(G143,#REF!,2,FALSE),"") ->  | I143: =IFERROR(VLOOKUP(G143,#REF!,3,FALSE),"") ->  | J143: =IFERROR(VLOOKUP(G143,#REF!,4,FALSE),"") ->  | K143: =IFERROR(VLOOKUP(G143,#REF!,5,FALSE),"") -> 
E144: =IF(B144="","",VLOOKUP(H144,'Base FII Guide'!$B$5:$C$40000,2,0)) ->  | H144: =IFERROR(VLOOKUP(G144,#REF!,2,FALSE),"") ->  | I144: =IFERROR(VLOOKUP(G144,#REF!,3,FALSE),"") ->  | J144: =IFERROR(VLOOKUP(G144,#REF!,4,FALSE),"") ->  | K144: =IFERROR(VLOOKUP(G144,#REF!,5,FALSE),"") -> 
E145: =IF(B145="","",VLOOKUP(H145,'Base FII Guide'!$B$5:$C$40000,2,0)) ->  | H145: =IFERROR(VLOOKUP(G145,#REF!,2,FALSE),"") ->  | I145: =IFERROR(VLOOKUP(G145,#REF!,3,FALSE),"") ->  | J145: =IFERROR(VLOOKUP(G145,#REF!,4,FALSE),"") ->  | K145: =IFERROR(VLOOKUP(G145,#REF!,5,FALSE),"") -> 
E146: =IF(B146="","",VLOOKUP(H146,'Base FII Guide'!$B$5:$C$40000,2,0)) ->  | H146: =IFERROR(VLOOKUP(G146,#REF!,2,FALSE),"") ->  | I146: =IFERROR(VLOOKUP(G146,#REF!,3,FALSE),"") ->  | J146: =IFERROR(VLOOKUP(G146,#REF!,4,FALSE),"") ->  | K146: =IFERROR(VLOOKUP(G146,#REF!,5,FALSE),"") -> 
E147: =IF(B147="","",VLOOKUP(H147,'Base FII Guide'!$B$5:$C$40000,2,0)) ->  | H147: =IFERROR(VLOOKUP(G147,#REF!,2,FALSE),"") ->  | I147: =IFERROR(VLOOKUP(G147,#REF!,3,FALSE),"") ->  | J147: =IFERROR(VLOOKUP(G147,#REF!,4,FALSE),"") ->  | K147: =IFERROR(VLOOKUP(G147,#REF!,5,FALSE),"") -> 
E148: =IF(B148="","",VLOOKUP(H148,'Base FII Guide'!$B$5:$C$40000,2,0)) ->  | H148: =IFERROR(VLOOKUP(G148,#REF!,2,FALSE),"") ->  | I148: =IFERROR(VLOOKUP(G148,#REF!,3,FALSE),"") ->  | J148: =IFERROR(VLOOKUP(G148,#REF!,4,FALSE),"") ->  | K148: =IFERROR(VLOOKUP(G148,#REF!,5,FALSE),"") -> 
E149: =IF(B149="","",VLOOKUP(H149,'Base FII Guide'!$B$5:$C$40000,2,0)) ->  | H149: =IFERROR(VLOOKUP(G149,#REF!,2,FALSE),"") ->  | I149: =IFERROR(VLOOKUP(G149,#REF!,3,FALSE),"") ->  | J149: =IFERROR(VLOOKUP(G149,#REF!,4,FALSE),"") ->  | K149: =IFERROR(VLOOKUP(G149,#REF!,5,FALSE),"") -> 
E150: =IF(B150="","",VLOOKUP(H150,'Base FII Guide'!$B$5:$C$40000,2,0)) ->  | H150: =IFERROR(VLOOKUP(G150,#REF!,2,FALSE),"") ->  | I150: =IFERROR(VLOOKUP(G150,#REF!,3,FALSE),"") ->  | J150: =IFERROR(VLOOKUP(G150,#REF!,4,FALSE),"") ->  | K150: =IFERROR(VLOOKUP(G150,#REF!,5,FALSE),"") -> 
E151: =IF(B151="","",VLOOKUP(H151,'Base FII Guide'!$B$5:$C$40000,2,0)) ->  | H151: =IFERROR(VLOOKUP(G151,#REF!,2,FALSE),"") ->  | I151: =IFERROR(VLOOKUP(G151,#REF!,3,FALSE),"") ->  | J151: =IFERROR(VLOOKUP(G151,#REF!,4,FALSE),"") ->  | K151: =IFERROR(VLOOKUP(G151,#REF!,5,FALSE),"") -> 
E152: =IF(B152="","",VLOOKUP(H152,'Base FII Guide'!$B$5:$C$40000,2,0)) ->  | H152: =IFERROR(VLOOKUP(G152,#REF!,2,FALSE),"") ->  | I152: =IFERROR(VLOOKUP(G152,#REF!,3,FALSE),"") ->  | J152: =IFERROR(VLOOKUP(G152,#REF!,4,FALSE),"") ->  | K152: =IFERROR(VLOOKUP(G152,#REF!,5,FALSE),"") -> 
E153: =IF(B153="","",VLOOKUP(H153,'Base FII Guide'!$B$5:$C$40000,2,0)) ->  | H153: =IFERROR(VLOOKUP(G153,#REF!,2,FALSE),"") ->  | I153: =IFERROR(VLOOKUP(G153,#REF!,3,FALSE),"") ->  | J153: =IFERROR(VLOOKUP(G153,#REF!,4,FALSE),"") ->  | K153: =IFERROR(VLOOKUP(G153,#REF!,5,FALSE),"") -> 
E154: =IF(B154="","",VLOOKUP(H154,'Base FII Guide'!$B$5:$C$40000,2,0)) ->  | H154: =IFERROR(VLOOKUP(G154,#REF!,2,FALSE),"") ->  | I154: =IFERROR(VLOOKUP(G154,#REF!,3,FALSE),"") ->  | J154: =IFERROR(VLOOKUP(G154,#REF!,4,FALSE),"") ->  | K154: =IFERROR(VLOOKUP(G154,#REF!,5,FALSE),"") -> 
E155: =IF(B155="","",VLOOKUP(H155,'Base FII Guide'!$B$5:$C$40000,2,0)) ->  | H155: =IFERROR(VLOOKUP(G155,#REF!,2,FALSE),"") ->  | I155: =IFERROR(VLOOKUP(G155,#REF!,3,FALSE),"") ->  | J155: =IFERROR(VLOOKUP(G155,#REF!,4,FALSE),"") ->  | K155: =IFERROR(VLOOKUP(G155,#REF!,5,FALSE),"") -> 
E156: =IF(B156="","",VLOOKUP(H156,'Base FII Guide'!$B$5:$C$40000,2,0)) ->  | H156: =IFERROR(VLOOKUP(G156,#REF!,2,FALSE),"") ->  | I156: =IFERROR(VLOOKUP(G156,#REF!,3,FALSE),"") ->  | J156: =IFERROR(VLOOKUP(G156,#REF!,4,FALSE),"") ->  | K156: =IFERROR(VLOOKUP(G156,#REF!,5,FALSE),"") -> 
E157: =IF(B157="","",VLOOKUP(H157,'Base FII Guide'!$B$5:$C$40000,2,0)) ->  | H157: =IFERROR(VLOOKUP(G157,#REF!,2,FALSE),"") ->  | I157: =IFERROR(VLOOKUP(G157,#REF!,3,FALSE),"") ->  | J157: =IFERROR(VLOOKUP(G157,#REF!,4,FALSE),"") ->  | K157: =IFERROR(VLOOKUP(G157,#REF!,5,FALSE),"") -> 
E158: =IF(B158="","",VLOOKUP(H158,'Base FII Guide'!$B$5:$C$40000,2,0)) ->  | H158: =IFERROR(VLOOKUP(G158,#REF!,2,FALSE),"") ->  | I158: =IFERROR(VLOOKUP(G158,#REF!,3,FALSE),"") ->  | J158: =IFERROR(VLOOKUP(G158,#REF!,4,FALSE),"") ->  | K158: =IFERROR(VLOOKUP(G158,#REF!,5,FALSE),"") -> 
E159: =IF(B159="","",VLOOKUP(H159,'Base FII Guide'!$B$5:$C$40000,2,0)) ->  | H159: =IFERROR(VLOOKUP(G159,#REF!,2,FALSE),"") ->  | I159: =IFERROR(VLOOKUP(G159,#REF!,3,FALSE),"") ->  | J159: =IFERROR(VLOOKUP(G159,#REF!,4,FALSE),"") ->  | K159: =IFERROR(VLOOKUP(G159,#REF!,5,FALSE),"") -> 
E160: =IF(B160="","",VLOOKUP(H160,'Base FII Guide'!$B$5:$C$40000,2,0)) ->  | H160: =IFERROR(VLOOKUP(G160,#REF!,2,FALSE),"") ->  | I160: =IFERROR(VLOOKUP(G160,#REF!,3,FALSE),"") ->  | J160: =IFERROR(VLOOKUP(G160,#REF!,4,FALSE),"") ->  | K160: =IFERROR(VLOOKUP(G160,#REF!,5,FALSE),"") -> 
E161: =IF(B161="","",VLOOKUP(H161,'Base FII Guide'!$B$5:$C$40000,2,0)) ->  | H161: =IFERROR(VLOOKUP(G161,#REF!,2,FALSE),"") ->  | I161: =IFERROR(VLOOKUP(G161,#REF!,3,FALSE),"") ->  | J161: =IFERROR(VLOOKUP(G161,#REF!,4,FALSE),"") ->  | K161: =IFERROR(VLOOKUP(G161,#REF!,5,FALSE),"") -> 
E162: =IF(B162="","",VLOOKUP(H162,'Base FII Guide'!$B$5:$C$40000,2,0)) ->  | H162: =IFERROR(VLOOKUP(G162,#REF!,2,FALSE),"") ->  | I162: =IFERROR(VLOOKUP(G162,#REF!,3,FALSE),"") ->  | J162: =IFERROR(VLOOKUP(G162,#REF!,4,FALSE),"") ->  | K162: =IFERROR(VLOOKUP(G162,#REF!,5,FALSE),"") -> 
E163: =IF(B163="","",VLOOKUP(H163,'Base FII Guide'!$B$5:$C$40000,2,0)) ->  | H163: =IFERROR(VLOOKUP(G163,#REF!,2,FALSE),"") ->  | I163: =IFERROR(VLOOKUP(G163,#REF!,3,FALSE),"") ->  | J163: =IFERROR(VLOOKUP(G163,#REF!,4,FALSE),"") ->  | K163: =IFERROR(VLOOKUP(G163,#REF!,5,FALSE),"") -> 
E164: =IF(B164="","",VLOOKUP(H164,'Base FII Guide'!$B$5:$C$40000,2,0)) ->  | H164: =IFERROR(VLOOKUP(G164,#REF!,2,FALSE),"") ->  | I164: =IFERROR(VLOOKUP(G164,#REF!,3,FALSE),"") ->  | J164: =IFERROR(VLOOKUP(G164,#REF!,4,FALSE),"") ->  | K164: =IFERROR(VLOOKUP(G164,#REF!,5,FALSE),"") -> 
E165: =IF(B165="","",VLOOKUP(H165,'Base FII Guide'!$B$5:$C$40000,2,0)) ->  | H165: =IFERROR(VLOOKUP(G165,#REF!,2,FALSE),"") ->  | I165: =IFERROR(VLOOKUP(G165,#REF!,3,FALSE),"") ->  | J165: =IFERROR(VLOOKUP(G165,#REF!,4,FALSE),"") ->  | K165: =IFERROR(VLOOKUP(G165,#REF!,5,FALSE),"") -> 
E166: =IF(B166="","",VLOOKUP(H166,'Base FII Guide'!$B$5:$C$40000,2,0)) ->  | H166: =IFERROR(VLOOKUP(G166,#REF!,2,FALSE),"") ->  | I166: =IFERROR(VLOOKUP(G166,#REF!,3,FALSE),"") ->  | J166: =IFERROR(VLOOKUP(G166,#REF!,4,FALSE),"") ->  | K166: =IFERROR(VLOOKUP(G166,#REF!,5,FALSE),"") -> 
E167: =IF(B167="","",VLOOKUP(H167,'Base FII Guide'!$B$5:$C$40000,2,0)) ->  | H167: =IFERROR(VLOOKUP(G167,#REF!,2,FALSE),"") ->  | I167: =IFERROR(VLOOKUP(G167,#REF!,3,FALSE),"") ->  | J167: =IFERROR(VLOOKUP(G167,#REF!,4,FALSE),"") ->  | K167: =IFERROR(VLOOKUP(G167,#REF!,5,FALSE),"") -> 
E168: =IF(B168="","",VLOOKUP(H168,'Base FII Guide'!$B$5:$C$40000,2,0)) ->  | H168: =IFERROR(VLOOKUP(G168,#REF!,2,FALSE),"") ->  | I168: =IFERROR(VLOOKUP(G168,#REF!,3,FALSE),"") ->  | J168: =IFERROR(VLOOKUP(G168,#REF!,4,FALSE),"") ->  | K168: =IFERROR(VLOOKUP(G168,#REF!,5,FALSE),"") -> 
E169: =IF(B169="","",VLOOKUP(H169,'Base FII Guide'!$B$5:$C$40000,2,0)) ->  | H169: =IFERROR(VLOOKUP(G169,#REF!,2,FALSE),"") ->  | I169: =IFERROR(VLOOKUP(G169,#REF!,3,FALSE),"") ->  | J169: =IFERROR(VLOOKUP(G169,#REF!,4,FALSE),"") ->  | K169: =IFERROR(VLOOKUP(G169,#REF!,5,FALSE),"") -> 
E170: =IF(B170="","",VLOOKUP(H170,'Base FII Guide'!$B$5:$C$40000,2,0)) ->  | H170: =IFERROR(VLOOKUP(G170,#REF!,2,FALSE),"") ->  | I170: =IFERROR(VLOOKUP(G170,#REF!,3,FALSE),"") ->  | J170: =IFERROR(VLOOKUP(G170,#REF!,4,FALSE),"") ->  | K170: =IFERROR(VLOOKUP(G170,#REF!,5,FALSE),"") -> 
E171: =IF(B171="","",VLOOKUP(H171,'Base FII Guide'!$B$5:$C$40000,2,0)) ->  | H171: =IFERROR(VLOOKUP(G171,#REF!,2,FALSE),"") ->  | I171: =IFERROR(VLOOKUP(G171,#REF!,3,FALSE),"") ->  | J171: =IFERROR(VLOOKUP(G171,#REF!,4,FALSE),"") ->  | K171: =IFERROR(VLOOKUP(G171,#REF!,5,FALSE),"") -> 
E172: =IF(B172="","",VLOOKUP(H172,'Base FII Guide'!$B$5:$C$40000,2,0)) ->  | H172: =IFERROR(VLOOKUP(G172,#REF!,2,FALSE),"") ->  | I172: =IFERROR(VLOOKUP(G172,#REF!,3,FALSE),"") ->  | J172: =IFERROR(VLOOKUP(G172,#REF!,4,FALSE),"") ->  | K172: =IFERROR(VLOOKUP(G172,#REF!,5,FALSE),"") -> 
E173: =IF(B173="","",VLOOKUP(H173,'Base FII Guide'!$B$5:$C$40000,2,0)) ->  | H173: =IFERROR(VLOOKUP(G173,#REF!,2,FALSE),"") ->  | I173: =IFERROR(VLOOKUP(G173,#REF!,3,FALSE),"") ->  | J173: =IFERROR(VLOOKUP(G173,#REF!,4,FALSE),"") ->  | K173: =IFERROR(VLOOKUP(G173,#REF!,5,FALSE),"") -> 
E174: =IF(B174="","",VLOOKUP(H174,'Base FII Guide'!$B$5:$C$40000,2,0)) ->  | H174: =IFERROR(VLOOKUP(G174,#REF!,2,FALSE),"") ->  | I174: =IFERROR(VLOOKUP(G174,#REF!,3,FALSE),"") ->  | J174: =IFERROR(VLOOKUP(G174,#REF!,4,FALSE),"") ->  | K174: =IFERROR(VLOOKUP(G174,#REF!,5,FALSE),"") -> 
E175: =IF(B175="","",VLOOKUP(H175,'Base FII Guide'!$B$5:$C$40000,2,0)) ->  | H175: =IFERROR(VLOOKUP(G175,#REF!,2,FALSE),"") ->  | I175: =IFERROR(VLOOKUP(G175,#REF!,3,FALSE),"") ->  | J175: =IFERROR(VLOOKUP(G175,#REF!,4,FALSE),"") ->  | K175: =IFERROR(VLOOKUP(G175,#REF!,5,FALSE),"") -> 
E176: =IF(B176="","",VLOOKUP(H176,'Base FII Guide'!$B$5:$C$40000,2,0)) ->  | H176: =IFERROR(VLOOKUP(G176,#REF!,2,FALSE),"") ->  | I176: =IFERROR(VLOOKUP(G176,#REF!,3,FALSE),"") ->  | J176: =IFERROR(VLOOKUP(G176,#REF!,4,FALSE),"") ->  | K176: =IFERROR(VLOOKUP(G176,#REF!,5,FALSE),"") -> 
E177: =IF(B177="","",VLOOKUP(H177,'Base FII Guide'!$B$5:$C$40000,2,0)) ->  | H177: =IFERROR(VLOOKUP(G177,#REF!,2,FALSE),"") ->  | I177: =IFERROR(VLOOKUP(G177,#REF!,3,FALSE),"") ->  | J177: =IFERROR(VLOOKUP(G177,#REF!,4,FALSE),"") ->  | K177: =IFERROR(VLOOKUP(G177,#REF!,5,FALSE),"") -> 
E178: =IF(B178="","",VLOOKUP(H178,'Base FII Guide'!$B$5:$C$40000,2,0)) ->  | H178: =IFERROR(VLOOKUP(G178,#REF!,2,FALSE),"") ->  | I178: =IFERROR(VLOOKUP(G178,#REF!,3,FALSE),"") ->  | J178: =IFERROR(VLOOKUP(G178,#REF!,4,FALSE),"") ->  | K178: =IFERROR(VLOOKUP(G178,#REF!,5,FALSE),"") -> 
E179: =IF(B179="","",VLOOKUP(H179,'Base FII Guide'!$B$5:$C$40000,2,0)) ->  | H179: =IFERROR(VLOOKUP(G179,#REF!,2,FALSE),"") ->  | I179: =IFERROR(VLOOKUP(G179,#REF!,3,FALSE),"") ->  | J179: =IFERROR(VLOOKUP(G179,#REF!,4,FALSE),"") ->  | K179: =IFERROR(VLOOKUP(G179,#REF!,5,FALSE),"") -> 
E180: =IF(B180="","",VLOOKUP(H180,'Base FII Guide'!$B$5:$C$40000,2,0)) ->  | H180: =IFERROR(VLOOKUP(G180,#REF!,2,FALSE),"") ->  | I180: =IFERROR(VLOOKUP(G180,#REF!,3,FALSE),"") ->  | J180: =IFERROR(VLOOKUP(G180,#REF!,4,FALSE),"") ->  | K180: =IFERROR(VLOOKUP(G180,#REF!,5,FALSE),"") -> 
E181: =IF(B181="","",VLOOKUP(H181,'Base FII Guide'!$B$5:$C$40000,2,0)) ->  | H181: =IFERROR(VLOOKUP(G181,#REF!,2,FALSE),"") ->  | I181: =IFERROR(VLOOKUP(G181,#REF!,3,FALSE),"") ->  | J181: =IFERROR(VLOOKUP(G181,#REF!,4,FALSE),"") ->  | K181: =IFERROR(VLOOKUP(G181,#REF!,5,FALSE),"") -> 
E182: =IF(B182="","",VLOOKUP(H182,'Base FII Guide'!$B$5:$C$40000,2,0)) ->  | H182: =IFERROR(VLOOKUP(G182,#REF!,2,FALSE),"") ->  | I182: =IFERROR(VLOOKUP(G182,#REF!,3,FALSE),"") ->  | J182: =IFERROR(VLOOKUP(G182,#REF!,4,FALSE),"") ->  | K182: =IFERROR(VLOOKUP(G182,#REF!,5,FALSE),"") -> 
E183: =IF(B183="","",VLOOKUP(H183,'Base FII Guide'!$B$5:$C$40000,2,0)) ->  | H183: =IFERROR(VLOOKUP(G183,#REF!,2,FALSE),"") ->  | I183: =IFERROR(VLOOKUP(G183,#REF!,3,FALSE),"") ->  | J183: =IFERROR(VLOOKUP(G183,#REF!,4,FALSE),"") ->  | K183: =IFERROR(VLOOKUP(G183,#REF!,5,FALSE),"") -> 
E184: =IF(B184="","",VLOOKUP(H184,'Base FII Guide'!$B$5:$C$40000,2,0)) ->  | H184: =IFERROR(VLOOKUP(G184,#REF!,2,FALSE),"") ->  | I184: =IFERROR(VLOOKUP(G184,#REF!,3,FALSE),"") ->  | J184: =IFERROR(VLOOKUP(G184,#REF!,4,FALSE),"") ->  | K184: =IFERROR(VLOOKUP(G184,#REF!,5,FALSE),"") -> 
E185: =IF(B185="","",VLOOKUP(H185,'Base FII Guide'!$B$5:$C$40000,2,0)) ->  | H185: =IFERROR(VLOOKUP(G185,#REF!,2,FALSE),"") ->  | I185: =IFERROR(VLOOKUP(G185,#REF!,3,FALSE),"") ->  | J185: =IFERROR(VLOOKUP(G185,#REF!,4,FALSE),"") ->  | K185: =IFERROR(VLOOKUP(G185,#REF!,5,FALSE),"") -> 
E186: =IF(B186="","",VLOOKUP(H186,'Base FII Guide'!$B$5:$C$40000,2,0)) ->  | H186: =IFERROR(VLOOKUP(G186,#REF!,2,FALSE),"") ->  | I186: =IFERROR(VLOOKUP(G186,#REF!,3,FALSE),"") ->  | J186: =IFERROR(VLOOKUP(G186,#REF!,4,FALSE),"") ->  | K186: =IFERROR(VLOOKUP(G186,#REF!,5,FALSE),"") -> 
E187: =IF(B187="","",VLOOKUP(H187,'Base FII Guide'!$B$5:$C$40000,2,0)) ->  | H187: =IFERROR(VLOOKUP(G187,#REF!,2,FALSE),"") ->  | I187: =IFERROR(VLOOKUP(G187,#REF!,3,FALSE),"") ->  | J187: =IFERROR(VLOOKUP(G187,#REF!,4,FALSE),"") ->  | K187: =IFERROR(VLOOKUP(G187,#REF!,5,FALSE),"") -> 
E188: =IF(B188="","",VLOOKUP(H188,'Base FII Guide'!$B$5:$C$40000,2,0)) ->  | H188: =IFERROR(VLOOKUP(G188,#REF!,2,FALSE),"") ->  | I188: =IFERROR(VLOOKUP(G188,#REF!,3,FALSE),"") ->  | J188: =IFERROR(VLOOKUP(G188,#REF!,4,FALSE),"") ->  | K188: =IFERROR(VLOOKUP(G188,#REF!,5,FALSE),"") -> 
E189: =IF(B189="","",VLOOKUP(H189,'Base FII Guide'!$B$5:$C$40000,2,0)) ->  | H189: =IFERROR(VLOOKUP(G189,#REF!,2,FALSE),"") ->  | I189: =IFERROR(VLOOKUP(G189,#REF!,3,FALSE),"") ->  | J189: =IFERROR(VLOOKUP(G189,#REF!,4,FALSE),"") ->  | K189: =IFERROR(VLOOKUP(G189,#REF!,5,FALSE),"") -> 
E190: =IF(B190="","",VLOOKUP(H190,'Base FII Guide'!$B$5:$C$40000,2,0)) ->  | H190: =IFERROR(VLOOKUP(G190,#REF!,2,FALSE),"") ->  | I190: =IFERROR(VLOOKUP(G190,#REF!,3,FALSE),"") ->  | J190: =IFERROR(VLOOKUP(G190,#REF!,4,FALSE),"") ->  | K190: =IFERROR(VLOOKUP(G190,#REF!,5,FALSE),"") -> 
E191: =IF(B191="","",VLOOKUP(H191,'Base FII Guide'!$B$5:$C$40000,2,0)) ->  | H191: =IFERROR(VLOOKUP(G191,#REF!,2,FALSE),"") ->  | I191: =IFERROR(VLOOKUP(G191,#REF!,3,FALSE),"") ->  | J191: =IFERROR(VLOOKUP(G191,#REF!,4,FALSE),"") ->  | K191: =IFERROR(VLOOKUP(G191,#REF!,5,FALSE),"") -> 
E192: =IF(B192="","",VLOOKUP(H192,'Base FII Guide'!$B$5:$C$40000,2,0)) ->  | H192: =IFERROR(VLOOKUP(G192,#REF!,2,FALSE),"") ->  | I192: =IFERROR(VLOOKUP(G192,#REF!,3,FALSE),"") ->  | J192: =IFERROR(VLOOKUP(G192,#REF!,4,FALSE),"") ->  | K192: =IFERROR(VLOOKUP(G192,#REF!,5,FALSE),"") -> 
E193: =IF(B193="","",VLOOKUP(H193,'Base FII Guide'!$B$5:$C$40000,2,0)) ->  | H193: =IFERROR(VLOOKUP(G193,#REF!,2,FALSE),"") ->  | I193: =IFERROR(VLOOKUP(G193,#REF!,3,FALSE),"") ->  | J193: =IFERROR(VLOOKUP(G193,#REF!,4,FALSE),"") ->  | K193: =IFERROR(VLOOKUP(G193,#REF!,5,FALSE),"") -> 
E194: =IF(B194="","",VLOOKUP(H194,'Base FII Guide'!$B$5:$C$40000,2,0)) ->  | H194: =IFERROR(VLOOKUP(G194,#REF!,2,FALSE),"") ->  | I194: =IFERROR(VLOOKUP(G194,#REF!,3,FALSE),"") ->  | J194: =IFERROR(VLOOKUP(G194,#REF!,4,FALSE),"") ->  | K194: =IFERROR(VLOOKUP(G194,#REF!,5,FALSE),"") -> 
E195: =IF(B195="","",VLOOKUP(H195,'Base FII Guide'!$B$5:$C$40000,2,0)) ->  | H195: =IFERROR(VLOOKUP(G195,#REF!,2,FALSE),"") ->  | I195: =IFERROR(VLOOKUP(G195,#REF!,3,FALSE),"") ->  | J195: =IFERROR(VLOOKUP(G195,#REF!,4,FALSE),"") ->  | K195: =IFERROR(VLOOKUP(G195,#REF!,5,FALSE),"") -> 
E196: =IF(B196="","",VLOOKUP(H196,'Base FII Guide'!$B$5:$C$40000,2,0)) ->  | H196: =IFERROR(VLOOKUP(G196,#REF!,2,FALSE),"") ->  | I196: =IFERROR(VLOOKUP(G196,#REF!,3,FALSE),"") ->  | J196: =IFERROR(VLOOKUP(G196,#REF!,4,FALSE),"") ->  | K196: =IFERROR(VLOOKUP(G196,#REF!,5,FALSE),"") -> 
E197: =IF(B197="","",VLOOKUP(H197,'Base FII Guide'!$B$5:$C$40000,2,0)) ->  | H197: =IFERROR(VLOOKUP(G197,#REF!,2,FALSE),"") ->  | I197: =IFERROR(VLOOKUP(G197,#REF!,3,FALSE),"") ->  | J197: =IFERROR(VLOOKUP(G197,#REF!,4,FALSE),"") ->  | K197: =IFERROR(VLOOKUP(G197,#REF!,5,FALSE),"") -> 
E198: =IF(B198="","",VLOOKUP(H198,'Base FII Guide'!$B$5:$C$40000,2,0)) ->  | H198: =IFERROR(VLOOKUP(G198,#REF!,2,FALSE),"") ->  | I198: =IFERROR(VLOOKUP(G198,#REF!,3,FALSE),"") ->  | J198: =IFERROR(VLOOKUP(G198,#REF!,4,FALSE),"") ->  | K198: =IFERROR(VLOOKUP(G198,#REF!,5,FALSE),"") -> 
E199: =IF(B199="","",VLOOKUP(H199,'Base FII Guide'!$B$5:$C$40000,2,0)) ->  | H199: =IFERROR(VLOOKUP(G199,#REF!,2,FALSE),"") ->  | I199: =IFERROR(VLOOKUP(G199,#REF!,3,FALSE),"") ->  | J199: =IFERROR(VLOOKUP(G199,#REF!,4,FALSE),"") ->  | K199: =IFERROR(VLOOKUP(G199,#REF!,5,FALSE),"") -> 
E200: =IF(B200="","",VLOOKUP(H200,'Base FII Guide'!$B$5:$C$40000,2,0)) -> 
E201: =IF(B201="","",VLOOKUP(H201,'Base FII Guide'!$B$5:$C$40000,2,0)) ->  | CA201: =IF(B201="","",IF(MAX(BO201:BZ201)=0,"-x-",MAX(BV201:BZ201))) ->  | CB201: =IF(B201="","",IFERROR(BZ201/CA201,"-x-")) ->  | CC201: =IF(B201="","",IFERROR(BZ201/CA201,"-x-")) -> 

Sheet Base FII Guide
D1: Planilha Auxiliar Não Modificar
B4: =_xll.ECONOMATICA($C$5:$C$40000,"Employer ID number") ->  | C4: =_xll.ECOSECURITIES("FUND","ACTIVE",,"BRA","BRANA",,,) -> Código
B5: 39959611000105 | C5: 593125<BraNa>
B6: 34172417000153 | C6: 511692<BraNa>
B7: 48565175000172 | C7: 700592<BraNa>
B8: 49489928000170 | C8: 699136<BraNa>
B9: 44625694000128 | C9: 653500<BraNa>
B10: 36016411000112 | C10: 540293<BraNa>
B11: 44613679000160 | C11: 639648<BraNa>
B12: 31341367000100 | C12: 481076<BraNa>
B13: 46082374000102 | C13: 670928<BraNa>
B14: 3998582000135 | C14: 392057<BraNa>
B15: 33913620000170 | C15: 503894<BraNa>
B16: 44585744000190 | C16: 632805<BraNa>
B17: 24498658000133 | C17: 534684<BraNa>
B18: 37651083000199 | C18: 555843<BraNa>
B19: 30509213000104 | C19: 500208<BraNa>
B20: 37750319000144 | C20: 585998<BraNa>
B21: 51017442000181 | C21: 731366<BraNa>
B22: 33149272000107 | C22: 495654<BraNa>
B23: 36248874000100 | C23: 540757<BraNa>
B24: 50956087000143 | C24: 723185<BraNa>
B25: 35883366000130 | C25: 606928<BraNa>
B26: 48956200000149 | C26: 707015<BraNa>
B27: 43583942000152 | C27: 626589<BraNa>
B28: 55288602000188 | C28: 55288602-provis<BraNa>
B29: 47458122000190 | C29: 678384<BraNa>
B30: 36017639000127 | C30: 617784<BraNa>
B31: 42934733000143 | C31: 664642<BraNa>
B32: 55772515000100 | C32: 55772515-provis<BraNa>
B33: 35820670000139 | C33: 538906<BraNa>
B34: 51653060000144 | C34: 51653060-provis<BraNa>
B35: 51662340000119 | C35: 51662340-provis<BraNa>
B36: 33150563000115 | C36: 496723<BraNa>
B37: 43141072000161 | C37: 625116<BraNa>
B38: 34706514000189 | C38: 542415<BraNa>
B39: 15181528000181 | C39: 381853<BraNa>
B40: 31216802000167 | C40: 481270<BraNa>
B41: 41681686000100 | C41: 589411<BraNa>
B42: 30128740000179 | C42: 481440<BraNa>
B43: 45089766000122 | C43: 658545<BraNa>
B44: 45089785000159 | C44: 659908<BraNa>
B45: 53294226000109 | C45: 53294226-provis<BraNa>
B46: 45654173000161 | C46: 646989<BraNa>
B47: 32603817000140 | C47: 516831<BraNa>
B48: 31366337000140 | C48: 484458<BraNa>
B49: 39846861000120 | C49: 566152<BraNa>
B50: 48989069000116 | C50: 690430<BraNa>
B51: 43917444000107 | C51: 632139<BraNa>
B52: 42847413000156 | C52: 606431<BraNa>
B53: 36986777000114 | C53: 540617<BraNa>
B54: 26262610000157 | C54: 436194<BraNa>
B55: 35765772000107 | C55: 529400<BraNa>
B56: 39723626000161 | C56: 594032<BraNa>
B57: 32396909000105 | C57: 490407<BraNa>
B58: 50733585000127 | C58: 720658<BraNa>
B59: 42462717000103 | C59: 618901<BraNa>
B60: 35398724000110 | C60: 544566<BraNa>
B61: 34271039000165 | C61: 504513<BraNa>
B62: 42776282000163 | C62: 623512<BraNa>
B63: 30493288000144 | C63: 472190<BraNa>
B64: 28364587000137 | C64: 454710<BraNa>
B65: 50324411000100 | C65: 701548<BraNa>
B66: 17342222000195 | C66: 327425<BraNa>
B67: 44466536000172 | C67: 636908<BraNa>
B68: 43164403000189 | C68: 614068<BraNa>
B69: 18679201000122 | C69: 351024<BraNa>
B70: 53075758000155 | C70: 736872<BraNa>
B71: 19009555000122 | C71: 358541<BraNa>
B72: 57270020000108 | C72: 57270020-provis<BraNa>
B73: 19237860000171 | C73: 363601<BraNa>
B74: 53075712000136 | C74: 736783<BraNa>
B75: 20403293000165 | C75: 372501<BraNa>
B76: 22345322000105 | C76: 398292<BraNa>
B77: 29734102000112 | C77: 466247<BraNa>
B78: 30353655000104 | C78: 504238<BraNa>
B79: 42887937000170 | C79: 616818<BraNa>
B80: 50714026000170 | C80: 772860<BraNa>
B81: 50714026000170 | C81: 727644<BraNa>
B82: 36886292000159 | C82: 609358<BraNa>
B83: 23781888000142 | C83: 412856<BraNa>
B84: 23884691000139 | C84: 420735<BraNa>
B85: 19878616000198 | C85: 521957<BraNa>
B86: 26580306000158 | C86: 438669<BraNa>
B87: 26695455000162 | C87: 435619<BraNa>
B88: 26850841000181 | C88: 443360<BraNa>
B89: 26142998000152 | C89: 430226<BraNa>
B90: 26143039000151 | C90: 430234<BraNa>
B91: 26179574000162 | C91: 430269<BraNa>
B92: 27974854000125 | C92: 453961<BraNa>
B93: 53177632000191 | C93: 773859<BraNa>
B94: 19238053000173 | C94: 364320<BraNa>
B95: 49183435000108 | C95: 690945<BraNa>
B96: 49183606000107 | C96: 691070<BraNa>
B97: 25682100000176 | C97: 431230<BraNa>
B98: 32395333000153 | C98: 488593<BraNa>
B99: 49183739000175 | C99: 691089<BraNa>
B100: 44229716000130 | C100: 732419<BraNa>
B101: 49184065000123 | C101: 692255<BraNa>
B102: 49184159000100 | C102: 692247<BraNa>
B103: 49764978000119 | C103: 703109<BraNa>
B104: 28974109000149 | C104: 539252<BraNa>
B105: 49770446000194 | C105: 703801<BraNa>
B106: 53260338000149 | C106: 744050<BraNa>
B107: 29236614000159 | C107: 475270<BraNa>
B108: 53260593000191 | C108: 741515<BraNa>
B109: 55080817000109 | C109: 764213<BraNa>
B110: 32321312000193 | C110: 613835<BraNa>
B111: 54271778000164 | C111: 54271778-provis<BraNa>
B112: 30508019000104 | C112: 476021<BraNa>
B113: 42831101000154 | C113: 629804<BraNa>
B114: 42431231000108 | C114: 627461<BraNa>
B115: 32158984000120 | C115: 692484<BraNa>
B116: 32158984000120 | C116: 692476<BraNa>
B117: 31611378000155 | C117: 489980<BraNa>
B118: 13089336000114 | C118: 401684<BraNa>
B119: 46406058000130 | C119: 684155<BraNa>
B120: 19419994000103 | C120: 366341<BraNa>
B121: 38443937000104 | C121: 565547<BraNa>
B122: 38456821000100 | C122: 573108<BraNa>
B123: 44372150000100 | C123: 725455<BraNa>
B124: 51126842000125 | C124: 710512<BraNa>
B125: 14596766000195 | C125: 313149<BraNa>
B126: 30479394000173 | C126: 470521<BraNa>
B127: 56140513000152 | C127: 772372<BraNa>
B128: 44870342000138 | C128: 647705<BraNa>
B129: 42922305000109 | C129: 681067<BraNa>
B130: 42338382000108 | C130: 653616<BraNa>
B131: 32265598000137 | C131: 495621<BraNa>
B132: 51199121000145 | C132: 717071<BraNa>
B133: 47372720000141 | C133: 675830<BraNa>
B134: 51152703000176 | C134: 713163<BraNa>
B135: 51152458000105 | C135: 709761<BraNa>
B136: 51144910000189 | C136: 711918<BraNa>
B137: 51152912000110 | C137: 709603<BraNa>
B138: 53736809000142 | C138: 53736809-provis<BraNa>
B139: 26860912000127 | C139: 446130<BraNa>
B140: 40211693000186 | C140: 757020<BraNa>
B141: 40211693000186 | C141: 757047<BraNa>
B142: 40211693000186 | C142: 757012<BraNa>
B143: 40211693000186 | C143: 757039<BraNa>
B144: 40211693000186 | C144: 725560<BraNa>
B145: 29066923000128 | C145: 461709<BraNa>
B146: 9101459000156 | C146: 197599<BraNa>
B147: 15693787000191 | C147: 309941<BraNa>
B148: 55648820000186 | C148: 767514<BraNa>
B149: 20640566000195 | C149: 377945<BraNa>
B150: 29044629000115 | C150: 455091<BraNa>
B151: 31881591000187 | C151: 482250<BraNa>
B152: 46685600000131 | C152: 668184<BraNa>
B153: 15296549000142 | C153: 301108<BraNa>
B154: 14163407000144 | C154: 290351<BraNa>
B155: 28840463000180 | C155: 462470<BraNa>
B156: 41387466000179 | C156: 602140<BraNa>
B157: 41153205000194 | C157: 627161<BraNa>
B158: 42922173000107 | C158: 643289<BraNa>
B159: 37066850000100 | C159: 771155<BraNa>
B160: 22353913000124 | C160: 407429<BraNa>
B161: 54444075000190 | C161: 762997<BraNa>
B162: 53625021000169 | C162: 53625021-provis<BraNa>
B163: 47388724000118 | C163: 717088<BraNa>
B164: 23657955000111 | C164: 423084<BraNa>
B165: 22232929000189 | C165: 400531<BraNa>
B166: 51694298000118 | C166: 726729<BraNa>
B167: 40102823000142 | C167: 597120<BraNa>
B168: 39377954000153 | C168: 588881<BraNa>
B169: 40975325000104 | C169: 586587<BraNa>
B170: 8387295000102 | C170: 176958<BraNa>
B171: 50790698000164 | C171: 720283<BraNa>
B172: 50981701000127 | C172: 50981701-provis<BraNa>
B173: 29292230000153 | C173: 618179<BraNa>
B174: 52362629000185 | C174: 730017<BraNa>
B175: 50231008000137 | C175: 705039<BraNa>
B176: 17337764000170 | C176: 342025<BraNa>
B177: 42754434000127 | C177: 629855<BraNa>
B178: 26452304000183 | C178: 431060<BraNa>
B179: 55408289000174 | C179: 55408289-provis<BraNa>
B180: 54787280000159 | C180: 54787280-provis<BraNa>
B181: 20019120000148 | C181: 624462<BraNa>
B182: 53180901000179 | C182: 737100<BraNa>
B183: 10456393000104 | C183: 353612<BraNa>
B184: 13711061000109 | C184: 464953<BraNa>
B185: 28398439000133 | C185: 584071<BraNa>
B186: 28581607000121 | C186: 491322<BraNa>
B187: 40190534000142 | C187: 596361<BraNa>
B188: 56248822000140 | C188: 56248822-provis<BraNa>
B189: 28858089000140 | C189: 489905<BraNa>
B190: 33625506000145 | C190: 644331<BraNa>
B191: 33625789000125 | C191: 643556<BraNa>
B192: 33625603000138 | C192: 643947<BraNa>
B193: 33625723000135 | C193: 643432<BraNa>
B194: 9599346000122 | C194: 213705<BraNa>
B195: 9550197000107 | C195: 213691<BraNa>
B196: 23442134000168 | C196: 457698<BraNa>
B197: 33624201000119 | C197: 570117<BraNa>
B198: 20764258000171 | C198: 396621<BraNa>
B199: 52985003000125 | C199: 763594<BraNa>
B200: 41215493000164 | C200: 603953<BraNa>
B201: 13250363000127 | C201: 299057<BraNa>
B202: 57158611000180 | C202: 57158611-provis<BraNa>
... 4298 more rows
